Ref No,Fund Type,Dept,Cost Centre Description    ,Description    ,Creditor Name    ,GL Code Net Amount,Payment date        
2,Revenue,CAHD,Bed Purchasing - South,Permanent Residential,.,1589.20, 05-Jul-2016
3,Revenue,CAHD,Bed purchasing - Elderly S117 - South,Permanent Nursing,.,3400.00, 05-Jul-2016
4,Revenue,CAHD,Bed Purchasing - South,Permanent Nursing,.,5850.72, 05-Jul-2016
5,Revenue,CAHD,18-25 Year Olds,Permanent Residential,1 St Georges House,13536.44, 05-Jul-2016
6,Revenue,CAHD,Supporting People Programme,Grants to Voluntary Bodies,1625 Independent People,17102.16, 01-Jul-2016
7,Revenue,CAHD,Home Care - Elderly - North,Supported Living,2430 The Quadrant,5041.76, 05-Jul-2016
8,Revenue,CAHD,Home Care - Elderly - North,Supported Living,2430 The Quadrant,5041.76, 05-Jul-2016
9,Revenue,CAHD,Home Care - Elderly - North,Supported Living,3 Trees Community Support Limited,639.80, 05-Jul-2016
10,Revenue,CAHD,Home Care - Elderly - South,Day Care / Social Activities,3 Trees Community Support Ltd,91.60, 11-Jul-2016
11,Revenue,CAHD,Home Care - Elderly - North,Day Care / Social Activities,3 Trees Community Support Ltd,1662.54, 11-Jul-2016
12,Revenue,CAHD,Home Care - Elderly - North,Other Small Contracts,3 Trees Community Support Ltd,696.16, 11-Jul-2016
13,Revenue,CAHD,Home Care - Elderly - North,Supported Living,3 Trees Community Support Ltd,9457.81, 11-Jul-2016
14,Revenue,CAHD,Home Care - Elderly - South,Day Care / Social Activities,3 Trees Community Support Ltd,96.18, 15-Jul-2016
15,Revenue,CAHD,Home Care - Elderly - North,Day Care / Social Activities,3 Trees Community Support Ltd,1657.96, 15-Jul-2016
16,Revenue,CAHD,Home Care - Elderly - North,Other Small Contracts,3 Trees Community Support Ltd,691.58, 15-Jul-2016
17,Revenue,CAHD,Home Care - Elderly - North,Supported Living,3 Trees Community Support Ltd,10321.19, 15-Jul-2016
18,Revenue,CAHD,Home Care - Elderly - South,Day Care / Social Activities,3 Trees Community Support Ltd,91.60, 15-Jul-2016
19,Revenue,CAHD,Home Care - Elderly - North,Day Care / Social Activities,3 Trees Community Support Ltd,1671.70, 15-Jul-2016
20,Revenue,CAHD,Home Care - Elderly - North,Other Small Contracts,3 Trees Community Support Ltd,687.00, 15-Jul-2016
21,Revenue,CAHD,Home Care - Elderly - North,Supported Living,3 Trees Community Support Ltd,9361.36, 15-Jul-2016
22,Revenue,CAHD,Home Care - Elderly - North,Supported Living,3 Trees Community Support Ltd,2320.64, 05-Jul-2016
23,Revenue,CAHD,Bed Purchasing - South,Permanent Residential,5Th Floor Harlech Court,16462.84, 05-Jul-2016
24,Revenue,CAHD,18-25 Year Olds,Permanent Residential,5Th Floor Harlech Court,14031.44, 05-Jul-2016
25,Revenue,CAHD,18-25 Year Olds,Permanent Residential,5Th Floor Harlech Court,14309.60, 05-Jul-2016
26,Revenue,CAHD,18-25 Year Olds,Permanent Residential,5Th Floor Harlech Court,12561.64, 05-Jul-2016
27,Revenue,CAHD,Bed Purchasing - North,Permanent Residential,5Th Floor Harlech Court,15666.92, 05-Jul-2016
28,Revenue,CAHD,Bed Purchasing - North,Permanent Residential,5Th Floor Harlech Court,19367.24, 05-Jul-2016
29,Revenue,CAHD,Bed Purchasing - North,Permanent Residential,5Th Floor Harlech Court,13923.28, 05-Jul-2016
30,Revenue,CAHD,Jointly Funded H&SC Packages,Permanent Residential,5Th Floor Harlech Court,3078.96, 05-Jul-2016
31,Revenue,CAHD,18-25 Year Olds,Permanent Residential,5Th Floor Harlech Court,16146.32, 05-Jul-2016
32,Revenue,CAHD,Bed Purchasing - South,Permanent Residential,5Th Floor Harlech Court,9535.64, 05-Jul-2016
33,Revenue,CAHD,Bed purchasing - S28A Under 65 - South,Permanent Residential,5Th Floor Harlech Court,9950.84, 05-Jul-2016
34,Revenue,CAHD,Bed Purchasing - South,Permanent Residential,5Th Floor Harlech Court,10497.68, 05-Jul-2016
35,Revenue,CAHD,Bed Purchasing - North,Permanent Nursing,ABI Development Limited,7147.00, 05-Jul-2016
36,Revenue,CAHD,Training - Adult Services,Training Expenses,Acorn Health & Safety Limited,465.00, 15-Jul-2016
37,Revenue,CAHD,Older People's Commissioned Se,Grants to Voluntary Bodies,Action for Blind People,24606.00, 01-Jul-2016
38,Revenue,CAHD,Home Care - Elderly - South,Other Small Contracts,Agincare Chippenham,883.66, 05-Jul-2016
39,Revenue,CAHD,Home Care - Elderly - North,Other Small Contracts,Agincare Chippenham,535.67, 05-Jul-2016
40,Revenue,CAHD,Home Care - Elderly - South,Other Small Contracts,Agincare Chippenham,797.64, 05-Jul-2016
41,Revenue,CAHD,Home Care - Elderly - North,Other Small Contracts,Agincare Chippenham,520.03, 05-Jul-2016
42,Revenue,CAHD,Home Care - Elderly - South,Other Small Contracts,Agincare Chippenham,406.64, 08-Jul-2016
43,Revenue,CAHD,Home Care - Elderly - North,Other Small Contracts,Agincare Chippenham,523.94, 08-Jul-2016
44,Revenue,CAHD,Home Care - Elderly - South,Other Small Contracts,Agincare UK Limited,985.32, 05-Jul-2016
45,Revenue,CAHD,Home Care - Elderly - North,Other Small Contracts,Agincare UK Limited,637.33, 05-Jul-2016
46,Revenue,CAHD,Home Care - Elderly - South,Other Small Contracts,Agincare UK Limited,609.96, 04-Jul-2016
47,Revenue,CAHD,Home Care - Elderly - North,Other Small Contracts,Agincare UK Limited,1192.55, 04-Jul-2016
48,Revenue,CAHD,Home Care - Elderly - South,Other Small Contracts,Agincare UK Limited,668.61, 06-Jul-2016
49,Revenue,CAHD,Home Care - Elderly - North,Other Small Contracts,Agincare UK Limited,1184.73, 06-Jul-2016
50,Revenue,CAHD,Home Care - Elderly - North,Other Small Contracts,Agincare UK Nutfield,1724.31, 04-Jul-2016
51,Revenue,CAHD,Home Care - Elderly - North,Other Small Contracts,Agincare UK Nutfield,1775.14, 04-Jul-2016
52,Revenue,CAHD,Home Care - Elderly - North,Other Small Contracts,Agincare UK Nutfield,1693.03, 04-Jul-2016
53,Revenue,CAHD,Home Care - Elderly - North,Day Care / Social Activities,Agincare UK Nutfield,164.22, 21-Jul-2016
54,Revenue,CAHD,Home Care - Elderly - North,Other Small Contracts,Agincare UK Nutfield,1798.60, 21-Jul-2016
55,Revenue,CAHD,Home Care - Elderly - South,Other Small Contracts,AliMo Care Ltd,1288.96, 01-Jul-2016
56,Revenue,CAHD,Home Care - Elderly - South,Other Small Contracts,AliMo Care Ltd,1335.60, 06-Jul-2016
57,Revenue,CAHD,Home Care - Elderly - South,Other Small Contracts,AliMo Care Ltd,1327.12, 15-Jul-2016
58,Revenue,CAHD,Home Care - Elderly - South,Other Small Contracts,AliMo Care Ltd,1394.96, 27-Jul-2016
59,Revenue,CAHD,User Involvement,Consultation Expenses,Alzheimers Society,1290.00, 04-Jul-2016
60,Revenue,CAHD,Bed Purchasing - South,Permanent Nursing,Ambleside Nusing Ho!,1544.24, 05-Jul-2016
61,Revenue,CAHD,Bed Purchasing - Southmead Hospital,Permanent Nursing,Amerind Grove Nursing Home,1950.64, 05-Jul-2016
62,Revenue,CAHD,Bed Purchasing - Southmead Hospital,Permanent Nursing,Amerind Grove Nursing Home,1711.28, 05-Jul-2016
63,Revenue,CAHD,Direct Payments - Phys Dis - North,Grants to Voluntary Bodies,Aquarium Card Management Solutions Ltd,2125.50, 08-Jul-2016
64,Revenue,CAHD,Bed Purchasing - North,Permanent Residential,Ark Care Homes Ltd,10494.48, 05-Jul-2016
65,Revenue,CAHD,S117 Placements PCT,Permanent Residential,Ash View House,7148.68, 05-Jul-2016
66,Revenue,CAHD,18-25 Year Olds,Permanent Residential,Ash View House,6315.92, 05-Jul-2016
67,Revenue,CAHD,Section 117 Placements MH Younger,Permanent Residential,Ash View House,4658.52, 05-Jul-2016
68,Revenue,CAHD,Jointly Funded H&SC Packages,Permanent Residential,Ash View House,1996.52, 05-Jul-2016
69,Revenue,CAHD,Bed purchasing - Elderly S117 - South,Permanent Residential,Ash View House,6331.72, 05-Jul-2016
70,Revenue,CAHD,Bed Purchasing - North,Permanent Residential,Aspects 2 Limited,6441.16, 05-Jul-2016
71,Revenue,CAHD,Supporting People Programme,Grants to Voluntary Bodies,Aspects and Milestones Trust,3298.58, 01-Jul-2016
72,Revenue,CAHD,Supporting People Programme,Grants to Voluntary Bodies,Aspects and Milestones Trust,1653.75, 01-Jul-2016
73,Revenue,CAHD,Supporting People Programme,Grants to Voluntary Bodies,Aspects and Milestones Trust,2014.33, 01-Jul-2016
74,Revenue,CAHD,Supporting People Programme,Grants to Voluntary Bodies,Aspects and Milestones Trust,2510.16, 01-Jul-2016
75,Revenue,CAHD,Bed Purchasing - South,Permanent Residential,Autism Specialised Care Homes,5755.24, 05-Jul-2016
76,Revenue,CAHD,Bed Purchasing - North,Respite Planned - Residential,Avery Homes WSM Limited,1287.15, 05-Jul-2016
77,Revenue,CAHD,Younger Adult Mental Health,Health Services (Third Party Payments),Avon & Wiltshire Mental Health,1667.00, 01-Jul-2016
78,Revenue,CAHD,Bed Purchasing - Southmead Hospital,Permanent Nursing,Bayview Nursing & Residential Home,1503.96, 05-Jul-2016
79,Revenue,CAHD,Pathway 3 - (Complex Beds),Permanent Nursing,Beaufort Care Ltd,5271.00, 18-Jul-2016
80,Revenue,CAHD,Bed Purchasing - Elderly S117- North,Permanent Nursing,Beaufort Grange Care Home,4411.20, 05-Jul-2016
81,Revenue,CAHD,Bed Purchasing - Elderly S117- North,Permanent Nursing,Beaufort Grange Care Home,4613.92, 05-Jul-2016
82,Revenue,CAHD,Bed Purchasing - North,Permanent Residential,Beaufort House,1705.40, 05-Jul-2016
83,Revenue,CAHD,Bed Purchasing - North,Permanent Residential,Beaufort House,2432.64, 05-Jul-2016
84,Revenue,CAHD,Bed Purchasing - North,Permanent Residential,Beaufort House,614.73, 05-Jul-2016
85,Revenue,CAHD,Bed Purchasing - South,Permanent Residential,Beaufort House,1501.64, 05-Jul-2016
86,Revenue,CAHD,Bed Purchasing - Southmead Hospital,Permanent Residential,Beaufort House,1302.12, 05-Jul-2016
87,Revenue,CAHD,Bed Purchasing - North,Permanent Residential,Beaufort House,1846.64, 05-Jul-2016
88,Revenue,CAHD,Bed Purchasing - North,Permanent Residential,Beaufort House,1483.64, 05-Jul-2016
89,Revenue,CAHD,Bed Purchasing - North,Respite Emergency - Residential,Beaufort House,2432.64, 05-Jul-2016
90,Revenue,CAHD,Bed Purchasing - Southmead Hospital,Permanent Residential,Beaufort House,1857.20, 05-Jul-2016
91,Revenue,CAHD,Bed Purchasing - South,Permanent Residential,Bedrock Lodge,3155.80, 05-Jul-2016
92,Revenue,CAHD,Bed Purchasing - South,Permanent Residential,Bedrock Lodge,3010.32, 05-Jul-2016
93,Revenue,CAHD,Section 117 Placements MH Younger,Permanent Residential,Bedrock Lodge,1910.68, 05-Jul-2016
94,Revenue,CAHD,South Glos Users in South Glos Homes,Permanent Nursing,Beech House,752.00, 05-Jul-2016
95,Revenue,CAHD,Bed Purchasing - South,Permanent Residential,Beech House,2001.20, 05-Jul-2016
96,Revenue,CAHD,South Glos Users in South Glos Homes,Permanent Nursing,Beech House,1280.00, 05-Jul-2016
97,Revenue,CAHD,South Glos Users in South Glos Homes,Permanent Nursing,Beech House,944.00, 05-Jul-2016
98,Revenue,CAHD,South Glos Users in South Glos Homes,Permanent Nursing,Beech House,1280.00, 05-Jul-2016
99,Revenue,CAHD,Bed Purchasing - North,Permanent Nursing,Beech House,2172.00, 05-Jul-2016
100,Revenue,CAHD,Bed Purchasing - North,Permanent Residential,Beech House,2001.20, 05-Jul-2016
101,Revenue,CAHD,Bed Purchasing - North,Permanent Residential,Beech House,1763.35, 05-Jul-2016
102,Revenue,CAHD,South Glos Users in South Glos Homes,Permanent Nursing,Beech House,1280.00, 05-Jul-2016
103,Revenue,CAHD,South Glos Users in South Glos Homes,Permanent Nursing,Beech House,656.00, 05-Jul-2016
104,Revenue,CAHD,South Glos Users in South Glos Homes,Permanent Nursing,Beech House,1280.00, 05-Jul-2016
105,Revenue,CAHD,South Glos Users in South Glos Homes,Permanent Nursing,Beech House,592.00, 05-Jul-2016
106,Revenue,CAHD,Bed Purchasing - North,Permanent Nursing,Beech House,1094.80, 05-Jul-2016
107,Revenue,CAHD,Swift Dump Code,Permanent Residential,Beech House,9570.27, 05-Jul-2016
108,Revenue,CAHD,Bed Purchasing - North,Permanent Residential,Beech House,1432.32, 05-Jul-2016
109,Revenue,CAHD,Home Care - Elderly - South,Other Small Contracts,Bibby Factors Bristol Limited,59.64, 12-Jul-2016
110,Revenue,CAHD,Home Care - Elderly - North,Day Care / Social Activities,Bibby Factors Bristol Limited,140.58, 12-Jul-2016
111,Revenue,CAHD,Home Care - Elderly - North,Other Small Contracts,Bibby Factors Bristol Limited,10383.06, 12-Jul-2016
112,Revenue,CAHD,Home Care - Elderly - South,Other Small Contracts,Bibby Factors Bristol Limited,59.64, 15-Jul-2016
113,Revenue,CAHD,Home Care - Elderly - North,Day Care / Social Activities,Bibby Factors Bristol Limited,136.32, 15-Jul-2016
114,Revenue,CAHD,Home Care - Elderly - North,Other Small Contracts,Bibby Factors Bristol Limited,10190.66, 15-Jul-2016
115,Revenue,CAHD,Home Care - Elderly - South,Other Small Contracts,Bibby Factors Bristol Limited,55.38, 15-Jul-2016
116,Revenue,CAHD,Home Care - Elderly - North,Day Care / Social Activities,Bibby Factors Bristol Limited,140.58, 15-Jul-2016
117,Revenue,CAHD,Home Care - Elderly - North,Other Small Contracts,Bibby Factors Bristol Limited,10305.42, 15-Jul-2016
118,Revenue,CAHD,Home Care - Elderly - South,Other Small Contracts,Bibby Factors Bristol Limited,63.90, 22-Jul-2016
119,Revenue,CAHD,Home Care - Elderly - North,Other Small Contracts,Bibby Factors Bristol Limited,10083.14, 22-Jul-2016
120,Revenue,CAHD,Home Care - Elderly - South,Other Small Contracts,Bibby Factors Bristol Limited,63.90, 29-Jul-2016
121,Revenue,CAHD,Home Care - Elderly - North,Other Small Contracts,Bibby Factors Bristol Limited,9827.54, 29-Jul-2016
122,Revenue,CAHD,Bed Purchasing - North,Permanent Nursing,Blossom Field,2402.12, 05-Jul-2016
123,Revenue,CAHD,Bed Purchasing - Elderly S117- North,Permanent Nursing,Blossom Field,2040.00, 05-Jul-2016
124,Revenue,CAHD,South Glos Users in South Glos Homes,Permanent Nursing,Blossom Field,976.00, 05-Jul-2016
125,Revenue,CAHD,Bed Purchasing - Southmead Hospital,Permanent Nursing,Blossom Field,4063.04, 05-Jul-2016
126,Revenue,CAHD,Bed Purchasing - North,Permanent Nursing,Blossom Field,2447.92, 05-Jul-2016
127,Revenue,CAHD,Bed purchasing - Elderly S117 - South,Permanent Nursing,Blossom Field,4459.84, 05-Jul-2016
128,Revenue,CAHD,Bed purchasing - Elderly S117 - South,Permanent Nursing,Blossom Field,4411.20, 05-Jul-2016
129,Revenue,CAHD,South Glos Users in South Glos Homes,Permanent Nursing,Blossom Field,3024.00, 05-Jul-2016
130,Revenue,CAHD,South Glos Users in South Glos Homes,Permanent Nursing,Blossom Field,1280.00, 05-Jul-2016
131,Revenue,CAHD,South Glos Users in South Glos Homes,Permanent Nursing,Blossom Field,1600.00, 05-Jul-2016
132,Revenue,CAHD,South Glos Users in South Glos Homes,Permanent Nursing,Blossom Field,944.00, 05-Jul-2016
133,Revenue,CAHD,Bed Purchasing - North,Permanent Nursing,Blossom Field,2835.56, 05-Jul-2016
134,Revenue,CAHD,Bed Purchasing - North,Permanent Nursing,Blossom Field,2806.52, 05-Jul-2016
135,Revenue,CAHD,South Glos Users in South Glos Homes,Permanent Nursing,Blossom Field,1008.00, 05-Jul-2016
136,Revenue,CAHD,South Glos Users in South Glos Homes,Permanent Nursing,Blossom Field,832.00, 05-Jul-2016
137,Revenue,CAHD,Bed Purchasing - North,Permanent Nursing,Blossom Fields,1860.16, 05-Jul-2016
138,Revenue,CAHD,Bed Purchasing - Southmead Hospital,Permanent Nursing,Blossom Fields,2129.20, 05-Jul-2016
139,Revenue,CAHD,Bed Purchasing - North,Permanent Nursing,Blossom Fields,2652.00, 05-Jul-2016
140,Revenue,CAHD,Home Care - Elderly - South,Other Small Contracts,Bluebird Care (South Gloucestershire),773.08, 04-Jul-2016
141,Revenue,CAHD,Home Care - Elderly - North,Other Small Contracts,Bluebird Care (South Gloucestershire),3139.34, 04-Jul-2016
142,Revenue,CAHD,Home Care - Elderly - South,Other Small Contracts,Bluebird Care (South Gloucestershire),788.14, 05-Jul-2016
143,Revenue,CAHD,Home Care - Elderly - North,Other Small Contracts,Bluebird Care (South Gloucestershire),3184.30, 05-Jul-2016
144,Revenue,CAHD,Home Care - Elderly - South,Other Small Contracts,Bluebird Care (South Gloucestershire),788.14, 06-Jul-2016
145,Revenue,CAHD,Home Care - Elderly - North,Other Small Contracts,Bluebird Care (South Gloucestershire),2857.15, 06-Jul-2016
146,Revenue,CAHD,Home Care - Elderly - South,Other Small Contracts,Bluebird Care (South Gloucestershire),768.06, 20-Jul-2016
147,Revenue,CAHD,Home Care - Elderly - North,Other Small Contracts,Bluebird Care (South Gloucestershire),2872.04, 20-Jul-2016
148,Revenue,CAHD,Home Care - Elderly - South,Other Small Contracts,Bluebird Care (South Gloucestershire),687.74, 20-Jul-2016
149,Revenue,CAHD,Home Care - Elderly - North,Other Small Contracts,Bluebird Care (South Gloucestershire),2841.92, 20-Jul-2016
150,Revenue,CAHD,Bed purchasing - S28A Under 65 - South,Permanent Residential,Bradbury House,4355.60, 05-Jul-2016
151,Revenue,CAHD,Bed Purchasing - South,Permanent Residential,Bradbury House,7945.92, 05-Jul-2016
152,Revenue,CAHD,Bed purchasing - S28A Under 65 - South,Permanent Residential,Bradbury House,6534.72, 05-Jul-2016
153,Revenue,CAHD,18-25 Year Olds,Permanent Residential,Bradbury House,8981.52, 05-Jul-2016
154,Revenue,CAHD,Bed purchasing - Elderly S117 - South,Permanent Residential,Bradbury House,8462.56, 05-Jul-2016
155,Revenue,CAHD,Jointly Funded H&SC Packages,Permanent Residential,Bradbury House,3144.08, 05-Jul-2016
156,Revenue,CAHD,Bed Purchasing - North,Permanent Residential,Bradley House,1556.64, 05-Jul-2016
157,Revenue,CAHD,Bed Purchasing - South,Permanent Nursing,Brandon Trust,5239.96, 05-Jul-2016
158,Revenue,CAHD,Bed Purchasing - South,Permanent Residential,Brandon Trust,10525.96, 05-Jul-2016
159,Revenue,CAHD,Bed Purchasing - South,Permanent Residential,Brandon Trust,4140.64, 05-Jul-2016
160,Revenue,CAHD,Bed Purchasing - Southmead Hospital,Permanent Nursing,Brandon Trust,4663.04, 05-Jul-2016
161,Revenue,CAHD,Bed Purchasing - South,Permanent Nursing,Brandon Trust,5166.12, 05-Jul-2016
162,Revenue,CAHD,Bed purchasing - S28A Under 65 - South,Permanent Nursing,Brandon Trust,5574.32, 05-Jul-2016
163,Revenue,CAHD,Bed purchasing - S28A Under 65 - South,Permanent Residential,Brandon Trust,11349.10, 05-Jul-2016
164,Revenue,CAHD,Bed Purchasing - LD S28A- Over 65- South,Permanent Nursing,Brandon Trust,5251.12, 05-Jul-2016
165,Revenue,CAHD,Bed Purchasing - LD S28A- Over 65- South,Permanent Nursing,Brandon Trust,4964.92, 05-Jul-2016
166,Revenue,CAHD,Bed Purchasing - South,Permanent Residential,Brandon Trust,3280.48, 05-Jul-2016
167,Revenue,CAHD,Bed purchasing - S28A Under 65 - South,Permanent Residential,Brandon Trust,5335.92, 05-Jul-2016
168,Revenue,CAHD,Bed purchasing - S28A Under 65 - South,Permanent Residential,Brandon Trust,5392.96, 05-Jul-2016
169,Revenue,CAHD,Bed purchasing - S28A Under 65 - South,Permanent Nursing,Brandon Trust,5496.12, 05-Jul-2016
170,Revenue,CAHD,Bed purchasing -S28A  Under 65 - North,Permanent Nursing,Brandon Trust,4968.24, 05-Jul-2016
171,Revenue,CAHD,Bed purchasing - S28A Under 65 - South,Permanent Residential,Brandon Trust,5392.96, 05-Jul-2016
172,Revenue,CAHD,Bed Purchasing - LD S28A- Over 65- South,Permanent Residential,Brandon Trust,4849.92, 05-Jul-2016
173,Revenue,CAHD,Social Lettings Agency,Fees - General,Individual,11.41, 01-Jul-2016
174,Revenue,CAHD,Social Lettings Agency,Other Supplies & Services,Individual,746.54, 01-Jul-2016
175,Revenue,CAHD,Bed Purchasing - North,Permanent Residential,Bridge House Care Home,1828.76, 05-Jul-2016
176,Revenue,CAHD,Bed Purchasing - North,Permanent Residential,Bridge House Care Home,1554.80, 05-Jul-2016
177,Revenue,CAHD,Bed Purchasing - North,Permanent Residential,Bridge House Care Home,1351.92, 05-Jul-2016
178,Revenue,CAHD,Bed Purchasing - North,Permanent Residential,Bridge House Care Home,1089.80, 05-Jul-2016
179,Revenue,CAHD,Bed Purchasing - North,Permanent Residential,Bridge House Care Home,1549.96, 05-Jul-2016
180,Revenue,CAHD,Bed Purchasing - North,Permanent Residential,Bridge House Care Home,1550.80, 05-Jul-2016
181,Revenue,CAHD,Bed Purchasing - North,Permanent Residential,Bridgwater Court,10192.44, 05-Jul-2016
182,Revenue,CAHD,Bed Purchasing - South,Permanent Residential,Brightbow,2131.88, 05-Jul-2016
183,Revenue,CAHD,MH Purchasing - Younger,Permanent Residential,Brightbow,1519.76, 05-Jul-2016
184,Revenue,CAHD,Older People's Commissioned Se,Grants to Voluntary Bodies,Bristol Area Stroke Foundation,17419.00, 01-Jul-2016
185,Revenue,CAHD,Home Care - Elderly - North,Day Care / Social Activities,Bristol Houses UK Limited,543.20, 01-Jul-2016
186,Revenue,CAHD,Home Care - Elderly - South,Day Care / Social Activities,Bristol Houses UK Limited,1179.52, 04-Jul-2016
187,Revenue,CAHD,Supporting People Programme,Grants to Voluntary Bodies,Bristol Missing Link,2039.66, 01-Jul-2016
188,Revenue,CAHD,Supporting People Programme,Grants to Voluntary Bodies,Bristol Missing Link,1484.66, 01-Jul-2016
189,Revenue,CAHD,Tenancy Start Up Scheme,Other Supplies & Services,Bristol Property Partnership,525.00, 01-Jul-2016
190,Revenue,CAHD,Alexandra Way,Water Charges,Bristol Wessex Billing Services Limited,1940.21, 05-Jul-2016
191,Revenue,CAHD,Alexandra Way,Water Charges,Bristol Wessex Billing Services Limited,608.07, 29-Jul-2016
192,Revenue,CAHD,Woodleaze,Water Charges,Bristol Wessex Billing Services Limited,2484.88, 29-Jul-2016
193,Revenue,CAHD,Home Care - Elderly - North,SU Employment Support,Britannia House,702.96, 05-Jul-2016
194,Revenue,CAHD,Home Care - Elderly - North,Day Care / Social Activities,Britannia House,937.28, 05-Jul-2016
195,Revenue,CAHD,Home Care - Elderly - North,Day Care / Social Activities,Britannia House,702.96, 05-Jul-2016
196,Revenue,CAHD,Home Care - Elderly - North,Day Care / Social Activities,Britannia House,702.96, 05-Jul-2016
197,Revenue,CAHD,Home Care - Elderly - North,Day Care / Social Activities,Britannia House,937.28, 05-Jul-2016
198,Revenue,CAHD,Home Care - Elderly - South,Day Care / Social Activities,Britannia House,937.28, 05-Jul-2016
199,Revenue,CAHD,Home Care - Elderly - South,Day Care / Social Activities,Britannia House,702.96, 05-Jul-2016
200,Revenue,CAHD,Home Care - Elderly - South,Day Care / Social Activities,Britannia House,702.96, 05-Jul-2016
201,Revenue,CAHD,Home Care - Elderly - South,Day Care / Social Activities,Britannia House,702.96, 05-Jul-2016
202,Revenue,CAHD,Supporting People Programme,Grants to Voluntary Bodies,Bromford Housing Group,14395.08, 01-Jul-2016
203,Revenue,CAHD,Home Care - Elderly - North,Private & Voluntary Home Care,Brunelcare,23822.65, 04-Jul-2016
204,Revenue,CAHD,Home Care - Elderly - North,Private & Voluntary Home Care,Brunelcare,23822.65, 11-Jul-2016
205,Revenue,CAHD,Home Care - Elderly - North,Private & Voluntary Home Care,Brunelcare,23822.65, 18-Jul-2016
206,Revenue,CAHD,Home Care - Elderly - North,Private & Voluntary Home Care,Brunelcare,23822.65, 25-Jul-2016
207,Revenue,CAHD,Bed Purchasing - Southmead Hospital,Permanent Nursing,Brunelcare,2208.47, 28-Jul-2016
208,Revenue,CAHD,Bed Purchasing - South,Permanent Nursing,Brunelcare,2481.04, 28-Jul-2016
209,Revenue,CAHD,Bed Purchasing - Elderly S117- North,Permanent Nursing,Brunelcare,3077.14, 28-Jul-2016
210,Revenue,CAHD,Bed Purchasing - South,Permanent Nursing,Brunelcare,2277.64, 28-Jul-2016
211,Revenue,CAHD,Bed Purchasing - Southmead Hospital,Permanent Nursing,Brunelcare,2458.41, 28-Jul-2016
212,Revenue,CAHD,Bed Purchasing - Southmead Hospital,Permanent Nursing,Brunelcare,1397.49, 28-Jul-2016
213,Revenue,CAHD,Bed Purchasing - South,Permanent Nursing,Brunelcare,2517.00, 28-Jul-2016
214,Revenue,CAHD,Bed Purchasing - South,Permanent Nursing,Brunelcare,2331.69, 28-Jul-2016
215,Revenue,CAHD,Bed purchasing - Elderly S117 - South,Permanent Nursing,Brunelcare,3077.14, 28-Jul-2016
216,Revenue,CAHD,Bed Purchasing - North,Permanent Nursing,Brunelcare,2448.17, 28-Jul-2016
217,Revenue,CAHD,Bed Purchasing - Southmead Hospital,Permanent Nursing,Brunelcare,2351.70, 28-Jul-2016
218,Revenue,CAHD,Bed Purchasing - North,Permanent Nursing,Brunelcare,2470.37, 28-Jul-2016
219,Revenue,CAHD,Bed Purchasing - North,Permanent Nursing,Brunelcare,2517.00, 28-Jul-2016
220,Revenue,CAHD,Bed Purchasing - Southmead Hospital,Permanent Nursing,Brunelcare,2517.00, 28-Jul-2016
221,Revenue,CAHD,Bed Purchasing - Southmead Hospital,Permanent Nursing,Brunelcare,2430.34, 28-Jul-2016
222,Revenue,CAHD,Bed Purchasing - Elderly S117- North,Permanent Nursing,Brunelcare,3077.14, 28-Jul-2016
223,Revenue,CAHD,Bed Purchasing - South,Respite Planned - Nursing,Brunelcare,615.43, 28-Jul-2016
224,Revenue,CAHD,Bed Purchasing - South,Respite Planned - Nursing,Brunelcare,1436.00, 28-Jul-2016
225,Revenue,CAHD,Bed Purchasing - South,Respite Planned - Nursing,Brunelcare,1025.71, 28-Jul-2016
226,Revenue,CAHD,South Glos Users in South Glos Homes,Permanent Nursing,Brunelcare,575.25, 28-Jul-2016
227,Revenue,CAHD,South Glos Users in South Glos Homes,Permanent Nursing,Brunelcare,575.25, 28-Jul-2016
228,Revenue,CAHD,South Glos Users in South Glos Homes,Permanent Nursing,Brunelcare,575.25, 28-Jul-2016
229,Revenue,CAHD,South Glos Users in South Glos Homes,Permanent Nursing,Brunelcare,575.25, 28-Jul-2016
230,Revenue,CAHD,South Glos Users in South Glos Homes,Permanent Nursing,Brunelcare,575.25, 28-Jul-2016
231,Revenue,CAHD,South Glos Users in South Glos Homes,Permanent Nursing,Brunelcare,575.25, 28-Jul-2016
232,Revenue,CAHD,South Glos Users in South Glos Homes,Permanent Nursing,Brunelcare,575.25, 28-Jul-2016
233,Revenue,CAHD,South Glos Users in South Glos Homes,Permanent Nursing,Brunelcare,575.25, 28-Jul-2016
234,Revenue,CAHD,South Glos Users in South Glos Homes,Permanent Nursing,Brunelcare,575.25, 28-Jul-2016
235,Revenue,CAHD,South Glos Users in South Glos Homes,Permanent Nursing,Brunelcare,575.25, 28-Jul-2016
236,Revenue,CAHD,South Glos Users in South Glos Homes,Permanent Nursing,Brunelcare,575.25, 28-Jul-2016
237,Revenue,CAHD,South Glos Users in South Glos Homes,Permanent Nursing,Brunelcare,575.25, 28-Jul-2016
238,Revenue,CAHD,South Glos Users in South Glos Homes,Permanent Nursing,Brunelcare,575.25, 28-Jul-2016
239,Revenue,CAHD,South Glos Users in South Glos Homes,Permanent Nursing,Brunelcare,575.25, 28-Jul-2016
240,Revenue,CAHD,South Glos Users in South Glos Homes,Permanent Nursing,Brunelcare,575.25, 28-Jul-2016
241,Revenue,CAHD,South Glos Users in South Glos Homes,Permanent Nursing,Brunelcare,575.25, 28-Jul-2016
242,Revenue,CAHD,Pathway 2 - (Interim Beds),Permanent Nursing,Brunelcare,151436.11, 27-Jul-2016
243,Revenue,CAHD,Pathway 2 - (Interim Beds),Permanent Nursing,Brunelcare,15407.00, 11-Jul-2016
244,Revenue,CAHD,Home Care - Elderly - South,Other Small Contracts,Brunelcare,2099.19, 05-Jul-2016
245,Revenue,CAHD,Home Care - Elderly - North,Other Small Contracts,Brunelcare,1646.67, 05-Jul-2016
246,Revenue,CAHD,Home Care - Elderly - South,Other Small Contracts,Brunelcare,2287.74, 04-Jul-2016
247,Revenue,CAHD,Home Care - Elderly - North,Other Small Contracts,Brunelcare,1780.75, 04-Jul-2016
248,Revenue,CAHD,Home Care - Elderly - South,Other Small Contracts,Brunelcare,4139.72, 05-Jul-2016
249,Revenue,CAHD,Home Care - Elderly - North,Other Small Contracts,Brunelcare,2874.34, 05-Jul-2016
250,Revenue,CAHD,Home Care - Elderly - South,Other Small Contracts,Brunelcare,1986.06, 28-Jul-2016
251,Revenue,CAHD,Home Care - Elderly - North,Other Small Contracts,Brunelcare,1428.79, 28-Jul-2016
252,Revenue,CAHD,Home Care - Elderly - South,Other Small Contracts,Brunelcare,2053.10, 28-Jul-2016
253,Revenue,CAHD,Home Care - Elderly - North,Other Small Contracts,Brunelcare,1474.88, 28-Jul-2016
254,Revenue,CAHD,Home Care - Elderly - South,Other Small Contracts,Brunelcare,1860.36, 28-Jul-2016
255,Revenue,CAHD,Home Care - Elderly - North,Other Small Contracts,Brunelcare,1541.92, 28-Jul-2016
256,Revenue,CAHD,Home Care - Elderly - South,Other Small Contracts,Brunelcare,2241.65, 28-Jul-2016
257,Revenue,CAHD,Home Care - Elderly - North,Other Small Contracts,Brunelcare,1592.20, 28-Jul-2016
258,Revenue,CAHD,Home Care - Elderly - South,Other Small Contracts,Brunelcare,2053.10, 28-Jul-2016
259,Revenue,CAHD,Home Care - Elderly - North,Other Small Contracts,Brunelcare,1575.44, 28-Jul-2016
260,Revenue,CAHD,Bed Purchasing - North,Permanent Nursing,Bupa Care Services  Bridge House,1740.00, 05-Jul-2016
261,Revenue,CAHD,Jointly Funded H&SC Packages,Permanent Nursing,Bupa Care Services  Bridge House,4344.04, 05-Jul-2016
262,Revenue,CAHD,South Glos Users in all other LA Homes,Permanent Nursing,Bupa Care Services  Bridge House,616.56, 05-Jul-2016
263,Revenue,CAHD,Home Care - Elderly - North,Day Care / Social Activities,Camphill Communities Thornbury Limited,836.00, 07-Jul-2016
264,Revenue,CAHD,Home Care - Elderly - North,Other Small Contracts,Camphill Communities Thornbury Limited,48.00, 07-Jul-2016
265,Revenue,CAHD,Home Care - Elderly - North,Supported Living,Camphill Communities Thornbury Limited,1264.00, 07-Jul-2016
266,Revenue,CAHD,Home Care - Elderly - North,Day Care / Social Activities,Camphill Communities Thornbury Limited,1112.00, 22-Jul-2016
267,Revenue,CAHD,Home Care - Elderly - North,Other Small Contracts,Camphill Communities Thornbury Limited,144.00, 22-Jul-2016
268,Revenue,CAHD,Home Care - Elderly - North,Supported Living,Camphill Communities Thornbury Limited,1032.00, 22-Jul-2016
269,Revenue,CAHD,Home Care - Elderly - North,Day Care / Social Activities,Camphill Communities Thornbury Limited,1124.00, 28-Jul-2016
270,Revenue,CAHD,Home Care - Elderly - North,Other Small Contracts,Camphill Communities Thornbury Limited,144.00, 28-Jul-2016
271,Revenue,CAHD,Home Care - Elderly - North,Supported Living,Camphill Communities Thornbury Limited,1236.00, 28-Jul-2016
272,Revenue,CAHD,Bed Purchasing - Elderly S117- North,Permanent Residential,Canjayor,2391.32, 05-Jul-2016
273,Revenue,CAHD,Information Systems - Software,Software Support & Maintenance,Capita Business Services Ltd,32818.50, 15-Jul-2016
274,Revenue,CAHD,Home Care - Elderly - South,Other Small Contracts,Care 1st Homecare,3952.27, 04-Jul-2016
275,Revenue,CAHD,Home Care - Elderly - North,Other Small Contracts,Care 1st Homecare,3011.53, 04-Jul-2016
276,Revenue,CAHD,Home Care - Elderly - South,Other Small Contracts,Care 1st Homecare,3956.58, 04-Jul-2016
277,Revenue,CAHD,Home Care - Elderly - North,Other Small Contracts,Care 1st Homecare,2534.28, 04-Jul-2016
278,Revenue,CAHD,Home Care - Elderly - South,Other Small Contracts,Care 1st Homecare,4098.81, 04-Jul-2016
279,Revenue,CAHD,Home Care - Elderly - North,Other Small Contracts,Care 1st Homecare,2525.66, 04-Jul-2016
280,Revenue,CAHD,Home Care - Elderly - South,Other Small Contracts,Care 1st Homecare,3913.48, 04-Jul-2016
281,Revenue,CAHD,Home Care - Elderly - North,Other Small Contracts,Care 1st Homecare,2499.80, 04-Jul-2016
282,Revenue,CAHD,Home Care - Elderly - South,Other Small Contracts,Care Horizons Limited,392.16, 04-Jul-2016
283,Revenue,CAHD,Home Care - Elderly - North,Day Care / Social Activities,Care Horizons Limited,164.16, 04-Jul-2016
284,Revenue,CAHD,Home Care - Elderly - North,Other Small Contracts,Care Horizons Limited,342.00, 04-Jul-2016
285,Revenue,CAHD,Home Care - Elderly - South,Other Small Contracts,Care Horizons Limited,346.56, 08-Jul-2016
286,Revenue,CAHD,Home Care - Elderly - North,Day Care / Social Activities,Care Horizons Limited,547.20, 08-Jul-2016
287,Revenue,CAHD,Home Care - Elderly - North,Other Small Contracts,Care Horizons Limited,729.60, 08-Jul-2016
288,Revenue,CAHD,Home Care - Elderly - South,Other Small Contracts,Care Horizons Limited,346.56, 15-Jul-2016
289,Revenue,CAHD,Home Care - Elderly - North,Day Care / Social Activities,Care Horizons Limited,533.52, 15-Jul-2016
290,Revenue,CAHD,Home Care - Elderly - North,Other Small Contracts,Care Horizons Limited,734.16, 15-Jul-2016
291,Revenue,CAHD,Home Care Monitoring (CM2000),Other Supplies & Services,Care Monitoring 2000 Limited,9583.51, 18-Jul-2016
292,Revenue,CAHD,Home Care - Elderly - South,Other Small Contracts,Carers R Us (Bristol) Limited,668.30, 08-Jul-2016
293,Revenue,CAHD,Home Care - Elderly - South,Other Small Contracts,Carers R Us (Bristol) Limited,660.10, 08-Jul-2016
294,Revenue,CAHD,Home Care - Elderly - South,Other Small Contracts,Carers R Us (Bristol) Limited,688.80, 20-Jul-2016
295,Revenue,CAHD,Home Care - Elderly - South,Other Small Contracts,Carers R Us (Bristol) Limited,672.40, 20-Jul-2016
296,Revenue,CAHD,SLA Grants - Support Serv,Grants to Voluntary Bodies,Carers Support Centre,12275.00, 01-Jul-2016
297,Revenue,CAHD,SLA Grants - Support Serv,Grants to Voluntary Bodies,Carers Support Centre,25025.00, 01-Jul-2016
298,Revenue,CAHD,SLA Grants - Support Serv,Grants to Voluntary Bodies,Carers Support Centre,18991.50, 01-Jul-2016
299,Revenue,CAHD,Home Care - Elderly - North,Other Small Contracts,Caring Comes 1st Ltd,1047.60, 29-Jul-2016
300,Revenue,CAHD,Home Care - Elderly - North,Other Small Contracts,Caring Comes 1st Ltd,1111.89, 29-Jul-2016
301,Revenue,CAHD,Home Care - Elderly - North,Other Small Contracts,Caring Comes 1st Ltd,1106.96, 29-Jul-2016
302,Revenue,CAHD,Social Lettings Agency,Fees - General,Individual,10.53, 01-Jul-2016
303,Revenue,CAHD,Social Lettings Agency,Fees & Charges Income - General,Individual,595.11, 01-Jul-2016
304,Revenue,CAHD,Bed Purchasing - North,Permanent Residential,Charlton House,916.12, 05-Jul-2016
305,Revenue,CAHD,Bed Purchasing - North,Permanent Residential,Charlton House,924.16, 05-Jul-2016
306,Revenue,CAHD,Home Care - Elderly - South,Other Small Contracts,Cherish Able Care Limited,4930.56, 01-Jul-2016
307,Revenue,CAHD,Home Care - Elderly - North,Other Small Contracts,Cherish Able Care Limited,179.76, 01-Jul-2016
308,Revenue,CAHD,Home Care - Elderly - South,Other Small Contracts,Cherish Able Care Limited,4986.20, 08-Jul-2016
309,Revenue,CAHD,Home Care - Elderly - North,Other Small Contracts,Cherish Able Care Limited,629.16, 08-Jul-2016
310,Revenue,CAHD,Home Care - Elderly - South,Other Small Contracts,Cherish Able Care Limited,5628.20, 15-Jul-2016
311,Revenue,CAHD,Home Care - Elderly - North,Other Small Contracts,Cherish Able Care Limited,787.52, 15-Jul-2016
312,Revenue,CAHD,Home Care - Elderly - South,Other Small Contracts,Cherish Able Care Limited,5829.36, 21-Jul-2016
313,Revenue,CAHD,Home Care - Elderly - North,Other Small Contracts,Cherish Able Care Limited,727.60, 21-Jul-2016
314,Revenue,CAHD,Home Care - Elderly - South,Other Small Contracts,Cherish Able Care Limited,5932.08, 29-Jul-2016
315,Revenue,CAHD,Home Care - Elderly - North,Other Small Contracts,Cherish Able Care Limited,744.72, 29-Jul-2016
316,Revenue,CAHD,Bed purchasing -S28A  Under 65 - North,Permanent Residential,Chescombe Lodge,8915.92, 05-Jul-2016
317,Revenue,CAHD,Home Care - Elderly - South,Supported Living,Choisy Care Limited,864.90, 04-Jul-2016
318,Revenue,CAHD,Home Care - Elderly - South,Supported Living,Choisy Care Limited,871.20, 28-Jul-2016
319,Revenue,CAHD,Bed Purchasing - Southmead Hospital,Permanent Nursing,Cholwell House Nursing Home Ltd,2005.92, 05-Jul-2016
320,Revenue,CAHD,Bed Purchasing - Southmead Hospital,Permanent Nursing,Churchill Property Services,1710.24, 05-Jul-2016
321,Revenue,CAHD,18-25 Year Olds,Permanent Residential,Citibase Watford,7190.44, 05-Jul-2016
322,Revenue,CAHD,Bed Purchasing - Elderly S117- North,Permanent Residential,Citibase Watford,4575.68, 05-Jul-2016
323,Revenue,CAHD,Jointly Funded H&SC Packages,Permanent Residential,Citibase Watford,4575.72, 05-Jul-2016
324,Revenue,CAHD,18-25 Year Olds,Permanent Residential,Citibase Watford,5594.88, 05-Jul-2016
325,Revenue,CAHD,Bed Purchasing - South,Permanent Residential,Cleeve Lodge,567.56, 05-Jul-2016
326,Revenue,CAHD,Bed Purchasing - Southmead Hospital,Permanent Residential,Cleeve Lodge,1494.76, 05-Jul-2016
327,Revenue,CAHD,Bed Purchasing - South,Permanent Residential,Cleeve Lodge,1769.56, 05-Jul-2016
328,Revenue,CAHD,Bed Purchasing - South,Permanent Residential,Cleeve Lodge,1855.40, 05-Jul-2016
329,Revenue,CAHD,Bed Purchasing - South,Permanent Residential,Cleeve Lodge,1852.60, 05-Jul-2016
330,Revenue,CAHD,Bed Purchasing - South,Permanent Residential,Collingwood Residential Home,1467.24, 05-Jul-2016
331,Revenue,CAHD,Bed Purchasing - Southmead Hospital,Permanent Residential,Collingwood Residential Home,1424.48, 05-Jul-2016
332,Revenue,CAHD,Bed Purchasing - South,Permanent Residential,Collingwood Residential Home,1484.12, 05-Jul-2016
333,Revenue,CAHD,Home Care - Elderly - South,Day Care / Social Activities,Collingwood Residential Home,784.04, 05-Jul-2016
334,Revenue,CAHD,Bed Purchasing - South,Permanent Residential,Collingwood Residential Home,1461.76, 05-Jul-2016
335,Revenue,CAHD,Bed Purchasing - South,Permanent Residential,Collingwood Residential Home,1340.68, 05-Jul-2016
336,Revenue,CAHD,Bed Purchasing - South,Permanent Nursing,Community Integrated Care,676.64, 05-Jul-2016
337,Revenue,CAHD,Bed and Breakfast,Bed & Breakfast,Connolly & Callaghan Limited,511.00, 04-Jul-2016
338,Revenue,CAHD,Bed and Breakfast,Bed & Breakfast,Connolly & Callaghan Limited,441.00, 04-Jul-2016
339,Revenue,CAHD,Bed and Breakfast,Bed & Breakfast,Connolly & Callaghan Limited,441.00, 04-Jul-2016
340,Revenue,CAHD,Bed and Breakfast,Bed & Breakfast,Connolly & Callaghan Limited,441.00, 04-Jul-2016
341,Revenue,CAHD,Bed and Breakfast,Bed & Breakfast,Connolly & Callaghan Limited,511.00, 04-Jul-2016
342,Revenue,CAHD,Bed and Breakfast,Bed & Breakfast,Connolly & Callaghan Limited,476.00, 04-Jul-2016
343,Revenue,CAHD,Bed and Breakfast,Bed & Breakfast,Connolly & Callaghan Limited,455.00, 04-Jul-2016
344,Revenue,CAHD,Bed and Breakfast,Bed & Breakfast,Connolly & Callaghan Limited,441.00, 04-Jul-2016
345,Revenue,CAHD,Bed and Breakfast,Bed & Breakfast,Connolly & Callaghan Limited,441.00, 04-Jul-2016
346,Revenue,CAHD,Bed and Breakfast,Bed & Breakfast,Connolly & Callaghan Limited,476.00, 04-Jul-2016
347,Revenue,CAHD,Bed and Breakfast,Bed & Breakfast,Connolly & Callaghan Limited,651.00, 04-Jul-2016
348,Revenue,CAHD,Bed and Breakfast,Bed & Breakfast,Connolly & Callaghan Limited,546.00, 07-Jul-2016
349,Revenue,CAHD,Bed and Breakfast,Bed & Breakfast,Connolly & Callaghan Limited,616.00, 04-Jul-2016
350,Revenue,CAHD,Bed and Breakfast,Bed & Breakfast,Connolly & Callaghan Limited,616.00, 04-Jul-2016
351,Revenue,CAHD,Bed and Breakfast,Bed & Breakfast,Connolly & Callaghan Limited,511.00, 08-Jul-2016
352,Revenue,CAHD,Bed and Breakfast,Bed & Breakfast,Connolly & Callaghan Limited,441.00, 11-Jul-2016
353,Revenue,CAHD,Bed and Breakfast,Bed & Breakfast,Connolly & Callaghan Limited,441.00, 08-Jul-2016
354,Revenue,CAHD,Bed and Breakfast,Bed & Breakfast,Connolly & Callaghan Limited,511.00, 08-Jul-2016
355,Revenue,CAHD,Bed and Breakfast,Bed & Breakfast,Connolly & Callaghan Limited,581.00, 08-Jul-2016
356,Revenue,CAHD,Bed and Breakfast,Bed & Breakfast,Connolly & Callaghan Limited,476.00, 08-Jul-2016
357,Revenue,CAHD,Bed and Breakfast,Bed & Breakfast,Connolly & Callaghan Limited,455.00, 08-Jul-2016
358,Revenue,CAHD,Bed and Breakfast,Bed & Breakfast,Connolly & Callaghan Limited,441.00, 08-Jul-2016
359,Revenue,CAHD,Bed and Breakfast,Bed & Breakfast,Connolly & Callaghan Limited,441.00, 11-Jul-2016
360,Revenue,CAHD,Bed and Breakfast,Bed & Breakfast,Connolly & Callaghan Limited,476.00, 11-Jul-2016
361,Revenue,CAHD,Bed and Breakfast,Bed & Breakfast,Connolly & Callaghan Limited,651.00, 08-Jul-2016
362,Revenue,CAHD,Bed and Breakfast,Bed & Breakfast,Connolly & Callaghan Limited,546.00, 08-Jul-2016
363,Revenue,CAHD,Bed and Breakfast,Bed & Breakfast,Connolly & Callaghan Limited,616.00, 11-Jul-2016
364,Revenue,CAHD,Bed and Breakfast,Bed & Breakfast,Connolly & Callaghan Limited,616.00, 08-Jul-2016
365,Revenue,CAHD,Bed and Breakfast,Bed & Breakfast,Connolly & Callaghan Limited,511.00, 19-Jul-2016
366,Revenue,CAHD,Bed and Breakfast,Bed & Breakfast,Connolly & Callaghan Limited,441.00, 19-Jul-2016
367,Revenue,CAHD,Bed and Breakfast,Bed & Breakfast,Connolly & Callaghan Limited,511.00, 19-Jul-2016
368,Revenue,CAHD,Bed and Breakfast,Bed & Breakfast,Connolly & Callaghan Limited,581.00, 20-Jul-2016
369,Revenue,CAHD,Bed and Breakfast,Bed & Breakfast,Connolly & Callaghan Limited,476.00, 19-Jul-2016
370,Revenue,CAHD,Bed and Breakfast,Bed & Breakfast,Connolly & Callaghan Limited,455.00, 19-Jul-2016
371,Revenue,CAHD,Bed and Breakfast,Bed & Breakfast,Connolly & Callaghan Limited,441.00, 19-Jul-2016
372,Revenue,CAHD,Bed and Breakfast,Bed & Breakfast,Connolly & Callaghan Limited,441.00, 18-Jul-2016
373,Revenue,CAHD,Bed and Breakfast,Bed & Breakfast,Connolly & Callaghan Limited,476.00, 19-Jul-2016
374,Revenue,CAHD,Bed and Breakfast,Bed & Breakfast,Connolly & Callaghan Limited,546.00, 20-Jul-2016
375,Revenue,CAHD,Bed and Breakfast,Bed & Breakfast,Connolly & Callaghan Limited,616.00, 19-Jul-2016
376,Revenue,CAHD,Bed and Breakfast,Bed & Breakfast,Connolly & Callaghan Limited,616.00, 19-Jul-2016
377,Revenue,CAHD,Bed and Breakfast,Bed & Breakfast,Connolly & Callaghan Limited,476.00, 18-Jul-2016
378,Revenue,CAHD,Bed and Breakfast,Bed & Breakfast,Connolly & Callaghan Limited,511.00, 25-Jul-2016
379,Revenue,CAHD,Bed and Breakfast,Bed & Breakfast,Connolly & Callaghan Limited,581.00, 22-Jul-2016
380,Revenue,CAHD,Bed and Breakfast,Bed & Breakfast,Connolly & Callaghan Limited,441.00, 25-Jul-2016
381,Revenue,CAHD,Bed and Breakfast,Bed & Breakfast,Connolly & Callaghan Limited,441.00, 25-Jul-2016
382,Revenue,CAHD,Bed and Breakfast,Bed & Breakfast,Connolly & Callaghan Limited,476.00, 25-Jul-2016
383,Revenue,CAHD,Bed and Breakfast,Bed & Breakfast,Connolly & Callaghan Limited,546.00, 25-Jul-2016
384,Revenue,CAHD,Bed and Breakfast,Bed & Breakfast,Connolly & Callaghan Limited,616.00, 25-Jul-2016
385,Revenue,CAHD,Bed and Breakfast,Bed & Breakfast,Connolly & Callaghan Limited,476.00, 25-Jul-2016
386,Revenue,CAHD,Bed Purchasing - S28A - Over 65- North,Permanent Residential,Cream Ii Ltd  Longrun House,8262.76, 05-Jul-2016
387,Revenue,CAHD,Bed Purchasing - South,Permanent Residential,Cream Ii Ltd  Longrun House,3083.64, 05-Jul-2016
388,Revenue,CAHD,Jointly Funded H&SC Packages,Permanent Residential,Cream Ii Ltd  Longrun House,2683.04, 05-Jul-2016
389,Revenue,CAHD,Bed purchasing -S28A  Under 65 - North,Permanent Residential,Creedy Court,9527.44, 05-Jul-2016
390,Revenue,CAHD,Bed Purchasing - S28A - Over 65- North,Permanent Residential,Creedy Court,7901.72, 05-Jul-2016
391,Revenue,CAHD,Bed Purchasing - North,Permanent Residential,Creedy Court,12895.24, 05-Jul-2016
392,Revenue,CAHD,Brokerage and Information Service,Grants to Voluntary Bodies,Curo Care & Support,33845.00, 01-Jul-2016
393,Revenue,CAHD,Bed Purchasing - South,Permanent Residential,Daneswood,11269.36, 05-Jul-2016
394,Revenue,CAHD,Bed Purchasing - North,Permanent Residential,Daneswood,9343.92, 05-Jul-2016
395,Revenue,CAHD,Bed Purchasing - Elderly S117- North,Permanent Nursing,Danshell Healthcare Group,10285.72, 05-Jul-2016
396,Revenue,CAHD,Jointly Funded H&SC Packages,Permanent Nursing,Danshell Healthcare Group,1526.28, 05-Jul-2016
397,Revenue,CAHD,Learning Difficulties PSL,Other Supplies & Services,Individual,2105.50, 22-Jul-2016
398,Revenue,CAHD,Home Care - Elderly - South,Supported Living,Design House,2711.04, 05-Jul-2016
399,Revenue,CAHD,Home Care - Elderly - South,Supported Living,Design House,2898.08, 05-Jul-2016
400,Revenue,CAHD,Home Care - Elderly - South,Supported Living,Design House,2964.08, 05-Jul-2016
401,Revenue,CAHD,Home Care - Elderly - South,Supported Living,Design House,2832.08, 05-Jul-2016
402,Revenue,CAHD,Home Care - Elderly - South,Supported Living,Design House,2496.52, 05-Jul-2016
403,Revenue,CAHD,Home Care - Elderly - South,Supported Living,Design House,2496.52, 05-Jul-2016
404,Revenue,CAHD,Home Care - Elderly - South,Supported Living,Design House,2381.04, 05-Jul-2016
405,Revenue,CAHD,Home Care - Elderly - South,Supported Living,Design House,3852.08, 05-Jul-2016
406,Revenue,CAHD,Home Care - Elderly - South,Supported Living,Design House,2744.04, 05-Jul-2016
407,Revenue,CAHD,Home Care - Elderly - South,Supported Living,Design House,2793.56, 05-Jul-2016
408,Revenue,CAHD,Home Care - Elderly - South,Supported Living,Design House,2135.92, 05-Jul-2016
409,Revenue,CAHD,Home Care - Elderly - South,Supported Living,Design House,2135.92, 05-Jul-2016
410,Revenue,CAHD,Bed Purchasing - South,Permanent Residential,Devon & Cornwall Autistic Community Trus,9082.00, 05-Jul-2016
411,Revenue,CAHD,Bed Purchasing - South,Permanent Residential,Dimensions  Suite 2,5005.24, 05-Jul-2016
412,Revenue,CAHD,Home Care - Elderly - South,Day Care / Social Activities,DoCare Ltd,66.30, 04-Jul-2016
413,Revenue,CAHD,Home Care - Elderly - South,Other Small Contracts,DoCare Ltd,596.70, 04-Jul-2016
414,Revenue,CAHD,Home Care - Elderly - North,Other Small Contracts,DoCare Ltd,2386.80, 04-Jul-2016
415,Revenue,CAHD,Home Care - Elderly - South,Day Care / Social Activities,DoCare Ltd,71.40, 04-Jul-2016
416,Revenue,CAHD,Home Care - Elderly - South,Other Small Contracts,DoCare Ltd,632.40, 04-Jul-2016
417,Revenue,CAHD,Home Care - Elderly - North,Other Small Contracts,DoCare Ltd,2626.50, 04-Jul-2016
418,Revenue,CAHD,Home Care - Elderly - South,Day Care / Social Activities,DoCare Ltd,71.40, 04-Jul-2016
419,Revenue,CAHD,Home Care - Elderly - South,Other Small Contracts,DoCare Ltd,647.70, 04-Jul-2016
420,Revenue,CAHD,Home Care - Elderly - North,Other Small Contracts,DoCare Ltd,2677.50, 04-Jul-2016
421,Revenue,CAHD,Home Care - Elderly - South,Day Care / Social Activities,DoCare Ltd,30.60, 04-Jul-2016
422,Revenue,CAHD,Home Care - Elderly - South,Other Small Contracts,DoCare Ltd,606.90, 04-Jul-2016
423,Revenue,CAHD,Home Care - Elderly - North,Other Small Contracts,DoCare Ltd,2626.50, 04-Jul-2016
424,Revenue,CAHD,MH Purchasing - Younger,Permanent Residential,Dunraven House,1629.48, 05-Jul-2016
425,Revenue,CAHD,Bed and Breakfast,Bed & Breakfast,E J Bartlett,420.00, 11-Jul-2016
426,Revenue,CAHD,Tenancy Start Up Scheme,Other Supplies & Services,Individual,420.00, 04-Jul-2016
427,Revenue,CAHD,Bed and Breakfast,Bed & Breakfast,E J Bartlett,420.00, 07-Jul-2016
428,Revenue,CAHD,Bed and Breakfast,Bed & Breakfast,E J Bartlett,525.00, 05-Jul-2016
429,Revenue,CAHD,Bed and Breakfast,Bed & Breakfast,E J Bartlett,434.00, 14-Jul-2016
430,Revenue,CAHD,Bed and Breakfast,Bed & Breakfast,E J Bartlett,420.00, 14-Jul-2016
431,Revenue,CAHD,Bed and Breakfast,Bed & Breakfast,E J Bartlett,525.00, 14-Jul-2016
432,Revenue,CAHD,Bed and Breakfast,Bed & Breakfast,E J Bartlett,434.00, 20-Jul-2016
433,Revenue,CAHD,Bed and Breakfast,Bed & Breakfast,E J Bartlett,620.00, 27-Jul-2016
434,Revenue,CAHD,Bed and Breakfast,Bed & Breakfast,E J Bartlett,525.00, 20-Jul-2016
435,Revenue,CAHD,Bed and Breakfast,Bed & Breakfast,E J Bartlett,434.00, 27-Jul-2016
436,Revenue,CAHD,Bed and Breakfast,Bed & Breakfast,E J Bartlett,434.00, 27-Jul-2016
437,Revenue,CAHD,Bed and Breakfast,Bed & Breakfast,E J Bartlett,525.00, 27-Jul-2016
438,Revenue,CAHD,Bed Purchasing - North,Permanent Residential,East Court,2273.20, 05-Jul-2016
439,Revenue,CAHD,Home Care - Elderly - South,Day Care / Social Activities,Easton Community Centre,533.28, 05-Jul-2016
440,Revenue,CAHD,Home Care - Elderly - South,Day Care / Social Activities,Easton Community Centre,533.28, 05-Jul-2016
441,Revenue,CAHD,Home Care - Elderly - North,Day Care / Social Activities,Easton Community Centre,533.28, 05-Jul-2016
442,Revenue,CAHD,Home Care - Elderly - North,Day Care / Social Activities,Easton Community Centre,533.28, 05-Jul-2016
443,Revenue,CAHD,Home Care - Elderly - South,Day Care / Social Activities,Eclipse Office Park,753.12, 05-Jul-2016
444,Revenue,CAHD,Home Care - Elderly - North,Day Care / Social Activities,Eclipse Office Park,1004.16, 05-Jul-2016
445,Revenue,CAHD,Home Care - Elderly - South,Day Care / Social Activities,Eclipse Office Park,627.60, 05-Jul-2016
446,Revenue,CAHD,Home Care - Elderly - South,Day Care / Social Activities,Eclipse Office Park,502.08, 05-Jul-2016
447,Revenue,CAHD,Home Care - Elderly - South,Day Care / Social Activities,Eclipse Office Park,502.08, 05-Jul-2016
448,Revenue,CAHD,Home Care - Elderly - South,Day Care / Social Activities,Eclipse Office Park,878.64, 05-Jul-2016
449,Revenue,CAHD,Home Care - Elderly - South,Day Care / Social Activities,Eclipse Office Park,753.12, 05-Jul-2016
450,Revenue,CAHD,Home Care - Elderly - South,Day Care / Social Activities,Eclipse Office Park,878.64, 05-Jul-2016
451,Revenue,CAHD,Home Care - Elderly - South,Day Care / Social Activities,Eclipse Office Park,502.08, 05-Jul-2016
452,Revenue,CAHD,Home Care - Elderly - South,Day Care / Social Activities,Eclipse Office Park,502.08, 05-Jul-2016
453,Revenue,CAHD,Home Care - Elderly - South,Day Care / Social Activities,Eclipse Office Park,1255.20, 05-Jul-2016
454,Revenue,CAHD,Home Care - Elderly - South,Day Care / Social Activities,Eclipse Office Park,753.12, 05-Jul-2016
455,Revenue,CAHD,Home Care - Elderly - South,Day Care / Social Activities,Eclipse Office Park,878.64, 05-Jul-2016
456,Revenue,CAHD,Home Care - Elderly - South,Day Care / Social Activities,Eclipse Office Park,878.64, 05-Jul-2016
457,Revenue,CAHD,Training - Adult Services,Training Expenses,Edge Training & Consultancy Limited,925.00, 22-Jul-2016
458,Revenue,CAHD,Bed Purchasing - Southmead Hospital,Permanent Residential,Edgecumbe Lodge,1800.00, 05-Jul-2016
459,Revenue,CAHD,Bed Purchasing - South,Permanent Residential,Edgecumbe Lodge,1328.72, 05-Jul-2016
460,Revenue,CAHD,Bed Purchasing - South,Permanent Residential,Edgecumbe Lodge,1073.52, 05-Jul-2016
461,Revenue,CAHD,Bed Purchasing - Southmead Hospital,Permanent Residential,Edgecumbe Lodge,1628.76, 05-Jul-2016
462,Revenue,CAHD,Bed Purchasing - South,Permanent Residential,Edgecumbe Lodge,6349.64, 05-Jul-2016
463,Revenue,CAHD,Bed Purchasing - South,Permanent Residential,Edgecumbe Lodge,1605.76, 05-Jul-2016
464,Revenue,CAHD,Bed Purchasing - North,Permanent Residential,Edgecumbe Lodge,1039.76, 05-Jul-2016
465,Revenue,CAHD,Bed Purchasing - South,Permanent Residential,Edgecumbe Lodge,1590.12, 05-Jul-2016
466,Revenue,CAHD,Bed Purchasing - North,Permanent Residential,Edgecumbe Lodge,1465.28, 05-Jul-2016
467,Revenue,CAHD,Bed Purchasing - Southmead Hospital,Permanent Residential,Edgemont House Ltd,4167.82, 05-Jul-2016
468,Revenue,CAHD,Bed Purchasing - Southmead Hospital,Permanent Residential,Edgemont House Ltd,1329.68, 05-Jul-2016
469,Revenue,CAHD,Bed Purchasing - North,Respite Emergency - Residential,Edgemont House Ltd,3044.57, 05-Jul-2016
470,Revenue,CAHD,Bed Purchasing - South,Permanent Residential,Edgemont House Ltd,1332.56, 05-Jul-2016
471,Revenue,CAHD,South Glos Users in South Glos Homes,Permanent Nursing,Edgemont View Nursing Home,1008.00, 05-Jul-2016
472,Revenue,CAHD,Bed Purchasing - South,Permanent Nursing,Edgemont View Nursing Home,1380.64, 05-Jul-2016
473,Revenue,CAHD,South Glos Users in South Glos Homes,Permanent Nursing,Edgemont View Nursing Home,1280.00, 05-Jul-2016
474,Revenue,CAHD,South Glos Users in South Glos Homes,Permanent Nursing,Edgemont View Nursing Home,512.00, 05-Jul-2016
475,Revenue,CAHD,Bed Purchasing - South,Permanent Nursing,Edgemont View Nursing Home,1776.28, 05-Jul-2016
476,Revenue,CAHD,Bed Purchasing - South,Permanent Nursing,Edgemont View Nursing Home,1660.08, 05-Jul-2016
477,Revenue,CAHD,Bed Purchasing - South,Permanent Nursing,Edgemont View Nursing Home,1486.20, 05-Jul-2016
478,Revenue,CAHD,Supporting People Programme,Grants to Voluntary Bodies,Elim Housing Association Limited,5139.16, 01-Jul-2016
479,Revenue,CAHD,Home Care - Elderly - South,Day Care / Social Activities,Elite Home Care Ltd,98.56, 01-Jul-2016
480,Revenue,CAHD,Home Care - Elderly - South,Other Small Contracts,Elite Home Care Ltd,6917.12, 01-Jul-2016
481,Revenue,CAHD,Home Care - Elderly - South,Day Care / Social Activities,Elite Home Care Ltd,98.56, 05-Jul-2016
482,Revenue,CAHD,Home Care - Elderly - South,Other Small Contracts,Elite Home Care Ltd,7306.88, 05-Jul-2016
483,Revenue,CAHD,Home Care - Elderly - South,Day Care / Social Activities,Elite Home Care Ltd,98.56, 08-Jul-2016
484,Revenue,CAHD,Home Care - Elderly - South,Other Small Contracts,Elite Home Care Ltd,7262.08, 08-Jul-2016
485,Revenue,CAHD,Home Care - Elderly - South,Day Care / Social Activities,Elite Home Care Ltd,98.56, 15-Jul-2016
486,Revenue,CAHD,Home Care - Elderly - South,Other Small Contracts,Elite Home Care Ltd,7203.84, 15-Jul-2016
487,Revenue,CAHD,Home Care - Elderly - North,Supported Living,Elite Home Care Ltd,17.92, 15-Jul-2016
488,Revenue,CAHD,Home Care - Elderly - South,Day Care / Social Activities,Elite Home Care Ltd,98.56, 27-Jul-2016
489,Revenue,CAHD,Home Care - Elderly - South,Other Small Contracts,Elite Home Care Ltd,7302.40, 27-Jul-2016
490,Revenue,CAHD,Home Care - Elderly - North,Supported Living,Elite Home Care Ltd,17.92, 27-Jul-2016
491,Revenue,CAHD,Home Care - Elderly - South,Day Care / Social Activities,Elite Home Care Ltd,152.32, 27-Jul-2016
492,Revenue,CAHD,Home Care - Elderly - South,Other Small Contracts,Elite Home Care Ltd,7262.14, 27-Jul-2016
493,Revenue,CAHD,Home Care - Elderly - North,Supported Living,Elite Home Care Ltd,17.92, 27-Jul-2016
494,Revenue,CAHD,Bed Purchasing - North,Permanent Residential,Epworth House,1060.80, 05-Jul-2016
495,Revenue,CAHD,Home Care - Elderly - South,Other Small Contracts,Everycare (Bristol) Ltd,3614.44, 05-Jul-2016
496,Revenue,CAHD,Home Care - Elderly - North,Other Small Contracts,Everycare (Bristol) Ltd,1591.40, 05-Jul-2016
497,Revenue,CAHD,Home Care - Elderly - South,Other Small Contracts,Everycare (Bristol) Ltd,3435.68, 11-Jul-2016
498,Revenue,CAHD,Home Care - Elderly - North,Other Small Contracts,Everycare (Bristol) Ltd,1914.04, 11-Jul-2016
499,Revenue,CAHD,Home Care - Elderly - South,Other Small Contracts,Everycare (Bristol) Ltd,3490.49, 08-Jul-2016
500,Revenue,CAHD,Home Care - Elderly - North,Other Small Contracts,Everycare (Bristol) Ltd,2009.96, 08-Jul-2016
501,Revenue,CAHD,Bed Purchasing - South,Permanent Nursing,Fairview Court,2469.36, 05-Jul-2016
502,Revenue,CAHD,Bed Purchasing - Southmead Hospital,Permanent Nursing,Fairview Court,1910.88, 05-Jul-2016
503,Revenue,CAHD,Bed Purchasing - Southmead Hospital,Permanent Nursing,Fairview Court,2183.72, 05-Jul-2016
504,Revenue,CAHD,Bed Purchasing - South,Permanent Nursing,Fairview Court,1110.52, 05-Jul-2016
505,Revenue,CAHD,Bed purchasing - Elderly S117 - South,Permanent Nursing,Fairview Court,2040.00, 05-Jul-2016
506,Revenue,CAHD,Bed Purchasing - South,Permanent Nursing,Fairview Court,1591.68, 05-Jul-2016
507,Revenue,CAHD,Bed Purchasing - North,Permanent Nursing,Fairview Court,2541.04, 05-Jul-2016
508,Revenue,CAHD,Bed Purchasing - South,Permanent Nursing,Fairview Court,2224.72, 05-Jul-2016
509,Revenue,CAHD,Bed Purchasing - Southmead Hospital,Permanent Nursing,Fairview Court,5058.40, 05-Jul-2016
510,Revenue,CAHD,Bed Purchasing - South,Permanent Nursing,Fairview Court,1894.88, 05-Jul-2016
511,Revenue,CAHD,Bed Purchasing - North,Permanent Nursing,Fairview Court,2485.36, 05-Jul-2016
512,Revenue,CAHD,Bed Purchasing - Southmead Hospital,Permanent Nursing,Fairview Court,1992.63, 05-Jul-2016
513,Revenue,CAHD,Bed Purchasing - South,Permanent Nursing,Fairview Court,1807.52, 05-Jul-2016
514,Revenue,CAHD,Bed Purchasing - South,Permanent Nursing,Fairview Court,2035.76, 05-Jul-2016
515,Revenue,CAHD,Bed Purchasing - South,Permanent Nursing,Fairview Court,1894.88, 05-Jul-2016
516,Revenue,CAHD,Bed purchasing - Elderly S117 - South,Permanent Residential,Fairview House,1963.92, 05-Jul-2016
517,Revenue,CAHD,Bed Purchasing - Southmead Hospital,Permanent Residential,Fairview House,1053.76, 05-Jul-2016
518,Revenue,CAHD,Bed Purchasing - South,Permanent Residential,Fairview House,879.60, 05-Jul-2016
519,Revenue,CAHD,Bed Purchasing - South,Permanent Residential,Fairview House,736.16, 05-Jul-2016
520,Revenue,CAHD,Bed Purchasing - South,Permanent Residential,Fairview House,1285.20, 05-Jul-2016
521,Revenue,CAHD,Bed Purchasing - South,Permanent Residential,Fairview House,983.68, 05-Jul-2016
522,Revenue,CAHD,Bed Purchasing - South,Permanent Residential,Fairview House,1238.52, 05-Jul-2016
523,Revenue,CAHD,Bed Purchasing - South,Permanent Residential,Fairview House,1146.52, 05-Jul-2016
524,Revenue,CAHD,Bed Purchasing - South,Permanent Residential,Fairview House,1365.00, 05-Jul-2016
525,Revenue,CAHD,Bed Purchasing - South,Permanent Residential,Fairview House,1054.60, 05-Jul-2016
526,Revenue,CAHD,Bed Purchasing - South,Permanent Residential,Fairview House,1475.08, 05-Jul-2016
527,Revenue,CAHD,Bed Purchasing - Southmead Hospital,Permanent Residential,Faith House,571.68, 05-Jul-2016
528,Revenue,CAHD,Bed Purchasing - Southmead Hospital,Permanent Residential,Faith House,1254.20, 05-Jul-2016
529,Revenue,CAHD,Bed Purchasing - North,Permanent Residential,Fernbank,7900.60, 05-Jul-2016
530,Revenue,CAHD,Swift Dump Code,Permanent Residential,Field House Care Home,12816.49, 05-Jul-2016
531,Revenue,CAHD,Bed Purchasing - North,Permanent Nursing,Field House Care Home,2554.96, 05-Jul-2016
532,Revenue,CAHD,Bed Purchasing - Southmead Hospital,Permanent Nursing,Field House Care Home,2227.92, 05-Jul-2016
533,Revenue,CAHD,Home Care - Elderly - South,Other Small Contracts,Firstpoint Homecare Ltd,1437.80, 15-Jul-2016
534,Revenue,CAHD,Home Care - Elderly - North,Day Care / Social Activities,Firstpoint Homecare Ltd,118.50, 15-Jul-2016
535,Revenue,CAHD,Home Care - Elderly - North,Other Small Contracts,Firstpoint Homecare Ltd,323.90, 15-Jul-2016
536,Revenue,CAHD,Home Care - Elderly - South,Other Small Contracts,Firstpoint Homecare Ltd,1422.00, 15-Jul-2016
537,Revenue,CAHD,Home Care - Elderly - North,Day Care / Social Activities,Firstpoint Homecare Ltd,122.45, 15-Jul-2016
538,Revenue,CAHD,Home Care - Elderly - North,Other Small Contracts,Firstpoint Homecare Ltd,327.86, 15-Jul-2016
539,Revenue,CAHD,Home Care - Elderly - South,Other Small Contracts,Firstpoint Homecare Ltd,1765.65, 15-Jul-2016
540,Revenue,CAHD,Home Care - Elderly - North,Day Care / Social Activities,Firstpoint Homecare Ltd,114.55, 15-Jul-2016
541,Revenue,CAHD,Home Care - Elderly - North,Other Small Contracts,Firstpoint Homecare Ltd,375.25, 15-Jul-2016
542,Revenue,CAHD,Home Care - Elderly - South,Other Small Contracts,Firstpoint Homecare Ltd,1647.15, 15-Jul-2016
543,Revenue,CAHD,Home Care - Elderly - North,Day Care / Social Activities,Firstpoint Homecare Ltd,126.40, 15-Jul-2016
544,Revenue,CAHD,Home Care - Elderly - North,Other Small Contracts,Firstpoint Homecare Ltd,343.65, 15-Jul-2016
545,Revenue,CAHD,Home Care - Elderly - South,Other Small Contracts,Firstpoint Homecare Ltd,1607.65, 15-Jul-2016
546,Revenue,CAHD,Home Care - Elderly - North,Day Care / Social Activities,Firstpoint Homecare Ltd,118.50, 15-Jul-2016
547,Revenue,CAHD,Home Care - Elderly - North,Other Small Contracts,Firstpoint Homecare Ltd,379.20, 15-Jul-2016
548,Revenue,CAHD,Home Care - Elderly - South,Other Small Contracts,Firstpoint Homecare Ltd,1659.00, 15-Jul-2016
549,Revenue,CAHD,Home Care - Elderly - North,Day Care / Social Activities,Firstpoint Homecare Ltd,118.50, 15-Jul-2016
550,Revenue,CAHD,Home Care - Elderly - North,Other Small Contracts,Firstpoint Homecare Ltd,335.75, 15-Jul-2016
551,Revenue,CAHD,Home Care - Elderly - South,Other Small Contracts,Firstpoint Homecare Ltd,1678.75, 15-Jul-2016
552,Revenue,CAHD,Home Care - Elderly - North,Day Care / Social Activities,Firstpoint Homecare Ltd,114.55, 15-Jul-2016
553,Revenue,CAHD,Home Care - Elderly - North,Other Small Contracts,Firstpoint Homecare Ltd,375.25, 15-Jul-2016
554,Revenue,CAHD,Bed Purchasing - South,Permanent Residential,Four Seasons Health Care,1147.24, 05-Jul-2016
555,Revenue,CAHD,Home Care - Elderly - South,Day Care / Social Activities,Fourways Care Limited,437.97, 01-Jul-2016
556,Revenue,CAHD,Home Care - Elderly - South,Other Small Contracts,Fourways Care Limited,4846.46, 01-Jul-2016
557,Revenue,CAHD,Home Care - Elderly - North,Other Small Contracts,Fourways Care Limited,3906.87, 01-Jul-2016
558,Revenue,CAHD,Younger MH non-res purchasing,Day Care / Social Activities,Fourways Care Limited,59.08, 01-Jul-2016
559,Revenue,CAHD,Younger MH non-res purchasing,Other Small Contracts,Fourways Care Limited,162.16, 01-Jul-2016
560,Revenue,CAHD,Home Care - Elderly - South,Day Care / Social Activities,Fourways Care Limited,395.24, 05-Jul-2016
561,Revenue,CAHD,Home Care - Elderly - South,Other Small Contracts,Fourways Care Limited,4970.42, 05-Jul-2016
562,Revenue,CAHD,Home Care - Elderly - North,Other Small Contracts,Fourways Care Limited,3701.22, 05-Jul-2016
563,Revenue,CAHD,Home Care - Elderly - North,Supported Living,Fourways Care Limited,48.20, 05-Jul-2016
564,Revenue,CAHD,Younger MH non-res purchasing,Day Care / Social Activities,Fourways Care Limited,57.84, 05-Jul-2016
565,Revenue,CAHD,Younger MH non-res purchasing,Other Small Contracts,Fourways Care Limited,163.88, 05-Jul-2016
566,Revenue,CAHD,Home Care - Elderly - South,Day Care / Social Activities,Fourways Care Limited,395.24, 11-Jul-2016
567,Revenue,CAHD,Home Care - Elderly - South,Other Small Contracts,Fourways Care Limited,4917.46, 11-Jul-2016
568,Revenue,CAHD,Home Care - Elderly - North,Day Care / Social Activities,Fourways Care Limited,57.84, 11-Jul-2016
569,Revenue,CAHD,Home Care - Elderly - North,Other Small Contracts,Fourways Care Limited,3681.14, 11-Jul-2016
570,Revenue,CAHD,Younger MH non-res purchasing,Other Small Contracts,Fourways Care Limited,159.06, 11-Jul-2016
571,Revenue,CAHD,Home Care - Elderly - South,Day Care / Social Activities,Fourways Care Limited,467.54, 12-Jul-2016
572,Revenue,CAHD,Home Care - Elderly - South,Other Small Contracts,Fourways Care Limited,5173.60, 12-Jul-2016
573,Revenue,CAHD,Home Care - Elderly - North,Day Care / Social Activities,Fourways Care Limited,77.12, 12-Jul-2016
574,Revenue,CAHD,Home Care - Elderly - North,Other Small Contracts,Fourways Care Limited,4203.80, 12-Jul-2016
575,Revenue,CAHD,Younger MH non-res purchasing,Other Small Contracts,Fourways Care Limited,144.60, 12-Jul-2016
576,Revenue,CAHD,Home Care - Elderly - South,Day Care / Social Activities,Fourways Care Limited,544.66, 27-Jul-2016
577,Revenue,CAHD,Home Care - Elderly - South,Other Small Contracts,Fourways Care Limited,4874.76, 27-Jul-2016
578,Revenue,CAHD,Home Care - Elderly - North,Day Care / Social Activities,Fourways Care Limited,57.84, 27-Jul-2016
579,Revenue,CAHD,Home Care - Elderly - North,Other Small Contracts,Fourways Care Limited,3705.24, 27-Jul-2016
580,Revenue,CAHD,Younger MH non-res purchasing,Other Small Contracts,Fourways Care Limited,163.88, 27-Jul-2016
581,Revenue,CAHD,Home Care - Elderly - South,Day Care / Social Activities,Fourways Care Limited,515.74, 27-Jul-2016
582,Revenue,CAHD,Home Care - Elderly - South,Other Small Contracts,Fourways Care Limited,4961.52, 27-Jul-2016
583,Revenue,CAHD,Home Care - Elderly - North,Day Care / Social Activities,Fourways Care Limited,57.84, 27-Jul-2016
584,Revenue,CAHD,Home Care - Elderly - North,Other Small Contracts,Fourways Care Limited,3573.74, 27-Jul-2016
585,Revenue,CAHD,Younger MH non-res purchasing,Other Small Contracts,Fourways Care Limited,159.06, 27-Jul-2016
586,Revenue,CAHD,Supporting People Programme,Grants to Voluntary Bodies,Freeways Trust Limited,6922.11, 01-Jul-2016
587,Revenue,CAHD,Freeways,Permanent Residential,Freeways Trust Limited,3705.32, 25-Jul-2016
588,Revenue,CAHD,Freeways,Permanent Residential,Freeways Trust Limited,2331.13, 25-Jul-2016
589,Revenue,CAHD,Freeways,Permanent Residential,Freeways Trust Limited,2409.93, 25-Jul-2016
590,Revenue,CAHD,Freeways,Permanent Residential,Freeways Trust Limited,3393.81, 25-Jul-2016
591,Revenue,CAHD,Freeways,Permanent Residential,Freeways Trust Limited,2331.13, 25-Jul-2016
592,Revenue,CAHD,Freeways,Permanent Residential,Freeways Trust Limited,3454.92, 25-Jul-2016
593,Revenue,CAHD,Freeways,Permanent Residential,Freeways Trust Limited,2731.73, 25-Jul-2016
594,Revenue,CAHD,Freeways,Permanent Residential,Freeways Trust Limited,3614.51, 25-Jul-2016
595,Revenue,CAHD,Freeways,Permanent Residential,Freeways Trust Limited,2731.73, 25-Jul-2016
596,Revenue,CAHD,Freeways,Permanent Residential,Freeways Trust Limited,2749.17, 25-Jul-2016
597,Revenue,CAHD,Freeways,Permanent Residential,Freeways Trust Limited,3508.85, 25-Jul-2016
598,Revenue,CAHD,Freeways,Permanent Residential,Freeways Trust Limited,3158.33, 25-Jul-2016
599,Revenue,CAHD,Freeways,Permanent Residential,Freeways Trust Limited,651.18, 25-Jul-2016
600,Revenue,CAHD,Freeways,Permanent Residential,Freeways Trust Limited,9699.16, 25-Jul-2016
601,Revenue,CAHD,Bed Purchasing - North,Permanent Residential,Freeways Trust Ltd,2935.68, 05-Jul-2016
602,Revenue,CAHD,Bed purchasing - S28A Under 65 - South,Permanent Residential,Freeways Trust Ltd,2997.08, 05-Jul-2016
603,Revenue,CAHD,Bed Purchasing - North,Permanent Residential,Freeways Trust Ltd,3212.08, 05-Jul-2016
604,Revenue,CAHD,Bed Purchasing - North,Permanent Residential,Freeways Trust Ltd,2348.56, 05-Jul-2016
605,Revenue,CAHD,Bed Purchasing - North,Permanent Residential,Freeways Trust Ltd,2803.84, 05-Jul-2016
606,Revenue,CAHD,Bed Purchasing - South,Permanent Residential,Freeways Trust Ltd,3347.36, 05-Jul-2016
607,Revenue,CAHD,Bed Purchasing - North,Permanent Residential,Freeways Trust Ltd,2307.20, 05-Jul-2016
608,Revenue,CAHD,Bed Purchasing - South,Permanent Residential,Freeways Trust Ltd,2458.68, 05-Jul-2016
609,Revenue,CAHD,Bed Purchasing - North,Permanent Residential,Freeways Trust Ltd,2725.04, 05-Jul-2016
610,Revenue,CAHD,Bed Purchasing - North,Permanent Residential,Freeways Trust Ltd,3218.36, 05-Jul-2016
611,Revenue,CAHD,18-25 Year Olds,Permanent Residential,Freeways Trust Ltd,3456.00, 05-Jul-2016
612,Revenue,CAHD,Bed Purchasing - North,Permanent Residential,Freeways Trust Ltd,3924.12, 05-Jul-2016
613,Revenue,CAHD,Pathway 3 - (Complex Beds),Permanent Nursing,Frenchay House,3162.00, 18-Jul-2016
614,Revenue,CAHD,Bed Purchasing - South,Permanent Nursing,Fshc  1St Floor,2907.20, 05-Jul-2016
615,Revenue,CAHD,Bed Purchasing - South,Permanent Nursing,Fshc  1St Floor,911.04, 05-Jul-2016
616,Revenue,CAHD,Swift Dump Code,Permanent Residential,Fshc  1St Floor,740.70, 05-Jul-2016
617,Revenue,CAHD,Bed Purchasing - South,Permanent Nursing,Fshc  1St Floor,561.24, 05-Jul-2016
618,Revenue,CAHD,Bed Purchasing - South,Permanent Nursing,Fshc  1St Floor,12346.62, 05-Jul-2016
619,Revenue,CAHD,Bed Purchasing - South,Permanent Nursing,Fshc  1St Floor,1067.64, 05-Jul-2016
620,Revenue,CAHD,Bed Purchasing - Southmead Hospital,Permanent Residential,Fshc  1St Floor,897.96, 05-Jul-2016
621,Revenue,CAHD,Bed Purchasing - South,Permanent Nursing,Fshc  1St Floor,1021.32, 05-Jul-2016
622,Revenue,CAHD,Bed Purchasing - Southmead Hospital,Permanent Nursing,Fshc  1St Floor,1324.44, 05-Jul-2016
623,Revenue,CAHD,Bed Purchasing - Southmead Hospital,Permanent Nursing,Fshc  1St Floor,1371.08, 05-Jul-2016
624,Revenue,CAHD,South Glos Users in South Glos Homes,Permanent Nursing,Fshc  1St Floor,1344.00, 05-Jul-2016
625,Revenue,CAHD,Bed Purchasing - Southmead Hospital,Permanent Nursing,Fshc  1St Floor,1407.08, 05-Jul-2016
626,Revenue,CAHD,Bed Purchasing - Southmead Hospital,Permanent Nursing,Fshc  1St Floor,1082.08, 05-Jul-2016
627,Revenue,CAHD,Bed Purchasing - South,Permanent Nursing,Fshc  1St Floor,1759.84, 05-Jul-2016
628,Revenue,CAHD,Bed Purchasing - Southmead Hospital,Permanent Nursing,Fshc  1St Floor,1759.84, 05-Jul-2016
629,Revenue,CAHD,Bed Purchasing - Southmead Hospital,Permanent Nursing,Fshc  1St Floor,1407.08, 05-Jul-2016
630,Revenue,CAHD,Bed Purchasing - South,Permanent Nursing,Fshc  1St Floor,1361.88, 05-Jul-2016
631,Revenue,CAHD,Bed Purchasing - Southmead Hospital,Permanent Nursing,Fshc  1St Floor,1407.08, 05-Jul-2016
632,Revenue,CAHD,Bed Purchasing - South,Permanent Nursing,Fshc  1St Floor,1186.80, 05-Jul-2016
633,Revenue,CAHD,Bed Purchasing - North,Permanent Nursing,Fshc  1St Floor,1929.88, 05-Jul-2016
634,Revenue,CAHD,Bed Purchasing - Southmead Hospital,Permanent Nursing,Fshc  1St Floor,1222.52, 05-Jul-2016
635,Revenue,CAHD,Bed Purchasing - South,Permanent Nursing,Fshc  1St Floor,1407.08, 05-Jul-2016
636,Revenue,CAHD,Bed Purchasing - South,Permanent Nursing,Fshc  1St Floor,1371.36, 05-Jul-2016
637,Revenue,CAHD,Bed Purchasing - North,Permanent Nursing,Fshc  1St Floor,1590.48, 05-Jul-2016
638,Revenue,CAHD,Bed Purchasing - Southmead Hospital,Permanent Nursing,Fshc  1St Floor,1407.08, 05-Jul-2016
639,Revenue,CAHD,South Glos Users in South Glos Homes,Permanent Nursing,Fshc  1St Floor,896.00, 05-Jul-2016
640,Revenue,CAHD,Bed Purchasing - North,Permanent Nursing,Fshc  1St Floor,1110.16, 05-Jul-2016
641,Revenue,CAHD,Bed Purchasing - North,Permanent Residential,Fshc  1St Floor,1277.20, 05-Jul-2016
642,Revenue,CAHD,Bed Purchasing - South,Permanent Nursing,Fshc  1St Floor,1381.20, 05-Jul-2016
643,Revenue,CAHD,Bed Purchasing - South,Permanent Nursing,Fshc  1St Floor,937.24, 05-Jul-2016
644,Revenue,CAHD,Bed Purchasing - Southmead Hospital,Permanent Nursing,Fshc  1St Floor,1037.16, 05-Jul-2016
645,Revenue,CAHD,Bed Purchasing - Southmead Hospital,Permanent Nursing,Fshc  1St Floor,1642.24, 05-Jul-2016
646,Revenue,CAHD,Bed Purchasing - North,Permanent Nursing,Fshc  1St Floor,1402.36, 05-Jul-2016
647,Revenue,CAHD,South Glos Users in South Glos Homes,Permanent Nursing,Fshc  1St Floor,1280.00, 05-Jul-2016
648,Revenue,CAHD,South Glos Users in South Glos Homes,Permanent Nursing,Fshc  1St Floor,880.00, 05-Jul-2016
649,Revenue,CAHD,Bed Purchasing - Southmead Hospital,Permanent Nursing,Fshc  1St Floor,947.52, 05-Jul-2016
650,Revenue,CAHD,Bed Purchasing - Southmead Hospital,Permanent Residential,Fshc  1St Floor,1173.92, 05-Jul-2016
651,Revenue,CAHD,Bed Purchasing - Southmead Hospital,Permanent Nursing,Fshc  1St Floor,1120.64, 05-Jul-2016
652,Revenue,CAHD,Bed Purchasing - Southmead Hospital,Permanent Nursing,Fshc  1St Floor,1144.60, 05-Jul-2016
653,Revenue,CAHD,Bed Purchasing - Southmead Hospital,Permanent Nursing,Fshc  1St Floor,1407.08, 05-Jul-2016
654,Revenue,CAHD,Bed Purchasing - North,Permanent Nursing,Fshc  1St Floor,1342.64, 05-Jul-2016
655,Revenue,CAHD,Bed Purchasing - North,Permanent Nursing,Fshc  1St Floor,1228.80, 05-Jul-2016
656,Revenue,CAHD,Bed Purchasing - North,Permanent Residential,Fshc  1St Floor,3071.80, 05-Jul-2016
657,Revenue,CAHD,Bed Purchasing - North,Permanent Residential,Fshc  1St Floor,1228.72, 05-Jul-2016
658,Revenue,CAHD,South Glos Users in South Glos Homes,Permanent Nursing,Fshc  1St Floor,640.00, 05-Jul-2016
659,Revenue,CAHD,Bed Purchasing - South,Permanent Residential,Fshc  1St Floor,1162.00, 05-Jul-2016
660,Revenue,CAHD,Bed Purchasing - Southmead Hospital,Permanent Nursing,Fshc  1St Floor,2108.28, 05-Jul-2016
661,Revenue,CAHD,Bed Purchasing - Southmead Hospital,Permanent Nursing,Fshc  1St Floor,1407.08, 05-Jul-2016
662,Revenue,CAHD,Bed Purchasing - Southmead Hospital,Permanent Nursing,Fshc  1St Floor,1407.08, 05-Jul-2016
663,Revenue,CAHD,Bed Purchasing - North,Permanent Nursing,Fshc  1St Floor,558.32, 05-Jul-2016
664,Revenue,CAHD,Bed Purchasing - Southmead Hospital,Permanent Residential,Fshc  1St Floor,630.08, 05-Jul-2016
665,Revenue,CAHD,Bed Purchasing - Southmead Hospital,Permanent Residential,Fshc  1St Floor,1265.60, 05-Jul-2016
666,Revenue,CAHD,Bed Purchasing - North,Permanent Nursing,Fshc  1St Floor,1288.00, 05-Jul-2016
667,Revenue,CAHD,Bed Purchasing - North,Permanent Nursing,Fshc  1St Floor,920.76, 05-Jul-2016
668,Revenue,CAHD,Bed Purchasing - North,Permanent Nursing,Fshc  1St Floor,1407.08, 05-Jul-2016
669,Revenue,CAHD,Bed Purchasing - North,Permanent Nursing,Fshc  1St Floor,1592.28, 05-Jul-2016
670,Revenue,CAHD,Bed Purchasing - North,Permanent Residential,Fshc  1St Floor,1439.96, 05-Jul-2016
671,Revenue,CAHD,Bed Purchasing - North,Permanent Nursing,Fshc  1St Floor,1019.48, 05-Jul-2016
672,Revenue,CAHD,Bed Purchasing - North,Permanent Nursing,Fshc  1St Floor,1929.88, 05-Jul-2016
673,Revenue,CAHD,Bed Purchasing - North,Permanent Residential,Fshc  1St Floor,1281.48, 05-Jul-2016
674,Revenue,CAHD,Bed Purchasing - Southmead Hospital,Permanent Nursing,Fshc  1St Floor,1120.76, 05-Jul-2016
675,Revenue,CAHD,Bed Purchasing - North,Permanent Nursing,Fshc  1St Floor,1439.08, 05-Jul-2016
676,Revenue,CAHD,Bed Purchasing - North,Permanent Residential,Fshc  1St Floor,1440.32, 05-Jul-2016
677,Revenue,CAHD,Bed Purchasing - North,Permanent Nursing,Fshc  1St Floor,1613.48, 05-Jul-2016
678,Revenue,CAHD,Bed Purchasing - North,Permanent Nursing,Fshc  1St Floor,1407.08, 05-Jul-2016
679,Revenue,CAHD,Bed Purchasing - Southmead Hospital,Permanent Nursing,Fshc  1St Floor,8640.70, 05-Jul-2016
680,Revenue,CAHD,Bed Purchasing - Southmead Hospital,Permanent Nursing,Fshc  1St Floor,4019.13, 05-Jul-2016
681,Revenue,CAHD,Bed Purchasing - Southmead Hospital,Permanent Nursing,Fshc  1St Floor,1085.32, 05-Jul-2016
682,Revenue,CAHD,Bed Purchasing - Southmead Hospital,Respite Emergency - Nursing,Fshc  1St Floor,503.00, 05-Jul-2016
683,Revenue,CAHD,Bed Purchasing - South,Permanent Nursing,Fshc  1St Floor,1427.08, 05-Jul-2016
684,Revenue,CAHD,Bed Purchasing - Southmead Hospital,Permanent Nursing,Fshc  1St Floor,1207.68, 05-Jul-2016
685,Revenue,CAHD,Bed Purchasing - North,Permanent Nursing,Fshc  1St Floor,1126.56, 05-Jul-2016
686,Revenue,CAHD,Bed Purchasing - South,Permanent Residential,Fshc  1St Floor,539.32, 05-Jul-2016
687,Revenue,CAHD,Bed Purchasing - North,Permanent Nursing,Fshc  1St Floor,1066.80, 05-Jul-2016
688,Revenue,CAHD,Bed Purchasing - Southmead Hospital,Permanent Residential,Fshc  1St Floor,1185.64, 05-Jul-2016
689,Revenue,CAHD,Bed Purchasing - Southmead Hospital,Permanent Nursing,Fshc  1St Floor,1361.84, 05-Jul-2016
690,Revenue,CAHD,Bed Purchasing - North,Permanent Nursing,Fshc  1St Floor,1031.92, 05-Jul-2016
691,Revenue,CAHD,Bed Purchasing - North,Permanent Nursing,Fshc  1St Floor,1319.72, 05-Jul-2016
692,Revenue,CAHD,Bed Purchasing - North,Permanent Nursing,Fshc  1St Floor,1516.80, 05-Jul-2016
693,Revenue,CAHD,Bed Purchasing - Southmead Hospital,Permanent Nursing,Fshc  1St Floor,594.56, 05-Jul-2016
694,Revenue,CAHD,Bed Purchasing - Southmead Hospital,Permanent Nursing,Fshc  1St Floor,1407.08, 05-Jul-2016
695,Revenue,CAHD,Bed Purchasing - Southmead Hospital,Permanent Nursing,Fshc  1St Floor,1407.08, 05-Jul-2016
696,Revenue,CAHD,Bed Purchasing - North,Permanent Nursing,Fshc  1St Floor,1383.08, 05-Jul-2016
697,Revenue,CAHD,Swift Dump Code,Permanent Residential,Fshc  1St Floor,2830.40, 05-Jul-2016
698,Revenue,CAHD,Swift Dump Code,Permanent Residential,Fshc  1St Floor,1307.41, 05-Jul-2016
699,Revenue,CAHD,Bed Purchasing - Southmead Hospital,Permanent Nursing,Fshc  1St Floor,1132.16, 05-Jul-2016
700,Revenue,CAHD,Bed Purchasing - Southmead Hospital,Permanent Nursing,Fshc  1St Floor,1109.00, 05-Jul-2016
701,Revenue,CAHD,Bed Purchasing - North,Permanent Residential,Fshc  1St Floor,3082.56, 05-Jul-2016
702,Revenue,CAHD,Bed Purchasing - North,Permanent Nursing,Fshc  1St Floor,1413.40, 05-Jul-2016
703,Revenue,CAHD,Bed Purchasing - South,Respite Planned - Residential,Fshc  1St Floor,12480.71, 05-Jul-2016
704,Revenue,CAHD,Bed Purchasing - South,Permanent Nursing,Fshc  1St Floor,1211.24, 05-Jul-2016
705,Revenue,CAHD,Bed Purchasing - South,Permanent Nursing,Fshc  1St Floor,1311.52, 05-Jul-2016
706,Revenue,CAHD,Bed Purchasing - Southmead Hospital,Permanent Nursing,Fshc  1St Floor,1352.84, 05-Jul-2016
707,Revenue,CAHD,Bed Purchasing - South,Permanent Nursing,Fshc  1St Floor,1929.88, 05-Jul-2016
708,Revenue,CAHD,Bed Purchasing - Southmead Hospital,Permanent Residential,Fshc  1St Floor,1504.00, 05-Jul-2016
709,Revenue,CAHD,Bed Purchasing - North,Permanent Residential,Fshc  1St Floor,1198.12, 05-Jul-2016
710,Revenue,CAHD,Bed Purchasing - North,Permanent Nursing,Fshc  1St Floor,1157.00, 05-Jul-2016
711,Revenue,CAHD,South Glos Users in South Glos Homes,Permanent Nursing,Fshc  1St Floor,2192.00, 05-Jul-2016
712,Revenue,CAHD,South Glos Users in South Glos Homes,Permanent Nursing,Fshc  1St Floor,1280.00, 05-Jul-2016
713,Revenue,CAHD,Bed Purchasing - South,Permanent Residential,Fshc  1St Floor,1067.00, 05-Jul-2016
714,Revenue,CAHD,South Glos Users in South Glos Homes,Permanent Nursing,Fshc  1St Floor,3360.00, 05-Jul-2016
715,Revenue,CAHD,Bed Purchasing - South,Permanent Nursing,Fshc  1St Floor,1399.08, 05-Jul-2016
716,Revenue,CAHD,South Glos Users in South Glos Homes,Permanent Nursing,Fshc  1St Floor,1280.00, 05-Jul-2016
717,Revenue,CAHD,Bed Purchasing - Southmead Hospital,Permanent Nursing,Fshc  1St Floor,1407.08, 05-Jul-2016
718,Revenue,CAHD,Bed Purchasing - South,Permanent Nursing,Fshc  1St Floor,1135.32, 05-Jul-2016
719,Revenue,CAHD,Bed Purchasing - South,Respite Planned - Residential,Fshc  1St Floor,2200.00, 05-Jul-2016
720,Revenue,CAHD,Bed Purchasing - South,Respite Planned - Residential,Fshc  1St Floor,1335.71, 05-Jul-2016
721,Revenue,CAHD,Bed Purchasing - South,Respite Planned - Residential,Fshc  1St Floor,550.00, 05-Jul-2016
722,Revenue,CAHD,Bed Purchasing - Southmead Hospital,Permanent Nursing,Fshc  1St Floor,1396.04, 05-Jul-2016
723,Revenue,CAHD,Bed Purchasing - Southmead Hospital,Permanent Nursing,Fshc  1St Floor,1270.48, 05-Jul-2016
724,Revenue,CAHD,Bed Purchasing - Southmead Hospital,Permanent Nursing,Fshc  1St Floor,1707.12, 05-Jul-2016
725,Revenue,CAHD,Bed Purchasing - South,Permanent Nursing,Fshc  1St Floor,1253.32, 05-Jul-2016
726,Revenue,CAHD,Bed Purchasing - Southmead Hospital,Permanent Nursing,Fshc  1St Floor,1322.44, 05-Jul-2016
727,Revenue,CAHD,Bed Purchasing - Southmead Hospital,Respite Emergency - Residential,Fshc  1St Floor,4871.43, 05-Jul-2016
728,Revenue,CAHD,Bed Purchasing - Southmead Hospital,Respite Planned - Residential,Fshc  1St Floor,3300.00, 05-Jul-2016
729,Revenue,CAHD,Bed Purchasing - Southmead Hospital,Respite Planned - Residential,Fshc  1St Floor,2692.86, 05-Jul-2016
730,Revenue,CAHD,Bed Purchasing - South,Permanent Residential,Fshc  1St Floor,1277.20, 05-Jul-2016
731,Revenue,CAHD,Bed Purchasing - Southmead Hospital,Permanent Nursing,Fshc  1St Floor,1407.08, 05-Jul-2016
732,Revenue,CAHD,Bed Purchasing - South,Permanent Nursing,Fshc  1St Floor,1476.00, 05-Jul-2016
733,Revenue,CAHD,Bed Purchasing - Southmead Hospital,Permanent Nursing,Fshc  1St Floor,1407.08, 05-Jul-2016
734,Revenue,CAHD,Bed Purchasing - Southmead Hospital,Permanent Nursing,Fshc  1St Floor,1342.52, 05-Jul-2016
735,Revenue,CAHD,Bed Purchasing - Southmead Hospital,Permanent Residential,Fshc  1St Floor,1508.00, 05-Jul-2016
736,Revenue,CAHD,Bed Purchasing - Southmead Hospital,Permanent Residential,Fshc  1St Floor,1142.12, 05-Jul-2016
737,Revenue,CAHD,Bed Purchasing - South,Permanent Nursing,Fshc  1St Floor,1420.32, 05-Jul-2016
738,Revenue,CAHD,Bed Purchasing - South,Permanent Nursing,Fshc  1St Floor,1878.20, 05-Jul-2016
739,Revenue,CAHD,South Glos Users in South Glos Homes,Permanent Nursing,Fshc  1St Floor,1280.00, 05-Jul-2016
740,Revenue,CAHD,Bed Purchasing - South,Permanent Nursing,Fshc  1St Floor,1155.60, 05-Jul-2016
741,Revenue,CAHD,South Glos Users in South Glos Homes,Permanent Nursing,Fshc  1St Floor,1008.00, 05-Jul-2016
742,Revenue,CAHD,Bed Purchasing - South,Permanent Residential,Fshc  1St Floor,1403.52, 05-Jul-2016
743,Revenue,CAHD,Bed Purchasing - South,Permanent Nursing,Fshc  1St Floor,1407.08, 05-Jul-2016
744,Revenue,CAHD,Bed Purchasing - South,Permanent Nursing,Fshc  1St Floor,1271.04, 05-Jul-2016
745,Revenue,CAHD,Bed Purchasing - Southmead Hospital,Permanent Nursing,Fshc  1St Floor,2309.36, 05-Jul-2016
746,Revenue,CAHD,Bed Purchasing - South,Permanent Nursing,Fshc  1St Floor,1435.08, 05-Jul-2016
747,Revenue,CAHD,Bed Purchasing - Southmead Hospital,Respite Planned - Nursing,Fshc  1St Floor,1904.00, 05-Jul-2016
748,Revenue,CAHD,Bed purchasing - Elderly S117 - South,Permanent Nursing,Fshc  1St Floor,1929.88, 05-Jul-2016
749,Revenue,CAHD,Bed Purchasing - South,Permanent Nursing,Fshc  1St Floor,1148.60, 05-Jul-2016
750,Revenue,CAHD,Bed Purchasing - Southmead Hospital,Permanent Nursing,Fshc  1St Floor,1255.20, 05-Jul-2016
751,Revenue,CAHD,Bed Purchasing - Southmead Hospital,Permanent Nursing,Fshc  1St Floor,1319.20, 05-Jul-2016
752,Revenue,CAHD,Bed Purchasing - Southmead Hospital,Permanent Nursing,Fshc  1St Floor,1407.08, 05-Jul-2016
753,Revenue,CAHD,Bed Purchasing - South,Permanent Nursing,Fshc  1St Floor,1271.00, 05-Jul-2016
754,Revenue,CAHD,Bed Purchasing - Southmead Hospital,Permanent Residential,Fshc  1St Floor,568.80, 05-Jul-2016
755,Revenue,CAHD,Bed Purchasing - North,Permanent Nursing,Fshc  1St Floor,1374.40, 05-Jul-2016
756,Revenue,CAHD,Bed Purchasing - North,Permanent Nursing,Fshc  1St Floor,1342.90, 05-Jul-2016
757,Revenue,CAHD,Bed Purchasing - North,Respite Planned - Nursing,Fshc  1St Floor,2062.30, 05-Jul-2016
758,Revenue,CAHD,Bed Purchasing - Southmead Hospital,Respite Emergency - Residential,Fshc  1St Floor,2087.12, 05-Jul-2016
759,Revenue,CAHD,Bed Purchasing - Southmead Hospital,Respite Emergency - Residential,Fshc  1St Floor,894.48, 05-Jul-2016
760,Revenue,CAHD,Bed Purchasing - North,Permanent Nursing,Fshc  1St Floor,1380.08, 05-Jul-2016
761,Revenue,CAHD,Bed Purchasing - Southmead Hospital,Permanent Nursing,Fshc  1St Floor,1438.72, 05-Jul-2016
762,Revenue,CAHD,Bed Purchasing - Southmead Hospital,Respite Planned - Nursing,Fshc  1St Floor,2189.48, 05-Jul-2016
763,Revenue,CAHD,Bed Purchasing - Southmead Hospital,Respite Planned - Nursing,Fshc  1St Floor,1329.33, 05-Jul-2016
764,Revenue,CAHD,Bed Purchasing - North,Permanent Nursing,Fshc  1St Floor,858.32, 05-Jul-2016
765,Revenue,CAHD,Bed Purchasing - North,Permanent Nursing,Fshc  1St Floor,1517.20, 05-Jul-2016
766,Revenue,CAHD,Bed Purchasing - Southmead Hospital,Permanent Nursing,Fshc  1St Floor,4212.98, 05-Jul-2016
767,Revenue,CAHD,Bed Purchasing - Southmead Hospital,Permanent Nursing,Fshc  1St Floor,1361.20, 05-Jul-2016
768,Revenue,CAHD,Bed Purchasing - Southmead Hospital,Permanent Nursing,Fshc  1St Floor,1517.20, 05-Jul-2016
769,Revenue,CAHD,Bed Purchasing - North,Permanent Nursing,Fshc  1St Floor,1388.92, 05-Jul-2016
770,Revenue,CAHD,Bed Purchasing - North,Permanent Nursing,Fshc  1St Floor,1317.40, 05-Jul-2016
771,Revenue,CAHD,Bed Purchasing - Southmead Hospital,Permanent Nursing,Fshc  1St Floor,1585.48, 05-Jul-2016
772,Revenue,CAHD,Bed Purchasing - Southmead Hospital,Permanent Residential,Fshc  1St Floor,1266.60, 05-Jul-2016
773,Revenue,CAHD,Bed Purchasing - Southmead Hospital,Permanent Nursing,Fshc  1St Floor,1397.44, 05-Jul-2016
774,Revenue,CAHD,Bed Purchasing - Southmead Hospital,Permanent Nursing,Fshc  1St Floor,1252.88, 05-Jul-2016
775,Revenue,CAHD,Bed Purchasing - South,Permanent Residential,Fshc  1St Floor,1677.20, 05-Jul-2016
776,Revenue,CAHD,Bed Purchasing - North,Permanent Residential,Fshc  1St Floor,1061.32, 05-Jul-2016
777,Revenue,CAHD,Bed Purchasing - South,Permanent Residential,Fshc  1St Floor,1386.44, 05-Jul-2016
778,Revenue,CAHD,Bed Purchasing - Southmead Hospital,Permanent Residential,Fshc  1St Floor,817.44, 05-Jul-2016
779,Revenue,CAHD,Bed Purchasing - South,Permanent Residential,Gladstone House,5354.36, 05-Jul-2016
780,Revenue,CAHD,Bed Purchasing - South,Permanent Residential,Glasallt Fawr,4734.32, 05-Jul-2016
781,Revenue,CAHD,Bed Purchasing - North,Permanent Nursing,Glebe House Nursing Home,2169.04, 05-Jul-2016
782,Revenue,CAHD,South Glos Users in South Glos Homes,Permanent Nursing,Glebe House Nursing Home,1280.00, 05-Jul-2016
783,Revenue,CAHD,South Glos Users in South Glos Homes,Permanent Nursing,Glebe House Nursing Home,672.00, 05-Jul-2016
784,Revenue,CAHD,Bed Purchasing - North,Permanent Residential,Glebe House Nursing Home,2433.68, 05-Jul-2016
785,Revenue,CAHD,Bed Purchasing - North,Permanent Nursing,Glebe House Nursing Home,2307.00, 05-Jul-2016
786,Revenue,CAHD,Bed Purchasing - South,Permanent Residential,Glebe House Nursing Home,1238.36, 05-Jul-2016
787,Revenue,CAHD,South Glos Users in South Glos Homes,Permanent Nursing,Glebe House Nursing Home,608.00, 05-Jul-2016
788,Revenue,CAHD,Bed Purchasing - North,Permanent Nursing,Glebe House Nursing Home,2209.20, 05-Jul-2016
789,Revenue,CAHD,Bed Purchasing - South,Permanent Residential,Goldcare House,4542.32, 05-Jul-2016
790,Revenue,CAHD,18-25 Year Olds,Permanent Residential,Gordena Care Home,4750.96, 05-Jul-2016
791,Revenue,CAHD,Bed Purchasing - South,Permanent Residential,Gordena Care Home,2170.96, 05-Jul-2016
792,Revenue,CAHD,Bed Purchasing - South,Permanent Residential,Gordena Care Home,3026.16, 05-Jul-2016
793,Revenue,CAHD,Bed Purchasing - South,Permanent Residential,Gordena Care Home,1965.88, 05-Jul-2016
794,Revenue,CAHD,Bed Purchasing - South,Permanent Residential,Gordena Care Home,3159.16, 05-Jul-2016
795,Revenue,CAHD,Bed Purchasing - South,Permanent Residential,Gordena Care Limited,4327.00, 05-Jul-2016
796,Revenue,CAHD,Bed Purchasing - South,Permanent Residential,Gordena Care Limited,4089.64, 05-Jul-2016
797,Revenue,CAHD,Bed purchasing - S28A Under 65 - South,Permanent Residential,Gordena Care Limited,4221.96, 05-Jul-2016
798,Revenue,CAHD,Bed Purchasing - North,Permanent Residential,Gordena Care Limited,4307.68, 05-Jul-2016
799,Revenue,CAHD,Bed Purchasing - South,Permanent Nursing,Gracefields Nursing Home,1732.24, 05-Jul-2016
800,Revenue,CAHD,Bed Purchasing - Southmead Hospital,Permanent Nursing,Gracefields Nursing Home,1674.96, 05-Jul-2016
801,Revenue,CAHD,Bed Purchasing - Southmead Hospital,Permanent Nursing,Gracefields Nursing Home,2151.80, 05-Jul-2016
802,Revenue,CAHD,Bed purchasing - Elderly S117 - South,Permanent Nursing,Gracefields Nursing Home,2414.28, 05-Jul-2016
803,Revenue,CAHD,South Glos Users in South Glos Homes,Permanent Nursing,Gracefields Nursing Home,3152.00, 05-Jul-2016
804,Revenue,CAHD,South Glos Users in South Glos Homes,Permanent Nursing,Gracefields Nursing Home,1280.00, 05-Jul-2016
805,Revenue,CAHD,South Glos Users in South Glos Homes,Permanent Nursing,Gracefields Nursing Home,1280.00, 05-Jul-2016
806,Revenue,CAHD,South Glos Users in South Glos Homes,Permanent Nursing,Gracefields Nursing Home,688.00, 05-Jul-2016
807,Revenue,CAHD,South Glos Users in South Glos Homes,Permanent Nursing,Gracefields Nursing Home,1280.00, 05-Jul-2016
808,Revenue,CAHD,South Glos Users in South Glos Homes,Permanent Nursing,Gracefields Nursing Home,1280.00, 05-Jul-2016
809,Revenue,CAHD,South Glos Users in South Glos Homes,Permanent Nursing,Gracefields Nursing Home,688.00, 05-Jul-2016
810,Revenue,CAHD,Bed Purchasing - South,Permanent Nursing,Gracefields Nursing Home,1620.96, 05-Jul-2016
811,Revenue,CAHD,Bed Purchasing - Southmead Hospital,Permanent Nursing,Gracefields Nursing Home,1558.00, 05-Jul-2016
812,Revenue,CAHD,Bed Purchasing - Southmead Hospital,Permanent Residential,Granada House Residential Home,1053.96, 05-Jul-2016
813,Revenue,CAHD,Bed Purchasing - North,Permanent Residential,Greensleeves,1358.08, 05-Jul-2016
814,Revenue,CAHD,Bed Purchasing - South,Permanent Residential,Grove Care,1905.76, 05-Jul-2016
815,Revenue,CAHD,Bed Purchasing - South,Permanent Residential,Gwendoline House,785.04, 05-Jul-2016
816,Revenue,CAHD,Bed Purchasing - Southmead Hospital,Permanent Residential,Gwendoline House,1298.24, 05-Jul-2016
817,Revenue,CAHD,Bed Purchasing - South,Permanent Residential,Gwendoline House,1587.28, 05-Jul-2016
818,Revenue,CAHD,Bed Purchasing - South,Permanent Residential,Gwendoline House,968.40, 05-Jul-2016
819,Revenue,CAHD,Bed Purchasing - Southmead Hospital,Permanent Residential,Gwendoline House,1356.00, 05-Jul-2016
820,Revenue,CAHD,Supporting People Programme,Grants to Voluntary Bodies,Habinteg Housing Association,1377.00, 01-Jul-2016
821,Revenue,CAHD,Supporting People Programme,Grants to Voluntary Bodies,Hanover Housing Association,996.16, 01-Jul-2016
822,Revenue,CAHD,Bed Purchasing - South,Permanent Residential,Harefield Hall,1235.16, 05-Jul-2016
823,Revenue,CAHD,Bed Purchasing - South,Permanent Residential,Harefield Hall,1162.36, 05-Jul-2016
824,Revenue,CAHD,Bed Purchasing - South,Permanent Residential,Harefield Hall,966.56, 05-Jul-2016
825,Revenue,CAHD,Bed Purchasing - South,Permanent Residential,Harefield Hall,1057.68, 05-Jul-2016
826,Revenue,CAHD,Bed Purchasing - South,Permanent Residential,Harefield Hall,1372.92, 05-Jul-2016
827,Revenue,CAHD,Bed Purchasing - South,Permanent Residential,Harefield Hall,1280.92, 05-Jul-2016
828,Revenue,CAHD,Bed Purchasing - Southmead Hospital,Permanent Nursing,Hazelwood Gardens Nursing Home,1626.48, 05-Jul-2016
829,Revenue,CAHD,Bed Purchasing - Southmead Hospital,Permanent Nursing,Hc-One Ltd,1660.08, 05-Jul-2016
830,Revenue,CAHD,Bed Purchasing - Southmead Hospital,Permanent Nursing,Hc-One Ltd,1470.56, 05-Jul-2016
831,Revenue,CAHD,Bed Purchasing - North,Permanent Nursing,Hc-One Ltd,1530.64, 05-Jul-2016
832,Revenue,CAHD,Bed Purchasing - South,Permanent Residential,Hc-One Ltd,1479.36, 05-Jul-2016
833,Revenue,CAHD,Bed Purchasing - North,Permanent Residential,Hc-One Ltd,1450.80, 05-Jul-2016
834,Revenue,CAHD,Bed Purchasing - North,Permanent Residential,Hc-One Ltd,2112.00, 05-Jul-2016
835,Revenue,CAHD,Bed Purchasing - Southmead Hospital,Permanent Nursing,Hc-One Ltd,1551.04, 05-Jul-2016
836,Revenue,CAHD,Bed Purchasing - Elderly MH - South,Respite Emergency - Residential,Hc-One Ltd,1135.14, 05-Jul-2016
837,Revenue,CAHD,Bed Purchasing - South,Respite Emergency - Nursing,Hc-One Ltd,1135.14, 05-Jul-2016
838,Revenue,CAHD,Bed Purchasing - Southmead Hospital,Permanent Nursing,Hc-One Ltd,1499.80, 05-Jul-2016
839,Revenue,CAHD,Bed Purchasing - Southmead Hospital,Permanent Nursing,Hc-One Ltd,2005.12, 05-Jul-2016
840,Revenue,CAHD,Bed Purchasing - Southmead Hospital,Permanent Residential,Head Office,1707.12, 05-Jul-2016
841,Revenue,CAHD,Home Care - Elderly - South,Day Care / Social Activities,Headway Bristol,980.72, 15-Jul-2016
842,Revenue,CAHD,Home Care - Elderly - North,Day Care / Social Activities,Headway Bristol,618.28, 15-Jul-2016
843,Revenue,CAHD,Home Care - Elderly - North,Other Small Contracts,Headway Bristol,127.92, 15-Jul-2016
844,Revenue,CAHD,Home Care - Elderly - South,Day Care / Social Activities,Headway Bristol,618.28, 06-Jul-2016
845,Revenue,CAHD,Home Care - Elderly - North,Day Care / Social Activities,Headway Bristol,564.98, 06-Jul-2016
846,Revenue,CAHD,Home Care - Elderly - North,Other Small Contracts,Headway Bristol,191.88, 06-Jul-2016
847,Revenue,CAHD,Home Care - Elderly - South,Day Care / Social Activities,Headway Bristol,852.80, 12-Jul-2016
848,Revenue,CAHD,Home Care - Elderly - North,Day Care / Social Activities,Headway Bristol,543.66, 12-Jul-2016
849,Revenue,CAHD,Home Care - Elderly - North,Other Small Contracts,Headway Bristol,191.88, 12-Jul-2016
850,Revenue,CAHD,Home Care - Elderly - South,Day Care / Social Activities,Headway Bristol,906.10, 22-Jul-2016
851,Revenue,CAHD,Home Care - Elderly - North,Day Care / Social Activities,Headway Bristol,618.28, 22-Jul-2016
852,Revenue,CAHD,Home Care - Elderly - North,Other Small Contracts,Headway Bristol,191.88, 22-Jul-2016
853,Revenue,CAHD,Home Care - Elderly - South,Day Care / Social Activities,Headway Bristol,906.10, 26-Jul-2016
854,Revenue,CAHD,Home Care - Elderly - North,Day Care / Social Activities,Headway Bristol,703.56, 26-Jul-2016
855,Revenue,CAHD,Home Care - Elderly - North,Other Small Contracts,Headway Bristol,127.92, 26-Jul-2016
856,Revenue,CAHD,Home Care - Elderly - South,Day Care / Social Activities,Helping Hands Homecare,166.32, 08-Jul-2016
857,Revenue,CAHD,Home Care - Elderly - South,Other Small Contracts,Helping Hands Homecare,1580.04, 08-Jul-2016
858,Revenue,CAHD,Home Care - Elderly - North,Other Small Contracts,Helping Hands Homecare,1904.76, 08-Jul-2016
859,Revenue,CAHD,Day Care - North,Day Care / Social Activities,Helping Hands Homecare,67.32, 08-Jul-2016
860,Revenue,CAHD,Under 65s -MH  Home Care Purch,Other Small Contracts,Helping Hands Homecare,35.64, 08-Jul-2016
861,Revenue,CAHD,Home care - Elderly MH - North,Other Small Contracts,Helping Hands Homecare,63.36, 08-Jul-2016
862,Revenue,CAHD,Home Care - Elderly - South,Other Small Contracts,Helping Hands Homecare,1624.08, 08-Jul-2016
863,Revenue,CAHD,Home Care - Elderly - North,Day Care / Social Activities,Helping Hands Homecare,205.02, 08-Jul-2016
864,Revenue,CAHD,Home Care - Elderly - North,Other Small Contracts,Helping Hands Homecare,2146.68, 08-Jul-2016
865,Revenue,CAHD,Day Care - North,Day Care / Social Activities,Helping Hands Homecare,32.16, 08-Jul-2016
866,Revenue,CAHD,Home Care - Elderly - South,Other Small Contracts,Helping Hands Homecare,1547.70, 08-Jul-2016
867,Revenue,CAHD,Home Care - Elderly - North,Day Care / Social Activities,Helping Hands Homecare,112.56, 08-Jul-2016
868,Revenue,CAHD,Home Care - Elderly - North,Other Small Contracts,Helping Hands Homecare,2063.50, 08-Jul-2016
869,Revenue,CAHD,Day Care - North,Day Care / Social Activities,Helping Hands Homecare,4.02, 08-Jul-2016
870,Revenue,CAHD,Home Care - Elderly - South,Other Small Contracts,Helping Hands Homecare,1591.92, 15-Jul-2016
871,Revenue,CAHD,Home Care - Elderly - North,Other Small Contracts,Helping Hands Homecare,2251.20, 15-Jul-2016
872,Revenue,CAHD,Home Care - Elderly - South,Other Small Contracts,Helping Hands Homecare,1599.96, 22-Jul-2016
873,Revenue,CAHD,Home Care - Elderly - North,Other Small Contracts,Helping Hands Homecare,2223.06, 22-Jul-2016
874,Revenue,CAHD,Day Care - North,Day Care / Social Activities,Helping Hands Homecare,40.20, 22-Jul-2016
875,Revenue,CAHD,S117 Placements PCT,Permanent Residential,Hesley Hall,18656.52, 05-Jul-2016
876,Revenue,CAHD,Information Systems - Software,Software Support & Maintenance,Higher Mapping Solutions,1850.00, 01-Jul-2016
877,Revenue,CAHD,Bed Purchasing - Southmead Hospital,Permanent Residential,Highgate Studios,1193.72, 05-Jul-2016
878,Revenue,CAHD,Bed Purchasing - North,Permanent Residential,Holmleigh Care Homes Ltd,4086.12, 05-Jul-2016
879,Revenue,CAHD,Bed Purchasing - South,Permanent Residential,Holmleigh Care Homes Ltd,4318.00, 05-Jul-2016
880,Revenue,CAHD,Jointly Funded H&SC Packages,Permanent Residential,Holmleigh Care Homes Ltd,836.48, 05-Jul-2016
881,Revenue,CAHD,Bed Purchasing - North,Permanent Residential,Home Farm Trust Ltd  5-6 Brook Office Pa,2726.52, 05-Jul-2016
882,Revenue,CAHD,Bed Purchasing - South,Permanent Residential,Home Farm Trust Ltd  5-6 Brook Office Pa,5242.64, 05-Jul-2016
883,Revenue,CAHD,Bed Purchasing - North,Permanent Residential,Home Farm Trust Ltd  5-6 Brook Office Pa,3436.96, 05-Jul-2016
884,Revenue,CAHD,Bed Purchasing - South,Permanent Residential,Home Farm Trust Ltd  5-6 Brook Office Pa,5687.60, 05-Jul-2016
885,Revenue,CAHD,18-25 Year Olds,Permanent Residential,Home From Home Care Ltd,9215.16, 05-Jul-2016
886,Revenue,CAHD,Home Care - Elderly - South,Other Small Contracts,Homecare 4U,386.65, 04-Jul-2016
887,Revenue,CAHD,Home Care - Elderly - North,Other Small Contracts,Homecare 4U,655.27, 04-Jul-2016
888,Revenue,CAHD,Home Care - Elderly - South,Other Small Contracts,Homecare 4U,329.67, 04-Jul-2016
889,Revenue,CAHD,Home Care - Elderly - North,Other Small Contracts,Homecare 4U,634.92, 04-Jul-2016
890,Revenue,CAHD,Home Care - Elderly - South,Other Small Contracts,Homecare 4U,329.67, 15-Jul-2016
891,Revenue,CAHD,Home Care - Elderly - North,Other Small Contracts,Homecare 4U,712.25, 15-Jul-2016
892,Revenue,CAHD,Bed Purchasing - North,Permanent Residential,Homes Caring For Autism Ltd  Churchill H,20177.50, 05-Jul-2016
893,Revenue,CAHD,Jointly Funded H&SC Packages,Permanent Residential,Homes Caring For Autism Ltd  Churchill H,5225.10, 05-Jul-2016
894,Revenue,CAHD,Bed Purchasing - North,Permanent Residential,Homes Caring For Autism Ltd  Churchill H,8071.00, 05-Jul-2016
895,Revenue,CAHD,Jointly Funded H&SC Packages,Permanent Residential,Homes Caring For Autism Ltd  Churchill H,2090.04, 05-Jul-2016
896,Revenue,CAHD,18-25 Year Olds,Permanent Residential,Homes Caring For Autism Ltd  Churchill H,5691.32, 05-Jul-2016
897,Revenue,CAHD,Jointly Funded H&SC Packages,Permanent Residential,Homes Caring For Autism Ltd  Churchill H,7535.48, 05-Jul-2016
898,Revenue,CAHD,Bed Purchasing - Southmead Hospital,Permanent Nursing,Horfield Care Limited,1445.57, 11-Jul-2016
899,Revenue,CAHD,Bed Purchasing - Southmead Hospital,Permanent Nursing,Horfield Care Limited,1816.50, 11-Jul-2016
900,Revenue,CAHD,Bed Purchasing - Southmead Hospital,Permanent Nursing,Horfield Care Limited,1337.01, 11-Jul-2016
901,Revenue,CAHD,Bed Purchasing - South,Permanent Nursing,Horfield Care Limited,1334.87, 11-Jul-2016
902,Revenue,CAHD,Bed Purchasing - South,Respite Emergency - Nursing,Horfield Care Limited,1355.83, 11-Jul-2016
903,Revenue,CAHD,Supporting People Programme,Grants to Voluntary Bodies,Housing 21,957.66, 01-Jul-2016
904,Revenue,CAHD,Supporting People Programme,Grants to Voluntary Bodies,Housing 21,631.50, 01-Jul-2016
905,Revenue,CAHD,Home Care - Elderly - North,Private & Voluntary Home Care,Housing 21,40371.16, 08-Jul-2016
906,Revenue,CAHD,Home Care - Elderly - South,Private & Voluntary Home Care,Housing 21,25849.77, 01-Jul-2016
907,Revenue,CAHD,Social Lettings Agency,Fees - General,Individual,12.22, 11-Jul-2016
908,Revenue,CAHD,Social Lettings Agency,Other Supplies & Services,Individual,632.72, 11-Jul-2016
909,Revenue,CAHD,Tenancy Start Up Scheme,Other Supplies & Services,Individual,1550.00, 27-Jul-2016
910,Revenue,CAHD,Social Lettings Agency,Fees - General,Individual,10.53, 01-Jul-2016
911,Revenue,CAHD,Social Lettings Agency,Other Supplies & Services,Individual,595.11, 01-Jul-2016
912,Revenue,CAHD,Bed Purchasing - South,Permanent Residential,Jonen House,3705.12, 05-Jul-2016
913,Revenue,CAHD,Home Care - Elderly - South,Supported Living,Julia Simone- Supp. Ind.,1194.40, 05-Jul-2016
914,Revenue,CAHD,Younger MH non-res purchasing,Supported Living,Julia Simone- Supp. Ind.,1194.40, 05-Jul-2016
915,Revenue,CAHD,Younger MH non-res purchasing,Supported Living,Julia Simone- Supp. Ind.,1194.40, 05-Jul-2016
916,Revenue,CAHD,Home Care - Elderly - North,Supported Living,Julia Simone- Supp. Ind.,1228.80, 05-Jul-2016
917,Revenue,CAHD,Younger MH non-res purchasing,Supported Living,Julia Simone- Supp. Ind.,1194.24, 05-Jul-2016
918,Revenue,CAHD,Younger MH non-res purchasing,Supported Living,Julia Simone- Supp. Ind.,1194.36, 05-Jul-2016
919,Revenue,CAHD,Community Support - North,Preventative Assistance,KCC Cleaning Services Limited,839.00, 14-Jul-2016
920,Revenue,CAHD,Home Care - Elderly - South,Other Small Contracts,Kensington Community Care,3280.81, 06-Jul-2016
921,Revenue,CAHD,Home Care - Elderly - North,Other Small Contracts,Kensington Community Care,5304.73, 06-Jul-2016
922,Revenue,CAHD,Home Care - Elderly - South,Other Small Contracts,Kensington Community Care,3329.70, 05-Jul-2016
923,Revenue,CAHD,Home Care - Elderly - North,Other Small Contracts,Kensington Community Care,4310.86, 05-Jul-2016
924,Revenue,CAHD,Home Care - Elderly - South,Other Small Contracts,Kensington Community Care,3043.65, 08-Jul-2016
925,Revenue,CAHD,Home Care - Elderly - North,Other Small Contracts,Kensington Community Care,4368.12, 08-Jul-2016
926,Revenue,CAHD,Home Care - Elderly - North,Supported Living,Kensington Community Care,16.36, 08-Jul-2016
927,Revenue,CAHD,Home Care - Elderly - South,Other Small Contracts,Kensington Community Care,2961.08, 11-Jul-2016
928,Revenue,CAHD,Home Care - Elderly - North,Other Small Contracts,Kensington Community Care,4695.32, 11-Jul-2016
929,Revenue,CAHD,Home Care - Elderly - South,Other Small Contracts,Kensington Community Care,2262.10, 14-Jul-2016
930,Revenue,CAHD,Home Care - Elderly - North,Other Small Contracts,Kensington Community Care,4666.69, 14-Jul-2016
931,Revenue,CAHD,Home Care - Elderly - South,Other Small Contracts,Kensington Community Care,1529.66, 27-Jul-2016
932,Revenue,CAHD,Home Care - Elderly - North,Other Small Contracts,Kensington Community Care,4278.14, 27-Jul-2016
933,Revenue,CAHD,Bed Purchasing - Southmead Hospital,Permanent Residential,Kenver House Residential Home,1685.76, 05-Jul-2016
934,Revenue,CAHD,Bed Purchasing - Southmead Hospital,Permanent Residential,Kenver House Residential Home,1697.28, 05-Jul-2016
935,Revenue,CAHD,Bed Purchasing - Southmead Hospital,Permanent Residential,Kenver House Residential Home,1908.68, 05-Jul-2016
936,Revenue,CAHD,Bed Purchasing - South,Permanent Residential,Kenver House Residential Home,1407.28, 05-Jul-2016
937,Revenue,CAHD,Bed Purchasing - South,Permanent Residential,Kenver House Residential Home,1697.28, 05-Jul-2016
938,Revenue,CAHD,Home Care - Elderly - South,Day Care / Social Activities,Kenver House Residential Home,771.10, 05-Jul-2016
939,Revenue,CAHD,Bed Purchasing - North,Permanent Residential,Kenver House Residential Home,1566.76, 05-Jul-2016
940,Revenue,CAHD,Bed Purchasing - Southmead Hospital,Permanent Residential,Kenver House Residential Home,1784.68, 05-Jul-2016
941,Revenue,CAHD,Bed purchasing - Elderly S117 - South,Permanent Residential,Kenver House Residential Home,2286.28, 05-Jul-2016
942,Revenue,CAHD,Home Care - Elderly - South,Day Care / Social Activities,Kenver House Residential Home,1003.64, 05-Jul-2016
943,Revenue,CAHD,Bed Purchasing - Southmead Hospital,Permanent Residential,Kenver House Residential Home,2754.36, 05-Jul-2016
944,Revenue,CAHD,Bed Purchasing - Southmead Hospital,Permanent Residential,Kenver House Residential Home,1836.24, 05-Jul-2016
945,Revenue,CAHD,Bed Purchasing - South,Permanent Residential,Kenver House Residential Home,8008.11, 05-Jul-2016
946,Revenue,CAHD,Bed Purchasing - South,Permanent Residential,Kenver House Residential Home,1831.44, 05-Jul-2016
947,Revenue,CAHD,Bed Purchasing - Southmead Hospital,Permanent Residential,Kenver House Residential Home,1697.20, 05-Jul-2016
948,Revenue,CAHD,Bed Purchasing - South,Permanent Residential,Kenver House Residential Home,1729.28, 05-Jul-2016
949,Revenue,CAHD,Supporting People Programme,Grants to Voluntary Bodies,Keyring Living Support Networks,2988.58, 01-Jul-2016
950,Revenue,CAHD,Bed Purchasing - North,Permanent Residential,Kilkhampton Lodge,64124.10, 05-Jul-2016
951,Revenue,CAHD,Supporting People Programme,Grants to Voluntary Bodies,Kingswood Young Homeless Project,17359.58, 01-Jul-2016
952,Revenue,CAHD,Bed Purchasing - North,Permanent Residential,Kisimul Group,11674.88, 05-Jul-2016
953,Revenue,CAHD,Supporting People Programme,Grants to Voluntary Bodies,Knightstone Housing Association Limited,2544.33, 01-Jul-2016
954,Revenue,CAHD,Supporting People Programme,Grants to Voluntary Bodies,Knightstone Housing Association Limited,1833.66, 01-Jul-2016
955,Revenue,CAHD,Supporting People Programme,Grants to Voluntary Bodies,Knightstone Housing Association Limited,2543.75, 01-Jul-2016
956,Revenue,CAHD,Supporting People Programme,Grants to Voluntary Bodies,Knightstone Housing Association Limited,865.25, 01-Jul-2016
957,Revenue,CAHD,Supporting People Programme,Grants to Voluntary Bodies,Knightstone Housing Association Limited,13845.33, 01-Jul-2016
958,Revenue,CAHD,Supporting People Programme,Grants to Voluntary Bodies,Knightstone Housing Association Limited,8747.50, 01-Jul-2016
959,Revenue,CAHD,Supporting People Programme,Grants to Voluntary Bodies,Knightstone Housing Association Limited,7789.00, 01-Jul-2016
960,Revenue,CAHD,Home Care - Elderly - South,Other Small Contracts,Kumari Care Limited,1913.54, 12-Jul-2016
961,Revenue,CAHD,Home Care - Elderly - North,Other Small Contracts,Kumari Care Limited,847.31, 12-Jul-2016
962,Revenue,CAHD,Home Care - Elderly - South,Other Small Contracts,Kumari Care Limited,1742.83, 12-Jul-2016
963,Revenue,CAHD,Home Care - Elderly - North,Other Small Contracts,Kumari Care Limited,847.31, 12-Jul-2016
964,Revenue,CAHD,Home Care - Elderly - South,Other Small Contracts,Kumari Care Limited,1726.95, 12-Jul-2016
965,Revenue,CAHD,Home Care - Elderly - North,Other Small Contracts,Kumari Care Limited,847.31, 12-Jul-2016
966,Revenue,CAHD,Home Care - Elderly - South,Other Small Contracts,Kumari Care Limited,1405.38, 27-Jul-2016
967,Revenue,CAHD,Home Care - Elderly - North,Other Small Contracts,Kumari Care Limited,847.31, 27-Jul-2016
968,Revenue,CAHD,Planning and Partnerships Procurement,Other Supplies & Services,L D Awareness,720.00, 28-Jul-2016
969,Revenue,CAHD,Bed Purchasing - North,Permanent Nursing,Larchfield Care Home,3029.00, 05-Jul-2016
970,Revenue,CAHD,Bed purchasing - Elderly S117 - South,Permanent Nursing,Lavender Lodge Limited,8518.84, 05-Jul-2016
971,Revenue,CAHD,Bed Purchasing - North,Permanent Residential,Leonard Cheshire  National Account Centr,2866.52, 05-Jul-2016
972,Revenue,CAHD,Bed Purchasing - South,Permanent Residential,Leonard Cheshire  National Account Centr,3426.44, 05-Jul-2016
973,Revenue,CAHD,Bed Purchasing - North,Permanent Nursing,Leonard Cheshire  National Account Centr,3612.48, 05-Jul-2016
974,Revenue,CAHD,Bed Purchasing - North,Permanent Nursing,Leonard Cheshire  National Account Centr,2901.80, 05-Jul-2016
975,Revenue,CAHD,18-25 Year Olds,Permanent Residential,Leonard Cheshire  National Account Centr,3281.32, 05-Jul-2016
976,Revenue,CAHD,Bed Purchasing - North,Permanent Residential,Leonard Cheshire  National Account Centr,6111.20, 05-Jul-2016
977,Revenue,CAHD,Bed Purchasing - North,Permanent Residential,Leonard Cheshire  National Account Centr,6109.60, 05-Jul-2016
978,Revenue,CAHD,Bed Purchasing - South,Permanent Residential,Leonard Cheshire  National Account Centr,4595.20, 05-Jul-2016
979,Revenue,CAHD,Bed Purchasing - North,Permanent Nursing,Leonard Cheshire  National Account Centr,2957.28, 05-Jul-2016
980,Revenue,CAHD,Bed Purchasing - North,Permanent Nursing,Leonard Cheshire  National Account Centr,3890.96, 05-Jul-2016
981,Revenue,CAHD,Bed Purchasing - North,Permanent Residential,Leonard Cheshire  National Account Centr,3010.08, 05-Jul-2016
982,Revenue,CAHD,Bed Purchasing - North,Permanent Nursing,Leonard Cheshire  National Account Centr,3206.68, 05-Jul-2016
983,Revenue,CAHD,Bed Purchasing - North,Permanent Nursing,Leonard Cheshire  National Account Centr,5740.64, 05-Jul-2016
984,Revenue,CAHD,Bed Purchasing - South,Permanent Nursing,Leonard Cheshire  National Account Centr,2986.36, 05-Jul-2016
985,Revenue,CAHD,Bed Purchasing - Southmead Hospital,Permanent Nursing,Leonard Cheshire  National Account Centr,3126.84, 05-Jul-2016
986,Revenue,CAHD,South Glos Users in all other LA Homes,Permanent Nursing,Leonard Cheshire  National Account Centr,616.56, 05-Jul-2016
987,Revenue,CAHD,Bed Purchasing - South,Respite Emergency - Residential,Leonard Cheshire  National Account Centr,3567.06, 05-Jul-2016
988,Revenue,CAHD,Bed Purchasing - South,Respite Emergency - Residential,Leonard Cheshire  National Account Centr,1783.53, 05-Jul-2016
989,Revenue,CAHD,Bed Purchasing - North,Permanent Nursing,Leonard Cheshire  National Account Centr,3350.72, 05-Jul-2016
990,Revenue,CAHD,Bed Purchasing - North,Permanent Nursing,Leonard Cheshire  National Account Centr,4155.08, 05-Jul-2016
991,Revenue,CAHD,Section 117 Placements MH Younger,Permanent Residential,Little Croft,2229.92, 05-Jul-2016
992,Revenue,CAHD,Bed Purchasing - Southmead Hospital,Permanent Residential,Little Croft,1095.84, 05-Jul-2016
993,Revenue,CAHD,Bed Purchasing - Southmead Hospital,Permanent Residential,Little Croft,1277.20, 05-Jul-2016
994,Revenue,CAHD,Bed Purchasing - North,Permanent Residential,Little Croft,1224.88, 05-Jul-2016
995,Revenue,CAHD,Bed Purchasing - South,Permanent Residential,Little Croft,1504.40, 05-Jul-2016
996,Revenue,CAHD,Bed Purchasing - Southmead Hospital,Permanent Residential,Little Croft,1314.88, 05-Jul-2016
997,Revenue,CAHD,Bed Purchasing - Southmead Hospital,Permanent Residential,Little Croft,1285.20, 05-Jul-2016
998,Revenue,CAHD,Bed Purchasing - South,Permanent Residential,Little Croft,1817.12, 05-Jul-2016
999,Revenue,CAHD,Bed Purchasing - North,Permanent Residential,Little Croft,1233.88, 05-Jul-2016
1000,Revenue,CAHD,Bed Purchasing - Southmead Hospital,Permanent Residential,Little Croft,1785.10, 05-Jul-2016
1001,Revenue,CAHD,Bed Purchasing - South,Respite Emergency - Residential,Little Croft,1114.29, 05-Jul-2016
1002,Revenue,CAHD,Bed Purchasing - South,Respite Emergency - Residential,Little Croft,1200.00, 05-Jul-2016
1003,Revenue,CAHD,Bed Purchasing - South,Permanent Residential,Little Croft,1277.20, 05-Jul-2016
1004,Revenue,CAHD,Bed Purchasing - Southmead Hospital,Permanent Residential,Little Croft,1772.56, 05-Jul-2016
1005,Revenue,CAHD,Bed Purchasing - Southmead Hospital,Permanent Residential,Little Croft,1154.84, 05-Jul-2016
1006,Revenue,CAHD,Bed Purchasing - Southmead Hospital,Permanent Residential,Little Croft,1487.68, 05-Jul-2016
1007,Revenue,CAHD,Bed Purchasing - South,Permanent Residential,Little Croft,1124.00, 05-Jul-2016
1008,Revenue,CAHD,Bed Purchasing - Southmead Hospital,Permanent Residential,Little Croft,1249.56, 05-Jul-2016
1009,Revenue,CAHD,Bed Purchasing - North,Permanent Residential,Little Croft,1086.20, 05-Jul-2016
1010,Revenue,CAHD,Bed Purchasing - South,Permanent Residential,Little Croft,1453.20, 05-Jul-2016
1011,Revenue,CAHD,Bed Purchasing - South,Permanent Residential,Little Croft,1442.84, 05-Jul-2016
1012,Revenue,CAHD,Bed Purchasing - Southmead Hospital,Permanent Residential,Little Croft,1277.20, 05-Jul-2016
1013,Revenue,CAHD,Bed Purchasing - Southmead Hospital,Permanent Residential,Little Croft,1277.20, 05-Jul-2016
1014,Revenue,CAHD,Bed Purchasing - South,Permanent Residential,Little Croft,1451.68, 05-Jul-2016
1015,Revenue,CAHD,Bed Purchasing - North,Permanent Residential,Littlecroft Residential Homes  Longcroft,6645.80, 05-Jul-2016
1016,Revenue,CAHD,18-25 Year Olds,Supported Living,Lloyds TSB Commercial Finance Limited,2878.40, 05-Jul-2016
1017,Revenue,CAHD,Home Care - Elderly - South,Day Care / Social Activities,Lloyds TSB Commercial Finance Limited,5145.98, 05-Jul-2016
1018,Revenue,CAHD,Home Care - Elderly - South,Other Small Contracts,Lloyds TSB Commercial Finance Limited,5934.72, 05-Jul-2016
1019,Revenue,CAHD,Home Care - Elderly - South,Supported Living,Lloyds TSB Commercial Finance Limited,8505.35, 05-Jul-2016
1020,Revenue,CAHD,Home Care - Elderly - North,Day Care / Social Activities,Lloyds TSB Commercial Finance Limited,198.24, 05-Jul-2016
1021,Revenue,CAHD,Home Care - Elderly - North,Supported Living,Lloyds TSB Commercial Finance Limited,1837.85, 05-Jul-2016
1022,Revenue,CAHD,Younger MH non-res purchasing,Other Small Contracts,Lloyds TSB Commercial Finance Limited,10793.04, 05-Jul-2016
1023,Revenue,CAHD,Younger MH non-res purchasing,Supported Living,Lloyds TSB Commercial Finance Limited,106.60, 05-Jul-2016
1024,Revenue,CAHD,18-25 Year Olds,Supported Living,Lloyds TSB Commercial Finance Limited,2878.40, 05-Jul-2016
1025,Revenue,CAHD,Home Care - Elderly - South,Day Care / Social Activities,Lloyds TSB Commercial Finance Limited,5108.81, 05-Jul-2016
1026,Revenue,CAHD,Home Care - Elderly - South,Other Small Contracts,Lloyds TSB Commercial Finance Limited,4787.65, 05-Jul-2016
1027,Revenue,CAHD,Home Care - Elderly - South,Supported Living,Lloyds TSB Commercial Finance Limited,8116.41, 05-Jul-2016
1028,Revenue,CAHD,Home Care - Elderly - North,Day Care / Social Activities,Lloyds TSB Commercial Finance Limited,198.24, 05-Jul-2016
1029,Revenue,CAHD,Home Care - Elderly - North,Supported Living,Lloyds TSB Commercial Finance Limited,1408.33, 05-Jul-2016
1030,Revenue,CAHD,Younger MH non-res purchasing,Other Small Contracts,Lloyds TSB Commercial Finance Limited,10808.99, 05-Jul-2016
1031,Revenue,CAHD,18-25 Year Olds,Supported Living,Lloyds TSB Commercial Finance Limited,2878.40, 05-Jul-2016
1032,Revenue,CAHD,Home Care - Elderly - South,Day Care / Social Activities,Lloyds TSB Commercial Finance Limited,5212.06, 05-Jul-2016
1033,Revenue,CAHD,Home Care - Elderly - South,Other Small Contracts,Lloyds TSB Commercial Finance Limited,5907.30, 05-Jul-2016
1034,Revenue,CAHD,Home Care - Elderly - South,Supported Living,Lloyds TSB Commercial Finance Limited,8290.85, 05-Jul-2016
1035,Revenue,CAHD,Home Care - Elderly - North,Day Care / Social Activities,Lloyds TSB Commercial Finance Limited,198.24, 05-Jul-2016
1036,Revenue,CAHD,Home Care - Elderly - North,Supported Living,Lloyds TSB Commercial Finance Limited,1829.59, 05-Jul-2016
1037,Revenue,CAHD,Younger MH non-res purchasing,Other Small Contracts,Lloyds TSB Commercial Finance Limited,10788.03, 05-Jul-2016
1038,Revenue,CAHD,Younger MH non-res purchasing,Supported Living,Lloyds TSB Commercial Finance Limited,106.60, 05-Jul-2016
1039,Revenue,CAHD,Home Care - Elderly - North,Day Care / Social Activities,Lower Kilcott,1481.84, 05-Jul-2016
1040,Revenue,CAHD,Home Care - Elderly - North,Day Care / Social Activities,Lower Kilcott,710.16, 05-Jul-2016
1041,Revenue,CAHD,Home Care - Elderly - North,Day Care / Social Activities,Lower Kilcott,566.68, 05-Jul-2016
1042,Revenue,CAHD,Social Lettings Agency,Fees - General,Individual,13.60, 05-Jul-2016
1043,Revenue,CAHD,Social Lettings Agency,Other Supplies & Services,Individual,768.40, 05-Jul-2016
1044,Revenue,CAHD,Bed Purchasing - Southmead Hospital,Permanent Nursing,Majestic 3 Limited,1017.72, 05-Jul-2016
1045,Revenue,CAHD,Bed Purchasing - Southmead Hospital,Permanent Residential,Manor Cottage,1277.20, 05-Jul-2016
1046,Revenue,CAHD,Bed Purchasing - South,Permanent Residential,Manor Cottage,3929.92, 05-Jul-2016
1047,Revenue,CAHD,Bed Purchasing - South,Permanent Residential,Manor Cottage,1828.76, 05-Jul-2016
1048,Revenue,CAHD,Bed Purchasing - Southmead Hospital,Permanent Residential,Manor Cottage,1051.84, 05-Jul-2016
1049,Revenue,CAHD,Bed Purchasing - South,Permanent Residential,Manor Cottage,1506.64, 05-Jul-2016
1050,Revenue,CAHD,Bed Purchasing - South,Permanent Residential,Manor Cottage,1526.28, 05-Jul-2016
1051,Revenue,CAHD,Bed Purchasing - North,Permanent Residential,Manton Hall Residential Home,1611.88, 05-Jul-2016
1052,Revenue,CAHD,Younger MH non-res purchasing,Supported Living,Maples Community Care Limited,1419.04, 05-Jul-2016
1053,Revenue,CAHD,Home Care - Elderly - South,Supported Living,Maples Community Care Limited,1419.04, 05-Jul-2016
1054,Revenue,CAHD,Home Care - Elderly - South,Supported Living,Maples Community Care Limited,1419.04, 05-Jul-2016
1055,Revenue,CAHD,Younger MH non-res purchasing,Supported Living,Maples Community Care Limited,1419.04, 05-Jul-2016
1056,Revenue,CAHD,Younger MH non-res purchasing,Supported Living,Maples Community Care Limited,1419.04, 05-Jul-2016
1057,Revenue,CAHD,Younger MH non-res purchasing,Supported Living,Maples Community Care Limited,1419.04, 05-Jul-2016
1058,Revenue,CAHD,Social Lettings Agency,Fees - General,Individual,12.22, 20-Jul-2016
1059,Revenue,CAHD,Social Lettings Agency,Other Supplies & Services,Individual,690.32, 20-Jul-2016
1060,Revenue,CAHD,Bed Purchasing - South,Permanent Residential,Marsden Healthcare Ltd,1298.00, 05-Jul-2016
1061,Revenue,CAHD,Bed Purchasing - South,Permanent Residential,Marsden Healthcare Ltd,1548.28, 05-Jul-2016
1062,Revenue,CAHD,Bed Purchasing - South,Permanent Nursing,Meadow Care Home,1649.48, 05-Jul-2016
1063,Revenue,CAHD,Bed Purchasing - Elderly S117- North,Permanent Nursing,Meadow Care Home,3851.68, 05-Jul-2016
1064,Revenue,CAHD,Bed purchasing - Elderly S117 - South,Permanent Nursing,Meadow Care Home,11691.85, 05-Jul-2016
1065,Revenue,CAHD,Bed purchasing - Elderly S117 - South,Permanent Nursing,Meadow Care Home,4331.12, 05-Jul-2016
1066,Revenue,CAHD,Swift Dump Code,Permanent Residential,Meadow Care Home,4238.66, 05-Jul-2016
1067,Revenue,CAHD,Bed Purchasing - Elderly S117- North,Permanent Nursing,Meadow Care Home,4865.28, 05-Jul-2016
1068,Revenue,CAHD,Home Care - Elderly - South,Day Care / Social Activities,Mears Care,180.00, 01-Jul-2016
1069,Revenue,CAHD,Home Care - Elderly - South,Other Small Contracts,Mears Care,4428.00, 01-Jul-2016
1070,Revenue,CAHD,Home Care - Elderly - North,Other Small Contracts,Mears Care,4864.00, 01-Jul-2016
1071,Revenue,CAHD,Home Care - Elderly - South,Day Care / Social Activities,Mears Care,184.00, 01-Jul-2016
1072,Revenue,CAHD,Home Care - Elderly - South,Other Small Contracts,Mears Care,4256.00, 01-Jul-2016
1073,Revenue,CAHD,Home Care - Elderly - North,Other Small Contracts,Mears Care,4636.00, 01-Jul-2016
1074,Revenue,CAHD,Home Care - Elderly - South,Day Care / Social Activities,Mears Care,168.00, 20-Jul-2016
1075,Revenue,CAHD,Home Care - Elderly - South,Other Small Contracts,Mears Care,4260.00, 20-Jul-2016
1076,Revenue,CAHD,Home Care - Elderly - North,Other Small Contracts,Mears Care,4672.00, 20-Jul-2016
1077,Revenue,CAHD,Home Care - Elderly - South,Day Care / Social Activities,Mears Care,172.00, 20-Jul-2016
1078,Revenue,CAHD,Home Care - Elderly - South,Other Small Contracts,Mears Care,4084.00, 20-Jul-2016
1079,Revenue,CAHD,Home Care - Elderly - North,Other Small Contracts,Mears Care,4616.00, 20-Jul-2016
1080,Revenue,CAHD,Home Care - Elderly - North,Supported Living,Mears Care,52.00, 20-Jul-2016
1081,Revenue,CAHD,Home Care - Elderly - South,Day Care / Social Activities,Mears Care,184.00, 20-Jul-2016
1082,Revenue,CAHD,Home Care - Elderly - South,Other Small Contracts,Mears Care,4012.00, 20-Jul-2016
1083,Revenue,CAHD,Home Care - Elderly - North,Other Small Contracts,Mears Care,4696.00, 20-Jul-2016
1084,Revenue,CAHD,Home Care - Elderly - North,Supported Living,Mears Care,68.00, 20-Jul-2016
1085,Revenue,CAHD,Home Care - Elderly - South,Private & Voluntary Home Care,Mears Care,49770.25, 28-Jul-2016
1086,Revenue,CAHD,Home Care - Elderly - South,Other Small Contracts,Medacs Home Care,14.36, 04-Jul-2016
1087,Revenue,CAHD,Home Care - Elderly - North,Other Small Contracts,Medacs Home Care,674.92, 04-Jul-2016
1088,Revenue,CAHD,Home Care - Elderly - South,Other Small Contracts,Medacs Home Care,14.36, 12-Jul-2016
1089,Revenue,CAHD,Home Care - Elderly - North,Other Small Contracts,Medacs Home Care,642.61, 12-Jul-2016
1090,Revenue,CAHD,Home Care - Elderly - South,Other Small Contracts,Medacs Home Care,14.36, 15-Jul-2016
1091,Revenue,CAHD,Home Care - Elderly - North,Other Small Contracts,Medacs Home Care,549.27, 15-Jul-2016
1092,Revenue,CAHD,Bed Purchasing - South,Permanent Residential,Mencap,4626.40, 05-Jul-2016
1093,Revenue,CAHD,Supporting People Programme,Grants to Voluntary Bodies,Merlin Housing Society,14987.58, 01-Jul-2016
1094,Revenue,CAHD,Supporting People Programme,Grants to Voluntary Bodies,Merlin Housing Society,2519.33, 01-Jul-2016
1095,Revenue,CAHD,Supporting People Programme,Grants to Voluntary Bodies,Merlin Housing Society,20687.41, 01-Jul-2016
1096,Revenue,CAHD,Supporting People Programme,Grants to Voluntary Bodies,Merlin Housing Society,1067.33, 01-Jul-2016
1097,Revenue,CAHD,Home Care - Elderly - South,Supported Living,Milestones - Unit 10,2131.96, 05-Jul-2016
1098,Revenue,CAHD,Home Care - Elderly - South,Supported Living,Milestones - Unit 10,3681.16, 05-Jul-2016
1099,Revenue,CAHD,Home Care - Elderly - North,Supported Living,Milestones - Unit 10,4362.68, 05-Jul-2016
1100,Revenue,CAHD,Home Care - Elderly - South,Supported Living,Milestones - Unit 10,1371.60, 05-Jul-2016
1101,Revenue,CAHD,Home Care - Elderly - South,Supported Living,Milestones - Unit 10,3681.16, 05-Jul-2016
1102,Revenue,CAHD,Home Care - Elderly - North,Supported Living,Milestones - Unit 10,4131.76, 05-Jul-2016
1103,Revenue,CAHD,Home Care - Elderly - South,Supported Living,Milestones - Unit 10,3693.16, 05-Jul-2016
1104,Revenue,CAHD,Home Care - Elderly - South,Supported Living,Milestones - Unit 10,2349.20, 05-Jul-2016
1105,Revenue,CAHD,Home Care - Elderly - North,Supported Living,Milestones - Unit 10,4131.76, 05-Jul-2016
1106,Revenue,CAHD,Home Care - Elderly - South,Supported Living,Milestones - Unit 10,3934.12, 05-Jul-2016
1107,Revenue,CAHD,Supported Living (S28a) North,Supported Living,Milestones - Unit 10,3652.08, 05-Jul-2016
1108,Revenue,CAHD,Supported Living (S28a) North,Supported Living,Milestones - Unit 10,3652.08, 05-Jul-2016
1109,Revenue,CAHD,Home Care - Elderly - South,Supported Living,Milestones - Unit 10,1268.04, 05-Jul-2016
1110,Revenue,CAHD,Supported Living (S28a) South,Supported Living,Milestones - Unit 10,5580.68, 05-Jul-2016
1111,Revenue,CAHD,Home Care - Elderly - South,Supported Living,Milestones - Unit 10,2262.88, 05-Jul-2016
1112,Revenue,CAHD,Supported Living (S28a) South,Supported Living,Milestones - Unit 10,2262.88, 05-Jul-2016
1113,Revenue,CAHD,Home Care - Elderly - North,Supported Living,Milestones - Unit 10,4362.68, 05-Jul-2016
1114,Revenue,CAHD,Home Care - Elderly - South,Supported Living,Milestones - Unit 10,2131.96, 05-Jul-2016
1115,Revenue,CAHD,Supported Living (S28a) North,Supported Living,Milestones - Unit 10,3664.36, 05-Jul-2016
1116,Revenue,CAHD,Supported Living (S28a) South,Supported Living,Milestones - Unit 10,2262.88, 05-Jul-2016
1117,Revenue,CAHD,Supported Living (S28a) South,Supported Living,Milestones - Unit 10,2262.88, 05-Jul-2016
1118,Revenue,CAHD,Bed Purchasing - South,Permanent Residential,Milestones - Unit 10,4992.88, 05-Jul-2016
1119,Revenue,CAHD,Bed Purchasing - South,Permanent Residential,Milestones - Unit 10,5186.20, 05-Jul-2016
1120,Revenue,CAHD,Jointly Funded H&SC Packages,Permanent Residential,Milestones - Unit 10,1349.72, 05-Jul-2016
1121,Revenue,CAHD,Bed Purchasing - South,Permanent Nursing,Milestones - Unit 10,2781.24, 05-Jul-2016
1122,Revenue,CAHD,Bed Purchasing - South,Permanent Nursing,Milestones - Unit 10,1301.04, 05-Jul-2016
1123,Revenue,CAHD,Bed Purchasing - South,Permanent Residential,Milestones - Unit 10,3679.64, 05-Jul-2016
1124,Revenue,CAHD,Bed purchasing - Elderly S117 - South,Permanent Nursing,Milestones - Unit 10,12323.80, 05-Jul-2016
1125,Revenue,CAHD,Jointly Funded H&SC Packages,Permanent Nursing,Milestones - Unit 10,7216.80, 05-Jul-2016
1126,Revenue,CAHD,Bed purchasing - Elderly S117 - South,Permanent Nursing,Milestones - Unit 10,4929.52, 05-Jul-2016
1127,Revenue,CAHD,Jointly Funded H&SC Packages,Permanent Nursing,Milestones - Unit 10,2886.72, 05-Jul-2016
1128,Revenue,CAHD,Bed purchasing - Elderly S117 - South,Permanent Nursing,Milestones - Unit 10,1736.91, 05-Jul-2016
1129,Revenue,CAHD,Jointly Funded H&SC Packages,Permanent Nursing,Milestones - Unit 10,1017.14, 05-Jul-2016
1130,Revenue,CAHD,Bed Purchasing - North,Permanent Nursing,Milestones - Unit 10,1460.00, 05-Jul-2016
1131,Revenue,CAHD,Bed Purchasing - North,Permanent Residential,Milestones - Unit 10,8970.04, 05-Jul-2016
1132,Revenue,CAHD,Bed Purchasing - South,Permanent Residential,Milestones - Unit 10,4283.04, 05-Jul-2016
1133,Revenue,CAHD,Bed Purchasing - South,Permanent Residential,Milestones - Unit 10,4211.56, 05-Jul-2016
1134,Revenue,CAHD,Bed Purchasing - North,Permanent Nursing,Milestones - Unit 10,4338.88, 05-Jul-2016
1135,Revenue,CAHD,Bed purchasing -S28A  Under 65 - North,Permanent Residential,Milestones - Unit 10,5450.24, 05-Jul-2016
1136,Revenue,CAHD,Bed purchasing - S28A Under 65 - South,Permanent Residential,Milestones - Unit 10,5590.24, 05-Jul-2016
1137,Revenue,CAHD,Bed Purchasing - South,Permanent Residential,Milestones - Unit 10,1324.64, 05-Jul-2016
1138,Revenue,CAHD,Bed Purchasing - South,Permanent Residential,Milestones - Unit 10,5115.28, 05-Jul-2016
1139,Revenue,CAHD,Bed Purchasing - South,Permanent Residential,Milestones - Unit 10,5676.44, 05-Jul-2016
1140,Revenue,CAHD,Bed purchasing - S28A Under 65 - South,Permanent Nursing,Milestones - Unit 10,7458.52, 05-Jul-2016
1141,Revenue,CAHD,MH Purchasing - Younger,Permanent Residential,Milestones - Unit 10,869.20, 05-Jul-2016
1142,Revenue,CAHD,Bed Purchasing - South,Permanent Residential,Milestones - Unit 10,5185.20, 05-Jul-2016
1143,Revenue,CAHD,Bed Purchasing - South,Permanent Residential,Milestones - Unit 10,5235.36, 05-Jul-2016
1144,Revenue,CAHD,Jointly Funded H&SC Packages,Permanent Residential,Milestones - Unit 10,677.90, 05-Jul-2016
1145,Revenue,CAHD,Bed Purchasing - North,Permanent Residential,Milestones - Unit 10,9590.80, 05-Jul-2016
1146,Revenue,CAHD,Bed Purchasing - North,Permanent Residential,Milestones - Unit 10,4359.12, 05-Jul-2016
1147,Revenue,CAHD,Jointly Funded H&SC Packages,Permanent Residential,Milestones - Unit 10,620.11, 05-Jul-2016
1148,Revenue,CAHD,Bed purchasing -S28A  Under 65 - North,Permanent Nursing,Milestones - Unit 10,5394.36, 05-Jul-2016
1149,Revenue,CAHD,Bed Purchasing - North,Permanent Residential,Milestones - Unit 10,4754.08, 05-Jul-2016
1150,Revenue,CAHD,Bed purchasing -S28A  Under 65 - North,Permanent Residential,Milestones - Unit 10,7237.44, 05-Jul-2016
1151,Revenue,CAHD,Bed purchasing -S28A  Under 65 - North,Permanent Nursing,Milestones - Unit 10,5949.20, 05-Jul-2016
1152,Revenue,CAHD,Bed Purchasing - South,Permanent Residential,Milestones - Unit 10,3295.32, 05-Jul-2016
1153,Revenue,CAHD,Bed purchasing -S28A  Under 65 - North,Permanent Residential,Milestones - Unit 10,6926.36, 05-Jul-2016
1154,Revenue,CAHD,Bed purchasing - S28A Under 65 - South,Permanent Residential,Milestones - Unit 10,4642.40, 05-Jul-2016
1155,Revenue,CAHD,Bed Purchasing - S28A - Over 65- North,Permanent Residential,Milestones - Unit 10,6751.80, 05-Jul-2016
1156,Revenue,CAHD,Bed purchasing -S28A  Under 65 - North,Permanent Residential,Milestones - Unit 10,7197.64, 05-Jul-2016
1157,Revenue,CAHD,Bed purchasing -S28A  Under 65 - North,Permanent Residential,Milestones - Unit 10,7237.64, 05-Jul-2016
1158,Revenue,CAHD,Bed Purchasing - LD S28A- Over 65- South,Permanent Residential,Milestones - Unit 10,4183.96, 05-Jul-2016
1159,Revenue,CAHD,Bed purchasing - S28A Under 65 - South,Permanent Residential,Milestones - Unit 10,4514.88, 05-Jul-2016
1160,Revenue,CAHD,Bed purchasing - S28A Under 65 - South,Permanent Residential,Milestones - Unit 10,3759.36, 05-Jul-2016
1161,Revenue,CAHD,Bed Purchasing - LD S28A- Over 65- South,Permanent Residential,Milestones - Unit 10,5201.24, 05-Jul-2016
1162,Revenue,CAHD,Bed Purchasing - LD S28A- Over 65- South,Permanent Residential,Milestones - Unit 10,4853.32, 05-Jul-2016
1163,Revenue,CAHD,Bed Purchasing - LD S28A- Over 65- South,Permanent Residential,Milestones - Unit 10,5185.08, 05-Jul-2016
1164,Revenue,CAHD,Bed Purchasing - LD S28A- Over 65- South,Permanent Residential,Milestones - Unit 10,4445.28, 05-Jul-2016
1165,Revenue,CAHD,Bed Purchasing - LD S28A- Over 65- South,Permanent Residential,Milestones - Unit 10,5282.28, 05-Jul-2016
1166,Revenue,CAHD,Bed Purchasing - S28A - Over 65- North,Permanent Residential,Milestones - Unit 10,2930.80, 05-Jul-2016
1167,Revenue,CAHD,Section 117 Placements MH Younger,Permanent Residential,Milestones - Unit 10,1392.00, 05-Jul-2016
1168,Revenue,CAHD,Bed Purchasing - South,Permanent Residential,Milestones - Unit 10,869.20, 05-Jul-2016
1169,Revenue,CAHD,Bed Purchasing - Southmead Hospital,Permanent Nursing,Milestones - Unit 10,5894.84, 05-Jul-2016
1170,Revenue,CAHD,Bed Purchasing - North,Permanent Residential,Milestones - Unit 10,4398.36, 05-Jul-2016
1171,Revenue,CAHD,Bed Purchasing - North,Permanent Nursing,Milestones - Unit 10,7038.56, 05-Jul-2016
1172,Revenue,CAHD,Bed Purchasing - South,Permanent Residential,Milestones - Unit 10,4381.84, 05-Jul-2016
1173,Revenue,CAHD,Bed purchasing -S28A  Under 65 - North,Permanent Residential,Milestones - Unit 10,5820.32, 05-Jul-2016
1174,Revenue,CAHD,Bed Purchasing - S28A - Over 65- North,Permanent Residential,Milestones - Unit 10,3672.60, 05-Jul-2016
1175,Revenue,CAHD,Bed Purchasing - Southmead Hospital,Permanent Residential,Milestones - Unit 10,3860.00, 05-Jul-2016
1176,Revenue,CAHD,MH Purchasing - Younger,Permanent Residential,Milestones - Unit 10,1070.20, 05-Jul-2016
1177,Revenue,CAHD,Bed Purchasing - S28A - Over 65- North,Permanent Residential,Milestones - Unit 10,3278.64, 05-Jul-2016
1178,Revenue,CAHD,Bed Purchasing - LD S28A- Over 65- South,Permanent Residential,Milestones - Unit 10,3962.56, 05-Jul-2016
1179,Revenue,CAHD,Bed purchasing - S28A Under 65 - South,Permanent Residential,Milestones - Unit 10,5303.96, 05-Jul-2016
1180,Revenue,CAHD,Bed purchasing - S28A Under 65 - South,Permanent Nursing,Milestones - Unit 10,5300.36, 05-Jul-2016
1181,Revenue,CAHD,Bed Purchasing - LD S28A- Over 65- South,Permanent Nursing,Milestones - Unit 10,5338.96, 05-Jul-2016
1182,Revenue,CAHD,Bed Purchasing - LD S28A- Over 65- South,Permanent Residential,Milestones - Unit 10,4855.28, 05-Jul-2016
1183,Revenue,CAHD,Bed Purchasing - LD S28A- Over 65- South,Permanent Residential,Milestones - Unit 10,4697.92, 05-Jul-2016
1184,Revenue,CAHD,Bed purchasing - S28A Under 65 - South,Permanent Residential,Milestones - Unit 10,6204.36, 05-Jul-2016
1185,Revenue,CAHD,Bed Purchasing - LD S28A- Over 65- South,Permanent Residential,Milestones - Unit 10,4766.88, 05-Jul-2016
1186,Revenue,CAHD,Bed Purchasing - S28A - Over 65- North,Permanent Nursing,Milestones - Unit 10,4852.12, 05-Jul-2016
1187,Revenue,CAHD,Bed Purchasing - South,Permanent Nursing,Milestones - Unit 10,3364.96, 05-Jul-2016
1188,Revenue,CAHD,Bed Purchasing - S28A - Over 65- North,Permanent Residential,Milestones - Unit 10,4686.32, 05-Jul-2016
1189,Revenue,CAHD,Bed purchasing - S28A Under 65 - South,Permanent Residential,Milestones - Unit 10,4878.44, 05-Jul-2016
1190,Revenue,CAHD,Bed Purchasing - S28A - Over 65- North,Permanent Residential,Milestones - Unit 10,4598.88, 05-Jul-2016
1191,Revenue,CAHD,Bed purchasing -S28A  Under 65 - North,Permanent Residential,Milestones - Unit 10,7237.64, 05-Jul-2016
1192,Revenue,CAHD,Bed purchasing -S28A  Under 65 - North,Permanent Residential,Milestones - Unit 10,3390.56, 05-Jul-2016
1193,Revenue,CAHD,Bed Purchasing - North,Permanent Residential,Milestones - Unit 10,3194.72, 05-Jul-2016
1194,Revenue,CAHD,Bed Purchasing - S28A - Over 65- North,Permanent Residential,Milestones - Unit 10,3500.64, 05-Jul-2016
1195,Revenue,CAHD,Bed Purchasing - North,Permanent Residential,Milestones - Unit 10,22484.60, 05-Jul-2016
1196,Revenue,CAHD,Bed Purchasing - North,Permanent Nursing,Milestones - Unit 10,1337.20, 05-Jul-2016
1197,Revenue,CAHD,MH Purchasing - Younger,Permanent Nursing,Milestones - Unit 10,961.20, 05-Jul-2016
1198,Revenue,CAHD,MH Purchasing - Younger,Permanent Nursing,Milestones - Unit 10,2403.00, 05-Jul-2016
1199,Revenue,CAHD,MH Purchasing - Younger,Permanent Nursing,Milestones - Unit 10,961.20, 05-Jul-2016
1200,Revenue,CAHD,Bed Purchasing - South,Permanent Residential,Milestones - Unit 10,3319.32, 05-Jul-2016
1201,Revenue,CAHD,Bed purchasing - S28A Under 65 - South,Permanent Residential,Milestones - Unit 10,6069.84, 05-Jul-2016
1202,Revenue,CAHD,Bed purchasing - S28A Under 65 - South,Permanent Residential,Milestones - Unit 10,6142.88, 05-Jul-2016
1203,Revenue,CAHD,Bed Purchasing - Southmead Hospital,Permanent Nursing,Milestones - Unit 10,5920.40, 05-Jul-2016
1204,Revenue,CAHD,Bed Purchasing - LD S28A- Over 65- South,Permanent Residential,Milestones - Unit 10,4445.28, 05-Jul-2016
1205,Revenue,CAHD,Bed Purchasing - South,Permanent Residential,Milestones - Unit 10,6070.28, 05-Jul-2016
1206,Revenue,CAHD,Bed Purchasing - LD S28A- Over 65- South,Permanent Nursing,Milestones - Unit 10,5338.96, 05-Jul-2016
1207,Revenue,CAHD,Bed Purchasing - LD S28A- Over 65- South,Permanent Residential,Milestones - Unit 10,3613.04, 05-Jul-2016
1208,Revenue,CAHD,Bed Purchasing - South,Permanent Residential,Milestones - Unit 10,4435.16, 05-Jul-2016
1209,Revenue,CAHD,Bed Purchasing - South,Permanent Residential,Milestones - Unit 10,1255.28, 05-Jul-2016
1210,Revenue,CAHD,Bed purchasing -S28A  Under 65 - North,Permanent Nursing,Milestones - Unit 10,7807.00, 05-Jul-2016
1211,Revenue,CAHD,Bed Purchasing - North,Permanent Nursing,Milestones - Unit 10,1480.16, 05-Jul-2016
1212,Revenue,CAHD,Section 117 Placements MH Younger,Permanent Residential,Milestones - Unit 10,1392.00, 05-Jul-2016
1213,Revenue,CAHD,Bed Purchasing - South,Permanent Nursing,Milestones - Unit 10,3430.56, 05-Jul-2016
1214,Revenue,CAHD,Bed Purchasing - South,Permanent Nursing,Milestones - Unit 10,2835.96, 05-Jul-2016
1215,Revenue,CAHD,Bed Purchasing - S28A - Over 65- North,Permanent Nursing,Milestones - Unit 10,3720.92, 05-Jul-2016
1216,Revenue,CAHD,Home Care - Elderly - South,Other Small Contracts,Milestones Homecare & Dementia Service,885.78, 22-Jul-2016
1217,Revenue,CAHD,Home Care - Elderly - North,Other Small Contracts,Milestones Homecare & Dementia Service,1871.31, 22-Jul-2016
1218,Revenue,CAHD,Home care - Elderly MH - North,Other Small Contracts,Milestones Homecare & Dementia Service,51.87, 22-Jul-2016
1219,Revenue,CAHD,Home Care - Elderly - South,Other Small Contracts,Milestones Homecare & Dementia Service,929.67, 22-Jul-2016
1220,Revenue,CAHD,Home Care - Elderly - North,Other Small Contracts,Milestones Homecare & Dementia Service,1979.04, 22-Jul-2016
1221,Revenue,CAHD,Home care - Elderly MH - North,Other Small Contracts,Milestones Homecare & Dementia Service,43.89, 22-Jul-2016
1222,Revenue,CAHD,Home Care - Elderly - South,Other Small Contracts,Milestones Homecare & Dementia Service,889.77, 15-Jul-2016
1223,Revenue,CAHD,Home Care - Elderly - North,Other Small Contracts,Milestones Homecare & Dementia Service,1687.77, 15-Jul-2016
1224,Revenue,CAHD,Home care - Elderly MH - North,Other Small Contracts,Milestones Homecare & Dementia Service,55.86, 15-Jul-2016
1225,Revenue,CAHD,Home Care - Elderly - South,Other Small Contracts,Milestones Homecare & Dementia Service,889.77, 22-Jul-2016
1226,Revenue,CAHD,Home Care - Elderly - North,Other Small Contracts,Milestones Homecare & Dementia Service,1619.94, 22-Jul-2016
1227,Revenue,CAHD,Home care - Elderly MH - North,Other Small Contracts,Milestones Homecare & Dementia Service,59.85, 22-Jul-2016
1228,Revenue,CAHD,Home Care - Elderly - South,Day Care / Social Activities,Milestones Supported Living Services,7255.73, 07-Jul-2016
1229,Revenue,CAHD,Home Care - Elderly - South,Other Small Contracts,Milestones Supported Living Services,921.90, 07-Jul-2016
1230,Revenue,CAHD,Home Care - Elderly - South,Supported Living,Milestones Supported Living Services,1897.03, 07-Jul-2016
1231,Revenue,CAHD,Home Care - Elderly - North,Day Care / Social Activities,Milestones Supported Living Services,2938.34, 07-Jul-2016
1232,Revenue,CAHD,Home Care - Elderly - North,Other Small Contracts,Milestones Supported Living Services,284.48, 07-Jul-2016
1233,Revenue,CAHD,Home Care - Elderly - North,Supported Living,Milestones Supported Living Services,162.40, 07-Jul-2016
1234,Revenue,CAHD,Day Care - South,Day Care / Social Activities,Milestones Supported Living Services,97.44, 07-Jul-2016
1235,Revenue,CAHD,Day Care - North,Day Care / Social Activities,Milestones Supported Living Services,129.92, 07-Jul-2016
1236,Revenue,CAHD,Younger MH non-res purchasing,Day Care / Social Activities,Milestones Supported Living Services,20.30, 07-Jul-2016
1237,Revenue,CAHD,Home care - Elderly MH - North,Other Small Contracts,Milestones Supported Living Services,150.22, 07-Jul-2016
1238,Revenue,CAHD,Home Care - Elderly - South,Day Care / Social Activities,Milestones Supported Living Services,7055.98, 07-Jul-2016
1239,Revenue,CAHD,Home Care - Elderly - South,Other Small Contracts,Milestones Supported Living Services,1031.52, 07-Jul-2016
1240,Revenue,CAHD,Home Care - Elderly - South,Supported Living,Milestones Supported Living Services,1818.88, 07-Jul-2016
1241,Revenue,CAHD,Home Care - Elderly - North,Day Care / Social Activities,Milestones Supported Living Services,2614.64, 07-Jul-2016
1242,Revenue,CAHD,Home Care - Elderly - North,Other Small Contracts,Milestones Supported Living Services,714.84, 07-Jul-2016
1243,Revenue,CAHD,Home Care - Elderly - North,Supported Living,Milestones Supported Living Services,150.22, 07-Jul-2016
1244,Revenue,CAHD,Day Care - South,Day Care / Social Activities,Milestones Supported Living Services,101.50, 07-Jul-2016
1245,Revenue,CAHD,Day Care - North,Day Care / Social Activities,Milestones Supported Living Services,129.92, 07-Jul-2016
1246,Revenue,CAHD,Younger MH non-res purchasing,Day Care / Social Activities,Milestones Supported Living Services,24.36, 07-Jul-2016
1247,Revenue,CAHD,Home care - Elderly MH - North,Other Small Contracts,Milestones Supported Living Services,129.92, 07-Jul-2016
1248,Revenue,CAHD,Home Care - Elderly - South,Day Care / Social Activities,Milestones Supported Living Services,6343.68, 07-Jul-2016
1249,Revenue,CAHD,Home Care - Elderly - South,Other Small Contracts,Milestones Supported Living Services,2265.76, 07-Jul-2016
1250,Revenue,CAHD,Home Care - Elderly - South,Supported Living,Milestones Supported Living Services,1814.82, 07-Jul-2016
1251,Revenue,CAHD,Home Care - Elderly - North,Day Care / Social Activities,Milestones Supported Living Services,2488.78, 07-Jul-2016
1252,Revenue,CAHD,Home Care - Elderly - North,Other Small Contracts,Milestones Supported Living Services,739.20, 07-Jul-2016
1253,Revenue,CAHD,Home Care - Elderly - North,Supported Living,Milestones Supported Living Services,162.40, 07-Jul-2016
1254,Revenue,CAHD,Day Care - South,Day Care / Social Activities,Milestones Supported Living Services,97.44, 07-Jul-2016
1255,Revenue,CAHD,Day Care - North,Day Care / Social Activities,Milestones Supported Living Services,121.80, 07-Jul-2016
1256,Revenue,CAHD,Home care - Elderly MH - North,Other Small Contracts,Milestones Supported Living Services,129.92, 07-Jul-2016
1257,Revenue,CAHD,Home Care - Elderly - South,Day Care / Social Activities,Milestones Supported Living Services,5438.37, 07-Jul-2016
1258,Revenue,CAHD,Home Care - Elderly - South,Other Small Contracts,Milestones Supported Living Services,1620.22, 07-Jul-2016
1259,Revenue,CAHD,Home Care - Elderly - South,Supported Living,Milestones Supported Living Services,1762.04, 07-Jul-2016
1260,Revenue,CAHD,Home Care - Elderly - North,Day Care / Social Activities,Milestones Supported Living Services,2346.68, 07-Jul-2016
1261,Revenue,CAHD,Home Care - Elderly - North,Other Small Contracts,Milestones Supported Living Services,487.48, 07-Jul-2016
1262,Revenue,CAHD,Home Care - Elderly - North,Supported Living,Milestones Supported Living Services,121.80, 07-Jul-2016
1263,Revenue,CAHD,Day Care - South,Day Care / Social Activities,Milestones Supported Living Services,97.44, 07-Jul-2016
1264,Revenue,CAHD,Day Care - North,Day Care / Social Activities,Milestones Supported Living Services,73.08, 07-Jul-2016
1265,Revenue,CAHD,Home care - Elderly MH - North,Other Small Contracts,Milestones Supported Living Services,129.92, 07-Jul-2016
1266,Revenue,CAHD,Home Care - Elderly - South,Day Care / Social Activities,Milestones Supported Living Services,4799.94, 07-Jul-2016
1267,Revenue,CAHD,Home Care - Elderly - South,Other Small Contracts,Milestones Supported Living Services,1311.66, 07-Jul-2016
1268,Revenue,CAHD,Home Care - Elderly - South,Supported Living,Milestones Supported Living Services,1827.00, 07-Jul-2016
1269,Revenue,CAHD,Home Care - Elderly - North,Day Care / Social Activities,Milestones Supported Living Services,2459.86, 07-Jul-2016
1270,Revenue,CAHD,Home Care - Elderly - North,Other Small Contracts,Milestones Supported Living Services,576.80, 07-Jul-2016
1271,Revenue,CAHD,Home Care - Elderly - North,Supported Living,Milestones Supported Living Services,36.54, 07-Jul-2016
1272,Revenue,CAHD,Day Care - South,Day Care / Social Activities,Milestones Supported Living Services,97.44, 07-Jul-2016
1273,Revenue,CAHD,Day Care - North,Day Care / Social Activities,Milestones Supported Living Services,138.04, 07-Jul-2016
1274,Revenue,CAHD,Home care - Elderly MH - North,Other Small Contracts,Milestones Supported Living Services,105.56, 07-Jul-2016
1275,Revenue,CAHD,Home Care - Elderly - South,Day Care / Social Activities,Milestones Supported Living Services,7699.28, 20-Jul-2016
1276,Revenue,CAHD,Home Care - Elderly - South,Other Small Contracts,Milestones Supported Living Services,2368.28, 20-Jul-2016
1277,Revenue,CAHD,Home Care - Elderly - South,Supported Living,Milestones Supported Living Services,1798.58, 20-Jul-2016
1278,Revenue,CAHD,Home Care - Elderly - North,Day Care / Social Activities,Milestones Supported Living Services,2638.45, 20-Jul-2016
1279,Revenue,CAHD,Home Care - Elderly - North,Other Small Contracts,Milestones Supported Living Services,1413.16, 20-Jul-2016
1280,Revenue,CAHD,Home Care - Elderly - North,Supported Living,Milestones Supported Living Services,162.40, 20-Jul-2016
1281,Revenue,CAHD,Day Care - South,Day Care / Social Activities,Milestones Supported Living Services,97.44, 20-Jul-2016
1282,Revenue,CAHD,Day Care - North,Day Care / Social Activities,Milestones Supported Living Services,117.74, 20-Jul-2016
1283,Revenue,CAHD,Younger MH non-res purchasing,Day Care / Social Activities,Milestones Supported Living Services,36.54, 20-Jul-2016
1284,Revenue,CAHD,Home care - Elderly MH - North,Other Small Contracts,Milestones Supported Living Services,129.92, 20-Jul-2016
1285,Revenue,CAHD,Home Care - Elderly - South,Day Care / Social Activities,Milestones Supported Living Services,7439.44, 20-Jul-2016
1286,Revenue,CAHD,Home Care - Elderly - South,Other Small Contracts,Milestones Supported Living Services,2191.41, 20-Jul-2016
1287,Revenue,CAHD,Home Care - Elderly - South,Supported Living,Milestones Supported Living Services,1806.70, 20-Jul-2016
1288,Revenue,CAHD,Home Care - Elderly - North,Day Care / Social Activities,Milestones Supported Living Services,2602.46, 20-Jul-2016
1289,Revenue,CAHD,Home Care - Elderly - North,Other Small Contracts,Milestones Supported Living Services,1506.54, 20-Jul-2016
1290,Revenue,CAHD,Home Care - Elderly - North,Supported Living,Milestones Supported Living Services,166.46, 20-Jul-2016
1291,Revenue,CAHD,Day Care - South,Day Care / Social Activities,Milestones Supported Living Services,97.44, 20-Jul-2016
1292,Revenue,CAHD,Day Care - North,Day Care / Social Activities,Milestones Supported Living Services,129.92, 20-Jul-2016
1293,Revenue,CAHD,Younger MH non-res purchasing,Day Care / Social Activities,Milestones Supported Living Services,24.36, 20-Jul-2016
1294,Revenue,CAHD,Home care - Elderly MH - North,Other Small Contracts,Milestones Supported Living Services,129.92, 20-Jul-2016
1295,Revenue,CAHD,Home Care - Elderly - South,Day Care / Social Activities,Milestones Supported Living Services,8188.01, 20-Jul-2016
1296,Revenue,CAHD,Home Care - Elderly - South,Other Small Contracts,Milestones Supported Living Services,2302.30, 20-Jul-2016
1297,Revenue,CAHD,Home Care - Elderly - South,Supported Living,Milestones Supported Living Services,1835.12, 20-Jul-2016
1298,Revenue,CAHD,Home Care - Elderly - North,Day Care / Social Activities,Milestones Supported Living Services,2606.52, 20-Jul-2016
1299,Revenue,CAHD,Home Care - Elderly - North,Other Small Contracts,Milestones Supported Living Services,1380.68, 20-Jul-2016
1300,Revenue,CAHD,Home Care - Elderly - North,Supported Living,Milestones Supported Living Services,162.40, 20-Jul-2016
1301,Revenue,CAHD,Day Care - South,Day Care / Social Activities,Milestones Supported Living Services,97.44, 20-Jul-2016
1302,Revenue,CAHD,Day Care - North,Day Care / Social Activities,Milestones Supported Living Services,129.92, 20-Jul-2016
1303,Revenue,CAHD,Younger MH non-res purchasing,Day Care / Social Activities,Milestones Supported Living Services,32.48, 20-Jul-2016
1304,Revenue,CAHD,Home care - Elderly MH - North,Other Small Contracts,Milestones Supported Living Services,133.98, 20-Jul-2016
1305,Revenue,CAHD,Home Care - Elderly - South,Day Care / Social Activities,Milestones Supported Living Services,7764.24, 20-Jul-2016
1306,Revenue,CAHD,Home Care - Elderly - South,Other Small Contracts,Milestones Supported Living Services,2314.30, 20-Jul-2016
1307,Revenue,CAHD,Home Care - Elderly - South,Supported Living,Milestones Supported Living Services,1753.92, 20-Jul-2016
1308,Revenue,CAHD,Home Care - Elderly - North,Day Care / Social Activities,Milestones Supported Living Services,2606.52, 20-Jul-2016
1309,Revenue,CAHD,Home Care - Elderly - North,Other Small Contracts,Milestones Supported Living Services,1417.22, 20-Jul-2016
1310,Revenue,CAHD,Home Care - Elderly - North,Supported Living,Milestones Supported Living Services,162.40, 20-Jul-2016
1311,Revenue,CAHD,Day Care - South,Day Care / Social Activities,Milestones Supported Living Services,73.08, 20-Jul-2016
1312,Revenue,CAHD,Day Care - North,Day Care / Social Activities,Milestones Supported Living Services,121.80, 20-Jul-2016
1313,Revenue,CAHD,Home care - Elderly MH - North,Other Small Contracts,Milestones Supported Living Services,125.86, 20-Jul-2016
1314,Revenue,CAHD,Home Care - Elderly - South,Day Care / Social Activities,Milestones Supported Living Services,7918.52, 20-Jul-2016
1315,Revenue,CAHD,Home Care - Elderly - South,Other Small Contracts,Milestones Supported Living Services,2391.62, 20-Jul-2016
1316,Revenue,CAHD,Home Care - Elderly - South,Supported Living,Milestones Supported Living Services,1822.94, 20-Jul-2016
1317,Revenue,CAHD,Home Care - Elderly - North,Day Care / Social Activities,Milestones Supported Living Services,2606.52, 20-Jul-2016
1318,Revenue,CAHD,Home Care - Elderly - North,Other Small Contracts,Milestones Supported Living Services,1323.88, 20-Jul-2016
1319,Revenue,CAHD,Home Care - Elderly - North,Supported Living,Milestones Supported Living Services,125.86, 20-Jul-2016
1320,Revenue,CAHD,Day Care - South,Day Care / Social Activities,Milestones Supported Living Services,97.44, 20-Jul-2016
1321,Revenue,CAHD,Day Care - North,Day Care / Social Activities,Milestones Supported Living Services,117.74, 20-Jul-2016
1322,Revenue,CAHD,Younger MH non-res purchasing,Day Care / Social Activities,Milestones Supported Living Services,28.42, 20-Jul-2016
1323,Revenue,CAHD,Home care - Elderly MH - North,Other Small Contracts,Milestones Supported Living Services,129.92, 20-Jul-2016
1324,Revenue,CAHD,Home Care - Elderly - South,Day Care / Social Activities,Milestones Supported Living Services,7471.92, 20-Jul-2016
1325,Revenue,CAHD,Home Care - Elderly - South,Other Small Contracts,Milestones Supported Living Services,2192.68, 20-Jul-2016
1326,Revenue,CAHD,Home Care - Elderly - South,Supported Living,Milestones Supported Living Services,1818.88, 20-Jul-2016
1327,Revenue,CAHD,Home Care - Elderly - North,Day Care / Social Activities,Milestones Supported Living Services,2578.10, 20-Jul-2016
1328,Revenue,CAHD,Home Care - Elderly - North,Other Small Contracts,Milestones Supported Living Services,1299.52, 20-Jul-2016
1329,Revenue,CAHD,Home Care - Elderly - North,Supported Living,Milestones Supported Living Services,158.34, 20-Jul-2016
1330,Revenue,CAHD,Day Care - South,Day Care / Social Activities,Milestones Supported Living Services,109.62, 20-Jul-2016
1331,Revenue,CAHD,Day Care - North,Day Care / Social Activities,Milestones Supported Living Services,125.86, 20-Jul-2016
1332,Revenue,CAHD,Home care - Elderly MH - North,Other Small Contracts,Milestones Supported Living Services,129.92, 20-Jul-2016
1333,Revenue,CAHD,Home Care - Elderly - South,Day Care / Social Activities,Milestones Supported Living Services,7445.43, 20-Jul-2016
1334,Revenue,CAHD,Home Care - Elderly - South,Other Small Contracts,Milestones Supported Living Services,2237.34, 20-Jul-2016
1335,Revenue,CAHD,Home Care - Elderly - South,Supported Living,Milestones Supported Living Services,1814.82, 20-Jul-2016
1336,Revenue,CAHD,Home Care - Elderly - North,Day Care / Social Activities,Milestones Supported Living Services,2431.94, 20-Jul-2016
1337,Revenue,CAHD,Home Care - Elderly - North,Other Small Contracts,Milestones Supported Living Services,1207.70, 20-Jul-2016
1338,Revenue,CAHD,Home Care - Elderly - North,Supported Living,Milestones Supported Living Services,166.46, 20-Jul-2016
1339,Revenue,CAHD,Day Care - South,Day Care / Social Activities,Milestones Supported Living Services,93.38, 20-Jul-2016
1340,Revenue,CAHD,Day Care - North,Day Care / Social Activities,Milestones Supported Living Services,129.92, 20-Jul-2016
1341,Revenue,CAHD,Younger MH non-res purchasing,Day Care / Social Activities,Milestones Supported Living Services,28.42, 20-Jul-2016
1342,Revenue,CAHD,Home care - Elderly MH - North,Other Small Contracts,Milestones Supported Living Services,121.80, 20-Jul-2016
1343,Revenue,CAHD,Bed Purchasing - Southmead Hospital,Permanent Nursing,Millennium House,3122.72, 05-Jul-2016
1344,Revenue,CAHD,Bed Purchasing - North,Permanent Residential,Millennium House,1449.48, 05-Jul-2016
1345,Revenue,CAHD,Bed Purchasing - Southmead Hospital,Permanent Residential,Mostyn Lodge Residential Home,1154.08, 05-Jul-2016
1346,Revenue,CAHD,Bed Purchasing - North,Permanent Residential,Mostyn Lodge Residential Home,1254.40, 05-Jul-2016
1347,Revenue,CAHD,Home Care - Elderly - South,Supported Living,Moving On,991.80, 01-Jul-2016
1348,Revenue,CAHD,Home Care - Elderly - South,Supported Living,Moving On,991.80, 01-Jul-2016
1349,Revenue,CAHD,Home Care - Elderly - South,Supported Living,Moving On (UK) Limited,2448.12, 05-Jul-2016
1350,Revenue,CAHD,Social Lettings Agency,Fees - General,Individual,10.53, 22-Jul-2016
1351,Revenue,CAHD,Social Lettings Agency,Other Supplies & Services,Individual,533.01, 22-Jul-2016
1352,Revenue,CAHD,Social Lettings Agency,Fees - General,Individual,7.24, 22-Jul-2016
1353,Revenue,CAHD,Social Lettings Agency,Other Supplies & Services,Individual,614.85, 22-Jul-2016
1354,Revenue,CAHD,Supporting People Programme,Grants to Voluntary Bodies,Mr & Mrs Watts,1023.33, 01-Jul-2016
1355,Revenue,CAHD,Social Lettings Agency,Fees - General,Individual,12.22, 29-Jul-2016
1356,Revenue,CAHD,Social Lettings Agency,Other Supplies & Services,Individual,690.32, 29-Jul-2016
1357,Revenue,CAHD,Homeless - Private Sector Leasing,Other Supplies & Services,Mr D G & Mrs L K Jenkins,595.00, 22-Jul-2016
1358,Revenue,CAHD,Social Lettings Agency,Fees - General,Individual,16.85, 07-Jul-2016
1359,Revenue,CAHD,Social Lettings Agency,Other Supplies & Services,Individual,951.89, 07-Jul-2016
1360,Revenue,CAHD,Social Lettings Agency,Fees - General,Individual,10.53, 01-Jul-2016
1361,Revenue,CAHD,Social Lettings Agency,Other Supplies & Services,Individual,595.11, 01-Jul-2016
1362,Revenue,CAHD,Social Lettings Agency,Fees - General,Individual,10.53, 01-Jul-2016
1363,Revenue,CAHD,Social Lettings Agency,Other Supplies & Services,Individual,595.11, 01-Jul-2016
1364,Revenue,CAHD,Social Lettings Agency,Fees - General,Individual,10.53, 01-Jul-2016
1365,Revenue,CAHD,Social Lettings Agency,Other Supplies & Services,Individual,595.11, 01-Jul-2016
1366,Revenue,CAHD,Social Lettings Agency,Fees - General,Individual,10.53, 01-Jul-2016
1367,Revenue,CAHD,Social Lettings Agency,Other Supplies & Services,Individual,595.11, 01-Jul-2016
1368,Revenue,CAHD,Social Lettings Agency,Fees - General,Individual,10.53, 08-Jul-2016
1369,Revenue,CAHD,Social Lettings Agency,Other Supplies & Services,Individual,595.11, 08-Jul-2016
1370,Revenue,CAHD,Social Lettings Agency,Fees - General,Individual,12.22, 08-Jul-2016
1371,Revenue,CAHD,Social Lettings Agency,Other Supplies & Services,Individual,690.32, 08-Jul-2016
1372,Revenue,CAHD,Social Lettings Agency,Fees - General,Individual,12.22, 01-Jul-2016
1373,Revenue,CAHD,Social Lettings Agency,Other Supplies & Services,Individual,690.32, 01-Jul-2016
1374,Revenue,CAHD,Social Lettings Agency,Fees - General,Individual,10.53, 22-Jul-2016
1375,Revenue,CAHD,Social Lettings Agency,Other Supplies & Services,Individual,595.11, 22-Jul-2016
1376,Revenue,CAHD,Social Lettings Agency,Fees - General,Individual,12.22, 20-Jul-2016
1377,Revenue,CAHD,Social Lettings Agency,Other Supplies & Services,Individual,690.32, 20-Jul-2016
1378,Revenue,CAHD,Social Lettings Agency,Fees - General,Individual,10.53, 15-Jul-2016
1379,Revenue,CAHD,Social Lettings Agency,Other Supplies & Services,Individual,595.11, 15-Jul-2016
1380,Revenue,CAHD,Tenancy Start Up Scheme,Other Supplies & Services,Individual,1148.00, 15-Jul-2016
1381,Revenue,CAHD,Social Lettings Agency,Fees - General,Individual,16.85, 22-Jul-2016
1382,Revenue,CAHD,Social Lettings Agency,Other Supplies & Services,Individual,951.90, 22-Jul-2016
1383,Revenue,CAHD,Social Lettings Agency,Fees - General,Individual,12.22, 20-Jul-2016
1384,Revenue,CAHD,Social Lettings Agency,Other Supplies & Services,Individual,680.32, 20-Jul-2016
1385,Revenue,CAHD,Social Lettings Agency,Fees - General,Individual,10.53, 29-Jul-2016
1386,Revenue,CAHD,Social Lettings Agency,Other Supplies & Services,Individual,595.11, 29-Jul-2016
1387,Revenue,CAHD,Home Care - Elderly - South,Day Care / Social Activities,Mrs B Kimber -  CM2000,1888.48, 01-Jul-2016
1388,Revenue,CAHD,Home Care - Elderly - South,Other Small Contracts,Mrs B Kimber -  CM2000,10097.52, 01-Jul-2016
1389,Revenue,CAHD,Home Care - Elderly - South,Supported Living,Mrs B Kimber -  CM2000,33.76, 01-Jul-2016
1390,Revenue,CAHD,Home Care - Elderly - North,Day Care / Social Activities,Mrs B Kimber -  CM2000,261.64, 01-Jul-2016
1391,Revenue,CAHD,Home Care - Elderly - North,Other Small Contracts,Mrs B Kimber -  CM2000,5300.32, 01-Jul-2016
1392,Revenue,CAHD,Home Care - Elderly - South,Day Care / Social Activities,Mrs B Kimber -  CM2000,1749.22, 21-Jul-2016
1393,Revenue,CAHD,Home Care - Elderly - South,Other Small Contracts,Mrs B Kimber -  CM2000,10038.28, 21-Jul-2016
1394,Revenue,CAHD,Home Care - Elderly - South,Supported Living,Mrs B Kimber -  CM2000,33.76, 21-Jul-2016
1395,Revenue,CAHD,Home Care - Elderly - North,Day Care / Social Activities,Mrs B Kimber -  CM2000,253.20, 21-Jul-2016
1396,Revenue,CAHD,Home Care - Elderly - North,Other Small Contracts,Mrs B Kimber -  CM2000,5532.42, 21-Jul-2016
1397,Revenue,CAHD,Home Care - Elderly - South,Day Care / Social Activities,Mrs B Kimber -  CM2000,2027.10, 21-Jul-2016
1398,Revenue,CAHD,Home Care - Elderly - South,Other Small Contracts,Mrs B Kimber -  CM2000,9798.28, 21-Jul-2016
1399,Revenue,CAHD,Home Care - Elderly - South,Supported Living,Mrs B Kimber -  CM2000,29.54, 21-Jul-2016
1400,Revenue,CAHD,Home Care - Elderly - North,Day Care / Social Activities,Mrs B Kimber -  CM2000,244.76, 21-Jul-2016
1401,Revenue,CAHD,Home Care - Elderly - North,Other Small Contracts,Mrs B Kimber -  CM2000,5452.24, 21-Jul-2016
1402,Revenue,CAHD,Home Care - Elderly - South,Day Care / Social Activities,Mrs B Kimber -  CM2000,2109.87, 28-Jul-2016
1403,Revenue,CAHD,Home Care - Elderly - South,Other Small Contracts,Mrs B Kimber -  CM2000,9410.04, 28-Jul-2016
1404,Revenue,CAHD,Home Care - Elderly - North,Day Care / Social Activities,Mrs B Kimber -  CM2000,253.20, 28-Jul-2016
1405,Revenue,CAHD,Home Care - Elderly - North,Other Small Contracts,Mrs B Kimber -  CM2000,5161.06, 28-Jul-2016
1406,Revenue,CAHD,Home Care - Elderly - South,Day Care / Social Activities,Mrs B Kimber -  CM2000,1977.10, 28-Jul-2016
1407,Revenue,CAHD,Home Care - Elderly - South,Other Small Contracts,Mrs B Kimber -  CM2000,9055.24, 28-Jul-2016
1408,Revenue,CAHD,Home Care - Elderly - South,Supported Living,Mrs B Kimber -  CM2000,29.54, 28-Jul-2016
1409,Revenue,CAHD,Home Care - Elderly - North,Day Care / Social Activities,Mrs B Kimber -  CM2000,253.20, 28-Jul-2016
1410,Revenue,CAHD,Home Care - Elderly - North,Other Small Contracts,Mrs B Kimber -  CM2000,5692.78, 28-Jul-2016
1411,Revenue,CAHD,Home Care - Elderly - South,Day Care / Social Activities,Mrs B Kimber -  CM2000,1998.20, 28-Jul-2016
1412,Revenue,CAHD,Home Care - Elderly - South,Other Small Contracts,Mrs B Kimber -  CM2000,9021.80, 28-Jul-2016
1413,Revenue,CAHD,Home Care - Elderly - South,Supported Living,Mrs B Kimber -  CM2000,33.76, 28-Jul-2016
1414,Revenue,CAHD,Home Care - Elderly - North,Day Care / Social Activities,Mrs B Kimber -  CM2000,253.20, 28-Jul-2016
1415,Revenue,CAHD,Home Care - Elderly - North,Other Small Contracts,Mrs B Kimber -  CM2000,5654.80, 28-Jul-2016
1416,Revenue,CAHD,Social Lettings Agency,Fees - General,Individual,10.53, 14-Jul-2016
1417,Revenue,CAHD,Social Lettings Agency,Other Supplies & Services,Individual,595.11, 14-Jul-2016
1418,Revenue,CAHD,Social Lettings Agency,Fees - General,Individual,10.00, 22-Jul-2016
1419,Revenue,CAHD,Social Lettings Agency,Other Supplies & Services,Individual,502.90, 22-Jul-2016
1420,Revenue,CAHD,Social Lettings Agency,Fees - General,Individual,10.53, 01-Jul-2016
1421,Revenue,CAHD,Social Lettings Agency,Other Supplies & Services,Individual,595.11, 01-Jul-2016
1422,Revenue,CAHD,Supported Living - North,Permanent Residential,Mrs I M Bowerman,1052.10, 04-Jul-2016
1423,Revenue,CAHD,Social Lettings Agency,Fees - General,Individual,10.53, 14-Jul-2016
1424,Revenue,CAHD,Social Lettings Agency,Other Supplies & Services,Individual,595.11, 14-Jul-2016
1425,Revenue,CAHD,Social Lettings Agency,Fees - General,Individual,10.53, 12-Jul-2016
1426,Revenue,CAHD,Social Lettings Agency,Other Supplies & Services,Individual,595.11, 12-Jul-2016
1427,Revenue,CAHD,Tenancy Start Up Scheme,Fees & Charges Income - General,Individual,1400.00, 15-Jul-2016
1428,Revenue,CAHD,Social Lettings Agency,Fees - General,Individual,10.53, 08-Jul-2016
1429,Revenue,CAHD,Social Lettings Agency,Other Supplies & Services,Individual,595.11, 08-Jul-2016
1430,Revenue,CAHD,Social Lettings Agency,Fees - General,Individual,16.85, 11-Jul-2016
1431,Revenue,CAHD,Social Lettings Agency,Other Supplies & Services,Individual,1000.00, 11-Jul-2016
1432,Revenue,CAHD,CAHA - Complaints and FOI,Complaints External Expenses,Ms Suzanne Gibbon,1589.08, 29-Jul-2016
1433,Revenue,CAHD,Bed Purchasing - North,Permanent Residential,Nas Services  Church House,7656.08, 05-Jul-2016
1434,Revenue,CAHD,Jointly Funded H&SC Packages,Permanent Residential,Nas Services  Church House,3109.52, 05-Jul-2016
1435,Revenue,CAHD,Bed Purchasing - North,Permanent Residential,Nas Services  Church House,6070.64, 05-Jul-2016
1436,Revenue,CAHD,Section 117 Placements MH Younger,Permanent Residential,Nas Services  Church House,7505.44, 05-Jul-2016
1437,Revenue,CAHD,Home Care - Elderly - South,Day Care / Social Activities,NAS Services Limited,625.92, 15-Jul-2016
1438,Revenue,CAHD,Home Care - Elderly - South,Supported Living,NAS Services Limited,19.56, 15-Jul-2016
1439,Revenue,CAHD,Home Care - Elderly - North,Day Care / Social Activities,NAS Services Limited,1070.91, 15-Jul-2016
1440,Revenue,CAHD,Home Care - Elderly - North,Supported Living,NAS Services Limited,352.08, 15-Jul-2016
1441,Revenue,CAHD,Younger MH non-res purchasing,Day Care / Social Activities,NAS Services Limited,234.72, 15-Jul-2016
1442,Revenue,CAHD,Home Care - Elderly - South,Day Care / Social Activities,NAS Services Limited,547.68, 15-Jul-2016
1443,Revenue,CAHD,Home Care - Elderly - South,Supported Living,NAS Services Limited,29.34, 15-Jul-2016
1444,Revenue,CAHD,Home Care - Elderly - North,Day Care / Social Activities,NAS Services Limited,1158.93, 15-Jul-2016
1445,Revenue,CAHD,Home Care - Elderly - North,Supported Living,NAS Services Limited,352.08, 15-Jul-2016
1446,Revenue,CAHD,Younger MH non-res purchasing,Day Care / Social Activities,NAS Services Limited,234.72, 15-Jul-2016
1447,Revenue,CAHD,Home Care - Elderly - South,Day Care / Social Activities,NAS Services Limited,645.48, 14-Jul-2016
1448,Revenue,CAHD,Home Care - Elderly - South,Supported Living,NAS Services Limited,19.56, 14-Jul-2016
1449,Revenue,CAHD,Home Care - Elderly - North,Day Care / Social Activities,NAS Services Limited,1105.14, 14-Jul-2016
1450,Revenue,CAHD,Home Care - Elderly - North,Supported Living,NAS Services Limited,352.08, 14-Jul-2016
1451,Revenue,CAHD,Younger MH non-res purchasing,Day Care / Social Activities,NAS Services Limited,234.72, 14-Jul-2016
1452,Revenue,CAHD,Home Care - Elderly - South,Day Care / Social Activities,NAS Services Limited,479.22, 29-Jul-2016
1453,Revenue,CAHD,Home Care - Elderly - South,Supported Living,NAS Services Limited,29.34, 29-Jul-2016
1454,Revenue,CAHD,Home Care - Elderly - North,Day Care / Social Activities,NAS Services Limited,1026.90, 29-Jul-2016
1455,Revenue,CAHD,Home Care - Elderly - North,Supported Living,NAS Services Limited,352.08, 29-Jul-2016
1456,Revenue,CAHD,Younger MH non-res purchasing,Day Care / Social Activities,NAS Services Limited,234.72, 29-Jul-2016
1457,Revenue,CAHD,Home Care - Elderly - South,Day Care / Social Activities,NAS Services Limited,606.36, 15-Jul-2016
1458,Revenue,CAHD,Home Care - Elderly - South,Supported Living,NAS Services Limited,29.34, 15-Jul-2016
1459,Revenue,CAHD,Home Care - Elderly - North,Day Care / Social Activities,NAS Services Limited,1066.02, 15-Jul-2016
1460,Revenue,CAHD,Home Care - Elderly - North,Supported Living,NAS Services Limited,273.84, 15-Jul-2016
1461,Revenue,CAHD,Younger MH non-res purchasing,Day Care / Social Activities,NAS Services Limited,234.72, 15-Jul-2016
1462,Revenue,CAHD,Bed Purchasing - Southmead Hospital,Permanent Residential,Nashley House Retirement Home,1277.20, 05-Jul-2016
1463,Revenue,CAHD,Newton House,Security Systems,National Security Group,78.95, 20-Jul-2016
1464,Revenue,CAHD,18-25 Year Olds,Respite Planned - Residential,National Star College FDY Limited,1185.45, 08-Jul-2016
1465,Revenue,CAHD,Home Care - Elderly - South,Day Care / Social Activities,Nestor T/A Allied Healthcare,74.10, 04-Jul-2016
1466,Revenue,CAHD,Home Care - Elderly - South,Other Small Contracts,Nestor T/A Allied Healthcare,1622.40, 04-Jul-2016
1467,Revenue,CAHD,Home Care - Elderly - North,Other Small Contracts,Nestor T/A Allied Healthcare,6423.30, 04-Jul-2016
1468,Revenue,CAHD,Day Care - North,Day Care / Social Activities,Nestor T/A Allied Healthcare,39.00, 04-Jul-2016
1469,Revenue,CAHD,Home Care - Elderly - South,Day Care / Social Activities,Nestor T/A Allied Healthcare,70.20, 04-Jul-2016
1470,Revenue,CAHD,Home Care - Elderly - South,Other Small Contracts,Nestor T/A Allied Healthcare,1856.40, 04-Jul-2016
1471,Revenue,CAHD,Home Care - Elderly - North,Other Small Contracts,Nestor T/A Allied Healthcare,6388.20, 04-Jul-2016
1472,Revenue,CAHD,Day Care - North,Day Care / Social Activities,Nestor T/A Allied Healthcare,39.00, 04-Jul-2016
1473,Revenue,CAHD,Home Care - Elderly - South,Day Care / Social Activities,Nestor T/A Allied Healthcare,66.30, 08-Jul-2016
1474,Revenue,CAHD,Home Care - Elderly - South,Other Small Contracts,Nestor T/A Allied Healthcare,2355.60, 08-Jul-2016
1475,Revenue,CAHD,Home Care - Elderly - North,Other Small Contracts,Nestor T/A Allied Healthcare,6345.30, 08-Jul-2016
1476,Revenue,CAHD,Day Care - North,Day Care / Social Activities,Nestor T/A Allied Healthcare,39.00, 08-Jul-2016
1477,Revenue,CAHD,Home Care - Elderly - South,Day Care / Social Activities,Nestor T/A Allied Healthcare,70.20, 15-Jul-2016
1478,Revenue,CAHD,Home Care - Elderly - South,Other Small Contracts,Nestor T/A Allied Healthcare,2226.90, 15-Jul-2016
1479,Revenue,CAHD,Home Care - Elderly - North,Other Small Contracts,Nestor T/A Allied Healthcare,6329.70, 15-Jul-2016
1480,Revenue,CAHD,Day Care - North,Day Care / Social Activities,Nestor T/A Allied Healthcare,39.00, 15-Jul-2016
1481,Revenue,CAHD,Home Care - Elderly - South,Day Care / Social Activities,Nestor T/A Allied Healthcare,70.20, 28-Jul-2016
1482,Revenue,CAHD,Home Care - Elderly - South,Other Small Contracts,Nestor T/A Allied Healthcare,2398.50, 28-Jul-2016
1483,Revenue,CAHD,Home Care - Elderly - North,Other Small Contracts,Nestor T/A Allied Healthcare,6173.70, 28-Jul-2016
1484,Revenue,CAHD,Day Care - North,Day Care / Social Activities,Nestor T/A Allied Healthcare,39.00, 28-Jul-2016
1485,Revenue,CAHD,Home Care - Elderly - South,Other Small Contracts,Network Health & Social Care T/A Network Ventures,2127.60, 04-Jul-2016
1486,Revenue,CAHD,Home Care - Elderly - North,Other Small Contracts,Network Health & Social Care T/A Network Ventures,2029.10, 04-Jul-2016
1487,Revenue,CAHD,Younger MH non-res purchasing,Other Small Contracts,Network Health & Social Care T/A Network Ventures,27.58, 04-Jul-2016
1488,Revenue,CAHD,Home Care - Elderly - South,Other Small Contracts,Network Health & Social Care T/A Network Ventures,2462.50, 04-Jul-2016
1489,Revenue,CAHD,Home Care - Elderly - North,Other Small Contracts,Network Health & Social Care T/A Network Ventures,2147.30, 04-Jul-2016
1490,Revenue,CAHD,Younger MH non-res purchasing,Other Small Contracts,Network Health & Social Care T/A Network Ventures,27.58, 04-Jul-2016
1491,Revenue,CAHD,Home Care - Elderly - South,Other Small Contracts,Network Health & Social Care T/A Network Ventures,2710.72, 05-Jul-2016
1492,Revenue,CAHD,Home Care - Elderly - North,Other Small Contracts,Network Health & Social Care T/A Network Ventures,1966.06, 05-Jul-2016
1493,Revenue,CAHD,Younger MH non-res purchasing,Other Small Contracts,Network Health & Social Care T/A Network Ventures,31.52, 05-Jul-2016
1494,Revenue,CAHD,Home Care - Elderly - South,Other Small Contracts,Network Health & Social Care T/A Network Ventures,2639.80, 21-Jul-2016
1495,Revenue,CAHD,Home Care - Elderly - North,Other Small Contracts,Network Health & Social Care T/A Network Ventures,2151.24, 21-Jul-2016
1496,Revenue,CAHD,Younger MH non-res purchasing,Other Small Contracts,Network Health & Social Care T/A Network Ventures,31.52, 21-Jul-2016
1497,Revenue,CAHD,Home Care - Elderly - South,Other Small Contracts,Network Health & Social Care T/A Network Ventures,2521.60, 21-Jul-2016
1498,Revenue,CAHD,Home Care - Elderly - North,Other Small Contracts,Network Health & Social Care T/A Network Ventures,2060.62, 21-Jul-2016
1499,Revenue,CAHD,Younger MH non-res purchasing,Other Small Contracts,Network Health & Social Care T/A Network Ventures,31.52, 21-Jul-2016
1500,Revenue,CAHD,Home Care - Elderly - South,Other Small Contracts,Network Health & Social Care T/A Network Ventures,2356.12, 21-Jul-2016
1501,Revenue,CAHD,Home Care - Elderly - North,Other Small Contracts,Network Health & Social Care T/A Network Ventures,2167.00, 21-Jul-2016
1502,Revenue,CAHD,Younger MH non-res purchasing,Other Small Contracts,Network Health & Social Care T/A Network Ventures,31.52, 21-Jul-2016
1503,Revenue,CAHD,Social Lettings Agency,Fees - General,Individual,10.00, 04-Jul-2016
1504,Revenue,CAHD,Social Lettings Agency,Other Supplies & Services,Individual,502.90, 04-Jul-2016
1505,Revenue,CAHD,Care Management Team - South,"Holidays, Outings & Visits",Neville Williams,916.00, 08-Jul-2016
1506,Revenue,CAHD,Care Management Team - South,"Holidays, Outings & Visits",Neville Williams,755.00, 29-Jul-2016
1507,Revenue,CAHD,Home Care - Elderly - North,Other Small Contracts,Newcross Healthcare Solutions Limited,1621.90, 29-Jul-2016
1508,Revenue,CAHD,Home Care - Elderly - North,Supported Living,Newplan House,2238.72, 05-Jul-2016
1509,Revenue,CAHD,Home Care - Elderly - North,Supported Living,Newplan House,2638.72, 05-Jul-2016
1510,Revenue,CAHD,SLA Grants - Support Serv,Grants to Voluntary Bodies,North Bristol NHS Trust,4350.00, 01-Jul-2016
1511,Revenue,CAHD,Bed Purchasing - South,Permanent Residential,Norwood   Broadway House,5099.92, 05-Jul-2016
1512,Revenue,CAHD,Bed Purchasing - South,Permanent Residential,Notaro Homes Ltd  Queensmead Court,1931.08, 05-Jul-2016
1513,Revenue,CAHD,MH Purchasing - Younger,Permanent Residential,Notaro Homes Ltd  Queensmead Court,3073.64, 05-Jul-2016
1514,Revenue,CAHD,Home Care - Elderly - South,Other Small Contracts,Nursing Solutions Limited,1366.17, 04-Jul-2016
1515,Revenue,CAHD,Home Care - Elderly - South,Other Small Contracts,Nursing Solutions Limited,1217.06, 15-Jul-2016
1516,Revenue,CAHD,Home Care - Elderly - South,Other Small Contracts,Nursing Solutions Limited,1269.45, 15-Jul-2016
1517,Revenue,CAHD,Home Care - Elderly - South,Other Small Contracts,Nursing Solutions Limited,1309.75, 15-Jul-2016
1518,Revenue,CAHD,Section 117 Placements MH Younger,Permanent Nursing,Oaklands,4679.96, 05-Jul-2016
1519,Revenue,CAHD,Jointly Funded H&SC Packages,Permanent Nursing,Oaklands,1558.32, 05-Jul-2016
1520,Revenue,CAHD,Kingswood Centre - Maple Suite,Personal Needs of Clients,OCS Group UK Ltd,548.58, 21-Jul-2016
1521,Revenue,CAHD,Alexandra Way,Refuse Collection Charges,OCS Group UK Ltd,482.97, 29-Jul-2016
1522,Revenue,CAHD,Woodleaze,Refuse Collection Charges,OCS Group UK Ltd,873.45, 20-Jul-2016
1523,Revenue,CAHD,Bed purchasing -S28A  Under 65 - North,Permanent Residential,Orchard End Limited,7753.96, 05-Jul-2016
1524,Revenue,CAHD,Bed Purchasing - North,Respite Planned - Residential,Osbourne Court,600.00, 05-Jul-2016
1525,Revenue,CAHD,Bed Purchasing - North,Permanent Residential,Osbourne Court,2035.20, 05-Jul-2016
1526,Revenue,CAHD,Bed Purchasing - North,Permanent Residential,Osbourne Court,2286.32, 05-Jul-2016
1527,Revenue,CAHD,Bed Purchasing - North,Permanent Residential,Osbourne Court,5032.94, 05-Jul-2016
1528,Revenue,CAHD,Bed Purchasing - North,Permanent Residential,Osbourne Court,2251.72, 05-Jul-2016
1529,Revenue,CAHD,Bed Purchasing - North,Permanent Residential,Osbourne Court,2234.28, 05-Jul-2016
1530,Revenue,CAHD,Bed Purchasing - North,Permanent Residential,Osbourne Court,1850.84, 05-Jul-2016
1531,Revenue,CAHD,Bed Purchasing - North,Permanent Residential,Osbourne Court,2089.80, 05-Jul-2016
1532,Revenue,CAHD,Bed Purchasing - North,Permanent Residential,Osbourne Court,1844.20, 05-Jul-2016
1533,Revenue,CAHD,Bed Purchasing - North,Permanent Residential,Osbourne Court,2719.60, 05-Jul-2016
1534,Revenue,CAHD,Bed Purchasing - South,Permanent Residential,Park Farm House,1820.48, 05-Jul-2016
1535,Revenue,CAHD,Bed Purchasing - Southmead Hospital,Permanent Residential,Park Farm House,4468.14, 05-Jul-2016
1536,Revenue,CAHD,Bed Purchasing - Southmead Hospital,Permanent Residential,Park Farm House,1733.48, 05-Jul-2016
1537,Revenue,CAHD,Bed Purchasing - South,Respite Emergency - Residential,Park Farm House,2780.00, 05-Jul-2016
1538,Revenue,CAHD,Bed Purchasing - South,Permanent Residential,Park Farm House,1638.96, 05-Jul-2016
1539,Revenue,CAHD,Bed Purchasing - Southmead Hospital,Permanent Residential,Park Farm House,2635.36, 05-Jul-2016
1540,Revenue,CAHD,Bed Purchasing - South,Permanent Residential,Park Hall,5699.60, 05-Jul-2016
1541,Revenue,CAHD,Bed Purchasing - North,Permanent Residential,Park Hall,5357.88, 05-Jul-2016
1542,Revenue,CAHD,Bed Purchasing - South,Permanent Residential,Park Hall,5064.16, 05-Jul-2016
1543,Revenue,CAHD,Bed Purchasing - South,Permanent Residential,Park Hall,2603.60, 05-Jul-2016
1544,Revenue,CAHD,Bed purchasing - S28A Under 65 - South,Permanent Residential,Park Hall,4803.32, 05-Jul-2016
1545,Revenue,CAHD,Bed Purchasing - South,Permanent Residential,Park Hall,5039.56, 05-Jul-2016
1546,Revenue,CAHD,Bed Purchasing - North,Permanent Residential,Park Hall,4434.60, 05-Jul-2016
1547,Revenue,CAHD,Bed Purchasing - South,Permanent Residential,Park Hall,7512.36, 05-Jul-2016
1548,Revenue,CAHD,Jointly Funded H&SC Packages,Permanent Residential,Park Hall,3519.92, 05-Jul-2016
1549,Revenue,CAHD,Bed purchasing -S28A  Under 65 - North,Permanent Residential,Park Hall,6082.16, 05-Jul-2016
1550,Revenue,CAHD,Bed purchasing - S28A Under 65 - South,Permanent Residential,Park Hall,5665.68, 05-Jul-2016
1551,Revenue,CAHD,18-25 Year Olds,Permanent Residential,Park Hall,7380.88, 05-Jul-2016
1552,Revenue,CAHD,Social Lettings Agency,Fees - General,Individual,10.50, 27-Jul-2016
1553,Revenue,CAHD,Social Lettings Agency,Other Supplies & Services,Individual,593.02, 27-Jul-2016
1554,Revenue,CAHD,Home Care - Elderly - North,Day Care / Social Activities,Pauls Place,504.48, 05-Jul-2016
1555,Revenue,CAHD,Home Care - Elderly - South,Day Care / Social Activities,Pauls Place,504.48, 05-Jul-2016
1556,Revenue,CAHD,Bed Purchasing - South,Permanent Residential,Penleigh House Care Home,4677.88, 05-Jul-2016
1557,Revenue,CAHD,Bed Purchasing - South,Permanent Residential,Penleigh House Care Home,6593.96, 05-Jul-2016
1558,Revenue,CAHD,Bed Purchasing - South,Permanent Residential,Penleigh House Care Home,4410.08, 05-Jul-2016
1559,Revenue,CAHD,Bed purchasing - S28A Under 65 - South,Permanent Residential,Penleigh House Care Home,5638.08, 05-Jul-2016
1560,Revenue,CAHD,Bed Purchasing - South,Permanent Residential,Penleigh House Care Home,5093.48, 05-Jul-2016
1561,Revenue,CAHD,Alexandra Way,Prop.Serv. General Repairs,Perrett Contracting Limited,650.00, 20-Jul-2016
1562,Revenue,CAHD,Woodleaze,Prop.Serv. General Repairs,Perrett Contracting Limited,650.00, 27-Jul-2016
1563,Revenue,CAHD,Mental Capacity Act - Advocacy,Professional Fees,Peter Carpenter Ltd,1086.40, 25-Jul-2016
1564,Revenue,CAHD,Supporting People Programme,Grants to Voluntary Bodies,Places for People,1162.00, 01-Jul-2016
1565,Revenue,CAHD,Home Care - Elderly - South,Other Small Contracts,Premier Homecare Limited,159.12, 05-Jul-2016
1566,Revenue,CAHD,Home Care - Elderly - North,Day Care / Social Activities,Premier Homecare Limited,74.88, 05-Jul-2016
1567,Revenue,CAHD,Home Care - Elderly - North,Other Small Contracts,Premier Homecare Limited,10052.64, 05-Jul-2016
1568,Revenue,CAHD,Elderly MH Day Care North,Day Care / Social Activities,Premier Homecare Limited,205.92, 05-Jul-2016
1569,Revenue,CAHD,Home Care - Elderly - South,Other Small Contracts,Premier Homecare Limited,168.48, 08-Jul-2016
1570,Revenue,CAHD,Home Care - Elderly - North,Day Care / Social Activities,Premier Homecare Limited,84.24, 08-Jul-2016
1571,Revenue,CAHD,Home Care - Elderly - North,Other Small Contracts,Premier Homecare Limited,9968.40, 08-Jul-2016
1572,Revenue,CAHD,Elderly MH Day Care North,Day Care / Social Activities,Premier Homecare Limited,205.92, 08-Jul-2016
1573,Revenue,CAHD,Home Care - Elderly - South,Other Small Contracts,Premier Homecare Limited,163.80, 15-Jul-2016
1574,Revenue,CAHD,Home Care - Elderly - North,Day Care / Social Activities,Premier Homecare Limited,84.24, 15-Jul-2016
1575,Revenue,CAHD,Home Care - Elderly - North,Other Small Contracts,Premier Homecare Limited,9673.56, 15-Jul-2016
1576,Revenue,CAHD,Elderly MH Day Care North,Day Care / Social Activities,Premier Homecare Limited,205.92, 15-Jul-2016
1577,Revenue,CAHD,Home Care - Elderly - South,Other Small Contracts,Prestige Nursing,449.00, 04-Jul-2016
1578,Revenue,CAHD,Home Care - Elderly - North,Other Small Contracts,Prestige Nursing,1432.31, 04-Jul-2016
1579,Revenue,CAHD,Day Care - South,Day Care / Social Activities,Prestige Nursing,125.72, 04-Jul-2016
1580,Revenue,CAHD,Home Care - Elderly - South,Other Small Contracts,Prestige Nursing,291.85, 04-Jul-2016
1581,Revenue,CAHD,Home Care - Elderly - North,Other Small Contracts,Prestige Nursing,3126.51, 04-Jul-2016
1582,Revenue,CAHD,Day Care - South,Day Care / Social Activities,Prestige Nursing,125.72, 04-Jul-2016
1583,Revenue,CAHD,Younger MH non-res purchasing,Other Small Contracts,Prestige Nursing,71.84, 04-Jul-2016
1584,Revenue,CAHD,Home Care - Elderly - South,Other Small Contracts,Prestige Nursing,408.59, 20-Jul-2016
1585,Revenue,CAHD,Home Care - Elderly - North,Other Small Contracts,Prestige Nursing,3713.91, 20-Jul-2016
1586,Revenue,CAHD,Day Care - South,Day Care / Social Activities,Prestige Nursing,125.72, 20-Jul-2016
1587,Revenue,CAHD,Home Care - Elderly - South,Other Small Contracts,Prestige Nursing,417.57, 05-Jul-2016
1588,Revenue,CAHD,Home Care - Elderly - North,Other Small Contracts,Prestige Nursing,3797.40, 05-Jul-2016
1589,Revenue,CAHD,Day Care - South,Day Care / Social Activities,Prestige Nursing,125.72, 05-Jul-2016
1590,Revenue,CAHD,Home Care - Elderly - South,Other Small Contracts,Prestige Nursing,453.49, 20-Jul-2016
1591,Revenue,CAHD,Home Care - Elderly - North,Other Small Contracts,Prestige Nursing,3646.56, 20-Jul-2016
1592,Revenue,CAHD,Day Care - South,Day Care / Social Activities,Prestige Nursing,125.72, 20-Jul-2016
1593,Revenue,CAHD,Alexandra Way,Agency Staff (Operational)/PCT Pay,Prestige Nursing,2039.58, 06-Jul-2016
1594,Revenue,CAHD,Alexandra Way,Agency Staff (Operational)/PCT Pay,Prestige Nursing,1500.78, 06-Jul-2016
1595,Revenue,CAHD,Alexandra Way,Agency Staff (Operational)/PCT Pay,Prestige Nursing,2224.15, 08-Jul-2016
1596,Revenue,CAHD,Bed Purchasing - Southmead Hospital,Permanent Nursing,Quarry House,5749.60, 05-Jul-2016
1597,Revenue,CAHD,Bed Purchasing - North,Permanent Nursing,Ravenswood,2249.20, 05-Jul-2016
1598,Revenue,CAHD,Bed Purchasing - Elderly S117- North,Permanent Residential,Real Life Options,9683.50, 05-Jul-2016
1599,Revenue,CAHD,Jointly Funded H&SC Packages,Permanent Residential,Real Life Options,7305.10, 05-Jul-2016
1600,Revenue,CAHD,Bed Purchasing - Elderly S117- North,Permanent Nursing,Redholme Memory Care Limited,2040.76, 05-Jul-2016
1601,Revenue,CAHD,Supporting People Programme,Grants to Voluntary Bodies,Redland Housing Association Ltd,739.16, 01-Jul-2016
1602,Revenue,CAHD,Bed Purchasing - Southmead Hospital,Permanent Nursing,Regent House,1321.44, 05-Jul-2016
1603,Revenue,CAHD,Bed Purchasing - South,Permanent Nursing,Regent House,2143.64, 05-Jul-2016
1604,Revenue,CAHD,Bed Purchasing - South,Permanent Nursing,Regent House,1697.08, 05-Jul-2016
1605,Revenue,CAHD,Bed Purchasing - South,Permanent Nursing,Regent House,2065.32, 05-Jul-2016
1606,Revenue,CAHD,Bed Purchasing - South,Permanent Nursing,Regent House,1722.60, 05-Jul-2016
1607,Revenue,CAHD,Bed Purchasing - South,Permanent Nursing,Regent House,1794.48, 05-Jul-2016
1608,Revenue,CAHD,Bed Purchasing - Southmead Hospital,Permanent Nursing,Regent House,2191.24, 05-Jul-2016
1609,Revenue,CAHD,Bed Purchasing - Southmead Hospital,Permanent Nursing,Regent House,2033.84, 05-Jul-2016
1610,Revenue,CAHD,Bed Purchasing - North,Permanent Nursing,Regent House,2044.36, 05-Jul-2016
1611,Revenue,CAHD,Bed Purchasing - South,Permanent Nursing,Regent House,2520.68, 05-Jul-2016
1612,Revenue,CAHD,South Glos Users in South Glos Homes,Permanent Nursing,Regent House,624.00, 05-Jul-2016
1613,Revenue,CAHD,Bed Purchasing - Elderly S117- North,Permanent Nursing,Regent House,3252.00, 05-Jul-2016
1614,Revenue,CAHD,Bed Purchasing - Southmead Hospital,Permanent Nursing,Regent House,3207.04, 05-Jul-2016
1615,Revenue,CAHD,South Glos Users in South Glos Homes,Permanent Nursing,Regent House,992.00, 05-Jul-2016
1616,Revenue,CAHD,South Glos Users in South Glos Homes,Permanent Nursing,Regent House,1280.00, 05-Jul-2016
1617,Revenue,CAHD,Bed Purchasing - Southmead Hospital,Permanent Nursing,Regent House,2861.20, 05-Jul-2016
1618,Revenue,CAHD,Bed Purchasing - South,Permanent Nursing,Regent House,2522.56, 05-Jul-2016
1619,Revenue,CAHD,Bed Purchasing - South,Permanent Residential,Ridgeway House,3593.48, 05-Jul-2016
1620,Revenue,CAHD,Bed Purchasing - South,Permanent Nursing,Riversway Nursing Home,3183.68, 05-Jul-2016
1621,Revenue,CAHD,Bed Purchasing - Southmead Hospital,Permanent Nursing,Riversway Nursing Home,922.36, 05-Jul-2016
1622,Revenue,CAHD,Bed Purchasing - Southmead Hospital,Permanent Nursing,Riversway Nursing Home,3071.84, 05-Jul-2016
1623,Revenue,CAHD,Bed Purchasing - Southmead Hospital,Permanent Nursing,Riversway Nursing Home,3280.24, 05-Jul-2016
1624,Revenue,CAHD,Bed Purchasing - South,Permanent Nursing,Riversway Nursing Home,3229.20, 05-Jul-2016
1625,Revenue,CAHD,Bed Purchasing - Southmead Hospital,Permanent Residential,Riversway Nursing Home,2869.60, 05-Jul-2016
1626,Revenue,CAHD,Bed Purchasing - Southmead Hospital,Respite Planned - Nursing,Riversway Nursing Home,3752.00, 05-Jul-2016
1627,Revenue,CAHD,Bed Purchasing - Southmead Hospital,Permanent Nursing,Riversway Nursing Home,2756.64, 05-Jul-2016
1628,Revenue,CAHD,Bed Purchasing - LD S28A- Over 65- South,Permanent Residential,Rockleaze,2118.32, 05-Jul-2016
1629,Revenue,CAHD,Bed Purchasing - South,Permanent Residential,Rockleaze,2459.40, 05-Jul-2016
1630,Revenue,CAHD,Bed Purchasing - South,Permanent Residential,Rosedale House,1544.12, 05-Jul-2016
1631,Revenue,CAHD,Bed Purchasing - South,Permanent Residential,Rosewood Lodge & Brook House,4687.32, 05-Jul-2016
1632,Revenue,CAHD,Bed Purchasing - South,Permanent Nursing,Saffron Gardens Nursing Home,2750.04, 05-Jul-2016
1633,Revenue,CAHD,South Glos Users in South Glos Homes,Permanent Nursing,Saffron Gardens Nursing Home,848.00, 05-Jul-2016
1634,Revenue,CAHD,Bed Purchasing - South,Permanent Nursing,Saffron Gardens Nursing Home,2037.08, 05-Jul-2016
1635,Revenue,CAHD,Bed purchasing - Elderly S117 - South,Permanent Nursing,Saffron Gardens Nursing Home,3232.00, 05-Jul-2016
1636,Revenue,CAHD,Bed purchasing - Elderly S117 - South,Permanent Nursing,Saffron Gardens Nursing Home,808.00, 05-Jul-2016
1637,Revenue,CAHD,Bed Purchasing - South,Permanent Nursing,Saffron Gardens Nursing Home,2138.60, 05-Jul-2016
1638,Revenue,CAHD,Bed Purchasing - South,Permanent Nursing,Saffron Gardens Nursing Home,1961.40, 05-Jul-2016
1639,Revenue,CAHD,Bed Purchasing - Southmead Hospital,Permanent Nursing,Saffron Gardens Nursing Home,2036.36, 05-Jul-2016
1640,Revenue,CAHD,Bed Purchasing - South,Permanent Nursing,Saffron Gardens Nursing Home,1749.92, 05-Jul-2016
1641,Revenue,CAHD,South Glos Users in South Glos Homes,Permanent Nursing,Saffron Gardens Nursing Home,1280.00, 05-Jul-2016
1642,Revenue,CAHD,Bed Purchasing - South,Permanent Nursing,Saffron Gardens Nursing Home,1769.24, 05-Jul-2016
1643,Revenue,CAHD,Bed Purchasing - South,Permanent Nursing,Saffron Gardens Nursing Home,1529.92, 05-Jul-2016
1644,Revenue,CAHD,Bed purchasing - Elderly S117 - South,Permanent Nursing,Saffron Gardens Nursing Home,2870.52, 05-Jul-2016
1645,Revenue,CAHD,Home Care - Elderly - South,Day Care / Social Activities,Saffron Gardens Nursing Home,790.56, 05-Jul-2016
1646,Revenue,CAHD,Bed Purchasing - South,Permanent Nursing,Saffron Gardens Nursing Home,2108.36, 05-Jul-2016
1647,Revenue,CAHD,Bed Purchasing - North,Permanent Nursing,Saffron Gardens Nursing Home,2375.72, 05-Jul-2016
1648,Revenue,CAHD,Bed Purchasing - Southmead Hospital,Permanent Nursing,Saffron Gardens Nursing Home,2100.52, 05-Jul-2016
1649,Revenue,CAHD,Bed Purchasing - South,Permanent Nursing,Saffron Gardens Nursing Home,2133.52, 05-Jul-2016
1650,Revenue,CAHD,Bed Purchasing - South,Permanent Nursing,Saffron Gardens Nursing Home,1936.08, 05-Jul-2016
1651,Revenue,CAHD,Bed Purchasing - South,Permanent Residential,Saffron Gardens Nursing Home,1323.16, 05-Jul-2016
1652,Revenue,CAHD,Bed Purchasing - South,Permanent Nursing,Saffron Gardens Nursing Home,5418.40, 05-Jul-2016
1653,Revenue,CAHD,Bed Purchasing - South,Permanent Nursing,Saffron Gardens Nursing Home,2709.20, 05-Jul-2016
1654,Revenue,CAHD,Bed Purchasing - South,Permanent Residential,Salters Hill Barn,2060.56, 05-Jul-2016
1655,Revenue,CAHD,Bed and Breakfast,Other Supplies & Services,Sarah Domone,760.49, 25-Jul-2016
1656,Revenue,CAHD,Learning Difficulties PSL,Rent,Individual,1650.00, 01-Jul-2016
1657,Revenue,CAHD,Bed Purchasing - South,Permanent Residential,Scope   Accounts Dept,3154.04, 05-Jul-2016
1658,Revenue,CAHD,Home Care - Elderly - North,Other Small Contracts,SeeAbility,4102.50, 15-Jul-2016
1659,Revenue,CAHD,Home Care - Elderly - North,Other Small Contracts,SeeAbility,1341.77, 15-Jul-2016
1660,Revenue,CAHD,Home Care - Elderly - North,Other Small Contracts,SeeAbility,5906.40, 15-Jul-2016
1661,Revenue,CAHD,Home Care - Elderly - North,Other Small Contracts,SeeAbility,1076.32, 19-Jul-2016
1662,Revenue,CAHD,Home Care - Elderly - North,Other Small Contracts,SeeAbility,1683.92, 19-Jul-2016
1663,Revenue,CAHD,Home Care - Elderly - North,Other Small Contracts,SeeAbility,1093.68, 19-Jul-2016
1664,Revenue,CAHD,Home Care - Elderly - North,Other Small Contracts,SeeAbility,5242.72, 19-Jul-2016
1665,Revenue,CAHD,Home Care - Elderly - North,Other Small Contracts,SeeAbility,1223.88, 19-Jul-2016
1666,Revenue,CAHD,Home Care - Elderly - South,Day Care / Social Activities,Selborne Care Ltd,646.50, 05-Jul-2016
1667,Revenue,CAHD,Home Care - Elderly - South,Other Small Contracts,Selborne Care Ltd,129.30, 05-Jul-2016
1668,Revenue,CAHD,Home Care - Elderly - South,Supported Living,Selborne Care Ltd,1534.36, 05-Jul-2016
1669,Revenue,CAHD,Home Care - Elderly - North,Day Care / Social Activities,Selborne Care Ltd,560.30, 05-Jul-2016
1670,Revenue,CAHD,Home Care - Elderly - North,Supported Living,Selborne Care Ltd,103.44, 05-Jul-2016
1671,Revenue,CAHD,Home Care - Elderly - South,Day Care / Social Activities,Selborne Care Ltd,672.36, 05-Jul-2016
1672,Revenue,CAHD,Home Care - Elderly - South,Other Small Contracts,Selborne Care Ltd,68.96, 05-Jul-2016
1673,Revenue,CAHD,Home Care - Elderly - South,Supported Living,Selborne Care Ltd,1650.73, 05-Jul-2016
1674,Revenue,CAHD,Home Care - Elderly - North,Day Care / Social Activities,Selborne Care Ltd,560.30, 05-Jul-2016
1675,Revenue,CAHD,Home Care - Elderly - North,Supported Living,Selborne Care Ltd,103.44, 05-Jul-2016
1676,Revenue,CAHD,Home Care - Elderly - South,Day Care / Social Activities,Selborne Care Ltd,672.36, 20-Jul-2016
1677,Revenue,CAHD,Home Care - Elderly - South,Supported Living,Selborne Care Ltd,1517.12, 20-Jul-2016
1678,Revenue,CAHD,Home Care - Elderly - North,Day Care / Social Activities,Selborne Care Ltd,560.30, 20-Jul-2016
1679,Revenue,CAHD,Home Care - Elderly - North,Supported Living,Selborne Care Ltd,103.44, 20-Jul-2016
1680,Revenue,CAHD,Home Care - Elderly - South,Supported Living,Selborrne House,3538.84, 05-Jul-2016
1681,Revenue,CAHD,Home Care - Elderly - South,Supported Living,Selborrne House,3538.84, 05-Jul-2016
1682,Revenue,CAHD,Home Care - Elderly - South,Supported Living,Selborrne House,1845.68, 05-Jul-2016
1683,Revenue,CAHD,Home Care - Elderly - South,Supported Living,Selborrne House,1845.68, 05-Jul-2016
1684,Revenue,CAHD,Bed Purchasing - South,Permanent Residential,Shaldon House (Positive Care Ltd),2287.04, 05-Jul-2016
1685,Revenue,CAHD,Bed Purchasing - South,Permanent Nursing,Shaw Healthcare Ltd,2127.04, 05-Jul-2016
1686,Revenue,CAHD,Bed purchasing - S28A Under 65 - South,Permanent Residential,Shaw Healthcare Ltd,35489.16, 05-Jul-2016
1687,Revenue,CAHD,Bed purchasing - S28A Under 65 - South,Permanent Residential,Shaw Healthcare Ltd,9989.56, 05-Jul-2016
1688,Revenue,CAHD,Bed Purchasing - South,Permanent Residential,Shaw Healthcare Ltd,10154.12, 05-Jul-2016
1689,Revenue,CAHD,Bed Purchasing - South,Permanent Residential,Shaw Healthcare Ltd,4045.36, 05-Jul-2016
1690,Revenue,CAHD,Bed Purchasing - S28A - Over 65- North,Permanent Residential,Shaw Healthcare Ltd,4341.76, 05-Jul-2016
1691,Revenue,CAHD,Bed Purchasing - S28A - Over 65- North,Permanent Residential,Shaw Healthcare Ltd,4381.32, 05-Jul-2016
1692,Revenue,CAHD,Bed Purchasing - LD S28A- Over 65- South,Permanent Residential,Shaw Healthcare Ltd,4556.16, 05-Jul-2016
1693,Revenue,CAHD,Bed Purchasing - North,Permanent Residential,Shaw Healthcare Ltd,5844.56, 05-Jul-2016
1694,Revenue,CAHD,Bed Purchasing - S28A - Over 65- North,Permanent Residential,Shaw Healthcare Ltd,6862.92, 05-Jul-2016
1695,Revenue,CAHD,Bed Purchasing - North,Permanent Residential,Shaw Healthcare Ltd,4238.36, 05-Jul-2016
1696,Revenue,CAHD,Bed Purchasing - Elderly S117- North,Permanent Nursing,Shaw Healthcare Ltd,2911.04, 05-Jul-2016
1697,Revenue,CAHD,Older People's Commissioned Se,Grants to Voluntary Bodies,Shopmobility South Gloucestershire,1125.00, 04-Jul-2016
1698,Revenue,CAHD,Home Care - Elderly - South,Day Care / Social Activities,Silva Care Limited,520.96, 01-Jul-2016
1699,Revenue,CAHD,Home Care - Elderly - South,Day Care / Social Activities,Silva Care Limited,1758.24, 01-Jul-2016
1700,Revenue,CAHD,Home Care - Elderly - North,Other Small Contracts,Silva Care Limited,5282.86, 01-Jul-2016
1701,Revenue,CAHD,Social Lettings Agency,Fees - General,Individual,19.09, 11-Jul-2016
1702,Revenue,CAHD,Social Lettings Agency,Other Supplies & Services,Individual,649.09, 11-Jul-2016
1703,Revenue,CAHD,Home Care - Elderly - North,Supported Living,Smile Ind Living Support Limited,3102.44, 05-Jul-2016
1704,Revenue,CAHD,Home Care - Elderly - North,Supported Living,Smile Ind Living Support Limited,3102.44, 05-Jul-2016
1705,Revenue,CAHD,Home Care - Elderly - South,Day Care / Social Activities,Smile Independent Living Support Limited,218.04, 04-Jul-2016
1706,Revenue,CAHD,Home Care - Elderly - South,Other Small Contracts,Smile Independent Living Support Limited,161.16, 04-Jul-2016
1707,Revenue,CAHD,Home Care - Elderly - North,Day Care / Social Activities,Smile Independent Living Support Limited,673.08, 04-Jul-2016
1708,Revenue,CAHD,Home Care - Elderly - North,Supported Living,Smile Independent Living Support Limited,208.56, 04-Jul-2016
1709,Revenue,CAHD,Home Care - Elderly - South,Day Care / Social Activities,Smile Independent Living Support Limited,218.04, 14-Jul-2016
1710,Revenue,CAHD,Home Care - Elderly - South,Other Small Contracts,Smile Independent Living Support Limited,199.08, 14-Jul-2016
1711,Revenue,CAHD,Home Care - Elderly - North,Day Care / Social Activities,Smile Independent Living Support Limited,673.08, 14-Jul-2016
1712,Revenue,CAHD,Home Care - Elderly - North,Supported Living,Smile Independent Living Support Limited,213.30, 14-Jul-2016
1713,Revenue,CAHD,Home Care - Elderly - South,Day Care / Social Activities,Smile Independent Living Support Limited,218.04, 21-Jul-2016
1714,Revenue,CAHD,Home Care - Elderly - South,Other Small Contracts,Smile Independent Living Support Limited,165.90, 21-Jul-2016
1715,Revenue,CAHD,Home Care - Elderly - North,Day Care / Social Activities,Smile Independent Living Support Limited,379.20, 21-Jul-2016
1716,Revenue,CAHD,Home Care - Elderly - North,Supported Living,Smile Independent Living Support Limited,208.56, 21-Jul-2016
1717,Revenue,CAHD,SLA Grants - Support Serv,Grants to Voluntary Bodies,South Gloucestershire Carers` Choir,500.00, 04-Jul-2016
1718,Revenue,CAHD,Older People's Commissioned Se,Grants to Voluntary Bodies,South Gloucestershire Chinese Association,975.00, 01-Jul-2016
1719,Revenue,CAHD,User Involvement,Other Supplies & Services,Southern Brooks Community Partnership,4930.00, 15-Jul-2016
1720,Revenue,CAHD,Bed Purchasing - South,Permanent Residential,St Brigas,2064.32, 05-Jul-2016
1721,Revenue,CAHD,Bed Purchasing - South,Permanent Residential,St Brigas,3096.00, 05-Jul-2016
1722,Revenue,CAHD,Bed Purchasing - South,Permanent Residential,St Brigas,2088.80, 05-Jul-2016
1723,Revenue,CAHD,Bed Purchasing - Southmead Hospital,Permanent Nursing,St George Nursing Home,5651.64, 05-Jul-2016
1724,Revenue,CAHD,Bed Purchasing - Southmead Hospital,Permanent Nursing,St George Nursing Home,1337.20, 05-Jul-2016
1725,Revenue,CAHD,Bed Purchasing - South,Permanent Nursing,St George Nursing Home,1337.20, 05-Jul-2016
1726,Revenue,CAHD,Bed Purchasing - South,Respite Emergency - Nursing,St George Nursing Home,2752.00, 05-Jul-2016
1727,Revenue,CAHD,Bed Purchasing - Southmead Hospital,Permanent Nursing,St George Nursing Home,1337.20, 05-Jul-2016
1728,Revenue,CAHD,Bed Purchasing - Southmead Hospital,Permanent Nursing,St George Nursing Home,787.28, 05-Jul-2016
1729,Revenue,CAHD,Bed Purchasing - Southmead Hospital,Permanent Nursing,St George Nursing Home,1327.72, 05-Jul-2016
1730,Revenue,CAHD,Bed Purchasing - Southmead Hospital,Permanent Nursing,St George Nursing Home,1357.20, 05-Jul-2016
1731,Revenue,CAHD,Bed Purchasing - South,Permanent Nursing,St George Nursing Home,1337.20, 05-Jul-2016
1732,Revenue,CAHD,Bed Purchasing - Southmead Hospital,Permanent Nursing,St George Nursing Home,1337.20, 05-Jul-2016
1733,Revenue,CAHD,Bed Purchasing - Southmead Hospital,Permanent Nursing,St Monicas Trust,1707.12, 05-Jul-2016
1734,Revenue,CAHD,18-25 Year Olds,Permanent Nursing,St Roses School,4145.16, 05-Jul-2016
1735,Revenue,CAHD,18-25 Year Olds,Respite Planned - Residential,St Roses School,3368.76, 05-Jul-2016
1736,Revenue,CAHD,18-25 Year Olds,Respite Planned - Residential,St Roses School,612.00, 05-Jul-2016
1737,Revenue,CAHD,18-25 Year Olds,Respite Planned - Residential,St Roses School,2882.04, 05-Jul-2016
1738,Revenue,CAHD,Swift Dump Code,Permanent Residential,St Teresa`S Nursing Home,24842.19, 05-Jul-2016
1739,Revenue,CAHD,Bed Purchasing - Southmead Hospital,Permanent Nursing,St Teresa`S Nursing Home,2040.92, 05-Jul-2016
1740,Revenue,CAHD,Bed Purchasing - Southmead Hospital,Permanent Nursing,St Teresa`S Nursing Home,1600.08, 05-Jul-2016
1741,Revenue,CAHD,Bed Purchasing - Southmead Hospital,Permanent Nursing,St Teresa`S Nursing Home,929.76, 05-Jul-2016
1742,Revenue,CAHD,Bed Purchasing - North,Permanent Nursing,Stanley House,16297.30, 05-Jul-2016
1743,Revenue,CAHD,Bed Purchasing - North,Permanent Nursing,Stanley House,6518.92, 05-Jul-2016
1744,Revenue,CAHD,Bed Purchasing - South,Permanent Nursing,Stanley House,5876.80, 05-Jul-2016
1745,Revenue,CAHD,Jointly Funded H&SC Packages,Permanent Nursing,Stanley House,1680.72, 05-Jul-2016
1746,Revenue,CAHD,Section 117 Placements MH Younger,Permanent Nursing,Stanley House,10775.84, 05-Jul-2016
1747,Revenue,CAHD,Section 117 Placements MH Younger,Permanent Nursing,Stanley House,2583.84, 05-Jul-2016
1748,Revenue,CAHD,MH Purchasing - Younger,Permanent Nursing,Stanley House,4482.56, 05-Jul-2016
1749,Revenue,CAHD,Bed Purchasing - South,Permanent Residential,Stepping Stones Re-Sett. Unit,4215.76, 05-Jul-2016
1750,Revenue,CAHD,Jointly Funded H&SC Packages,Permanent Residential,Stepping Stones Re-Sett. Unit,3493.36, 05-Jul-2016
1751,Revenue,CAHD,Bed Purchasing - North,Respite Planned - Nursing,Stinchcombe Manor,738.00, 05-Jul-2016
1752,Revenue,CAHD,Planning and Partnerships Team,Computer Equipment - Purchase,Stone Computers Limited,28.00, 06-Jul-2016
1753,Revenue,CAHD,Community Care Contact Centre,Computer Equipment - Purchase,Stone Computers Limited,26.00, 06-Jul-2016
1754,Revenue,CAHD,Tenancy Start Up Scheme,Other Supplies & Services,Individual,2100.00, 26-Jul-2016
1755,Revenue,CAHD,Community Promoting Independence Team,Care Management/Assessment Staff Pay,Sugarman Group Ltd,1209.81, 07-Jul-2016
1756,Revenue,CAHD,Community Promoting Independence Team,Care Management/Assessment Staff Pay,Sugarman Group Ltd,1181.87, 14-Jul-2016
1757,Revenue,CAHD,Community Promoting Independence Team,Care Management/Assessment Staff Pay,Sugarman Group Ltd,1285.36, 28-Jul-2016
1758,Revenue,CAHD,Supporting People Programme,Grants to Voluntary Bodies,Supported Independence Ltd,3105.58, 01-Jul-2016
1759,Revenue,CAHD,Community Support - South,Preventative Assistance,Supported Independent Living Schemes,778.92, 06-Jul-2016
1760,Revenue,CAHD,Supporting People Programme,Grants to Voluntary Bodies,Supported Independent Living Schemes,4822.25, 01-Jul-2016
1761,Revenue,CAHD,Supporting People Programme,Grants to Voluntary Bodies,Supported Independent Living Schemes,6247.41, 01-Jul-2016
1762,Revenue,CAHD,Bed Purchasing - Elderly S117- North,Permanent Residential,Templemore Care Home,2287.36, 05-Jul-2016
1763,Revenue,CAHD,Home Care - Elderly - North,Day Care / Social Activities,The Ann Coleman Centre,2301.60, 05-Jul-2016
1764,Revenue,CAHD,Home Care - Elderly - North,Day Care / Social Activities,The Ann Coleman Centre,3378.20, 05-Jul-2016
1765,Revenue,CAHD,18-25 Year Olds,Permanent Residential,The Ann Coleman Centre,6211.28, 05-Jul-2016
1766,Revenue,CAHD,Bed Purchasing - South,Respite Planned - Residential,The Beeches,2229.92, 05-Jul-2016
1767,Revenue,CAHD,Bed Purchasing - South,Respite Planned - Residential,The Beeches,796.40, 05-Jul-2016
1768,Revenue,CAHD,Bed Purchasing - South,Respite Emergency - Residential,The Beeches,7150.00, 05-Jul-2016
1769,Revenue,CAHD,Bed Purchasing - North,Permanent Residential,The Beeches,1490.40, 05-Jul-2016
1770,Revenue,CAHD,Bed Purchasing - Southmead Hospital,Permanent Residential,The Beeches,1583.72, 05-Jul-2016
1771,Revenue,CAHD,Home Care - Elderly - South,Day Care / Social Activities,The Brandon Trust,3478.15, 01-Jul-2016
1772,Revenue,CAHD,Home Care - Elderly - North,Day Care / Social Activities,The Brandon Trust,124.60, 01-Jul-2016
1773,Revenue,CAHD,Home Care - Elderly - North,Other Small Contracts,The Brandon Trust,53.40, 01-Jul-2016
1774,Revenue,CAHD,Home Care - Elderly - North,Supported Living,The Brandon Trust,1887.36, 01-Jul-2016
1775,Revenue,CAHD,Home Care - Elderly - South,Day Care / Social Activities,The Brandon Trust,3798.55, 07-Jul-2016
1776,Revenue,CAHD,Home Care - Elderly - North,Day Care / Social Activities,The Brandon Trust,698.65, 07-Jul-2016
1777,Revenue,CAHD,Home Care - Elderly - North,Other Small Contracts,The Brandon Trust,53.40, 07-Jul-2016
1778,Revenue,CAHD,Home Care - Elderly - North,Supported Living,The Brandon Trust,1854.72, 07-Jul-2016
1779,Revenue,CAHD,Home Care - Elderly - South,Day Care / Social Activities,The Brandon Trust,4062.20, 14-Jul-2016
1780,Revenue,CAHD,Home Care - Elderly - North,Day Care / Social Activities,The Brandon Trust,698.65, 14-Jul-2016
1781,Revenue,CAHD,Home Care - Elderly - North,Other Small Contracts,The Brandon Trust,53.40, 14-Jul-2016
1782,Revenue,CAHD,Home Care - Elderly - North,Supported Living,The Brandon Trust,1854.72, 14-Jul-2016
1783,Revenue,CAHD,SLA Grants - Support Serv,Grants to Voluntary Bodies,The Care Forum,25109.25, 01-Jul-2016
1784,Revenue,CAHD,Older People's Commissioned Se,Grants to Voluntary Bodies,The Care Forum,5985.00, 01-Jul-2016
1785,Revenue,CAHD,Older People's Commissioned Se,Grants to Voluntary Bodies,The Care Forum,4550.00, 01-Jul-2016
1786,Revenue,CAHD,Older People's Commissioned Se,Grants to Voluntary Bodies,The Care Forum,61804.25, 01-Jul-2016
1787,Revenue,CAHD,Bed Purchasing - Southmead Hospital,Permanent Residential,The Cidermill,1408.04, 05-Jul-2016
1788,Revenue,CAHD,Bed Purchasing - North,Permanent Residential,The Cidermill,1453.20, 05-Jul-2016
1789,Revenue,CAHD,Bed Purchasing - North,Permanent Nursing,The Cidermill,1459.88, 05-Jul-2016
1790,Revenue,CAHD,Bed Purchasing - Southmead Hospital,Permanent Nursing,The Cidermill,1386.52, 05-Jul-2016
1791,Revenue,CAHD,Swift Dump Code,Permanent Residential,The Cidermill,1026.97, 05-Jul-2016
1792,Revenue,CAHD,Bed Purchasing - North,Permanent Nursing,The Cidermill,586.84, 05-Jul-2016
1793,Revenue,CAHD,Bed Purchasing - North,Permanent Nursing,The Cidermill,1113.48, 05-Jul-2016
1794,Revenue,CAHD,Bed Purchasing - North,Permanent Residential,The Cidermill,1453.20, 05-Jul-2016
1795,Revenue,CAHD,Bed Purchasing - North,Permanent Nursing,The Cidermill,976.60, 05-Jul-2016
1796,Revenue,CAHD,Bed Purchasing - Southmead Hospital,Permanent Nursing,The Cidermill,1421.84, 05-Jul-2016
1797,Revenue,CAHD,Bed Purchasing - North,Permanent Nursing,The Cidermill,1517.20, 05-Jul-2016
1798,Revenue,CAHD,Bed Purchasing - North,Permanent Nursing,The Cidermill,1239.44, 05-Jul-2016
1799,Revenue,CAHD,Bed Purchasing - Southmead Hospital,Permanent Residential,The Coach House Residential Home,1294.20, 05-Jul-2016
1800,Revenue,CAHD,Home Care - Elderly - North,Supported Living,The Conifers,2890.44, 05-Jul-2016
1801,Revenue,CAHD,Home Care - Elderly - North,Day Care / Social Activities,The Cottage,669.60, 05-Jul-2016
1802,Revenue,CAHD,Home Care - Elderly - North,Day Care / Social Activities,The Cottage,527.04, 05-Jul-2016
1803,Revenue,CAHD,18-25 Year Olds,Permanent Residential,The David Lewis Centre,6045.60, 05-Jul-2016
1804,Revenue,CAHD,Bed Purchasing - North,Permanent Residential,The Elms,1438.96, 05-Jul-2016
1805,Revenue,CAHD,Bed Purchasing - South,Permanent Residential,The Elms,1241.00, 05-Jul-2016
1806,Revenue,CAHD,Bed Purchasing - Southmead Hospital,Permanent Residential,The Gables Residential Home,1399.96, 05-Jul-2016
1807,Revenue,CAHD,Bed purchasing - Elderly S117 - South,Permanent Residential,The Gables Residential Home,2302.04, 05-Jul-2016
1808,Revenue,CAHD,Bed Purchasing - South,Permanent Residential,The Gables Residential Home,1123.52, 05-Jul-2016
1809,Revenue,CAHD,Bed Purchasing - South,Permanent Residential,The Garden House,765.44, 05-Jul-2016
1810,Revenue,CAHD,Bed Purchasing - South,Permanent Residential,The Garden House,1973.28, 05-Jul-2016
1811,Revenue,CAHD,Bed Purchasing - North,Permanent Residential,The Garden House,5670.71, 05-Jul-2016
1812,Revenue,CAHD,Bed Purchasing - North,Permanent Residential,The Garden House,1431.20, 05-Jul-2016
1813,Revenue,CAHD,Swift Dump Code,Permanent Residential,The Garden House,3353.20, 05-Jul-2016
1814,Revenue,CAHD,Bed Purchasing - South,Permanent Residential,The Garden House,879.96, 05-Jul-2016
1815,Revenue,CAHD,Bed Purchasing - North,Permanent Residential,The Garden House,1502.56, 05-Jul-2016
1816,Revenue,CAHD,Bed Purchasing - South,Permanent Residential,The Garden House,1695.84, 05-Jul-2016
